Workbook

Sheet Client Demographics
A1: Child In-Home Support Needs Assessment
A2: WARNING: Macros are currently disabled. If this message persists after workbook initialization, please close this file, then reopen it and select either [Enable Macros] or [Enable Content], whichever option is displayed. * If you believe you have already enabled Macros/Content then: 1. First, select the Ribbon's File tab and, if you see a security warning, select the large [Enable Content v] shield button, then "Enable All Content". 2. If you don't find a security warning then select the [Fix Me] button to the right, on this sheet. | N2: =IF(AND(ClientDOB<AssessmentDate,IFERROR(DATEDIF(ClientDOB,EffectiveAssmtDate,"YD") < 60,FALSE)),"(" & AssmtGracePeriod & "-day grace period is in effect)","") -> 
A3: (Legal Name) Name of Individual | J3: Date of Birth | N3: Assess. Age | O3: =IF(OR(L3="",AssessmentDate="",L3>=AssessmentDate), "", IF(DATEDIF(L3,AssessmentDate,"Y")=0, DATEDIF(L3,AssessmentDate,"YM") & " Month" & IF(DATEDIF(L3,AssessmentDate,"YM")=1,"","s"), IF(DATEDIF(L3,AssessmentDate,"Y")=1, DATEDIF(L3,AssessmentDate,"M") & " Months", DATEDIF(L3,AssessmentDate,"Y")))) ->  | P3: Adjust. Age | Q3: =IF(OR(L3="",EffectiveAssmtDate="",L3>=AssessmentDate), "", IF(DATEDIF(L3,EffectiveAssmtDate,"Y")=0, DATEDIF(L3,EffectiveAssmtDate,"YM") & " Month" & IF(DATEDIF(L3,EffectiveAssmtDate,"YM")=1,"","s"), IF(DATEDIF(L3,EffectiveAssmtDate,"Y")=1, DATEDIF(L3,EffectiveAssmtDate,"M") & " Months", DATEDIF(L3,EffectiveAssmtDate,"Y")))) -> 
A4: Prime # | J4: Height | N4: Weight
A5: Service Setting | D5: (Select) | J5: Service Element | L5: (Select)
A6: Did the individual participate in the Assessment? | G6: (Select) | J6: Gender | L6: (Select)
A7: Assessment Type | D7: (Select) | L7: Date of Assessment
A8: CDDP Services Coordinator or Brokerage Personal Agent | I8: CDDP/County or Brokerage | K8: (Select) | N8: Phone
A9: Assessor's Name | I9: Assessor Affiliation | K9: (Select) | N9: Phone
I10: Assessor e-mail Address
A11: Name of Assessment Participants | I11: Relationship to Individual | N11: Phone
A12: 1. | I12: (Select)
A13: 2. | I13: (Select)
A14: 3. | I14: (Select)
A15: 4. | I15: (Select)
A16: 5. | I16: (Select)
A17: 6. | I17: (Select)
A18: Start Time | F18: End Time | M18: Completion Time | O18: =IF(D18 = "","",IF(I18="","",24*(IF(D18<=I18,I18-D18,I18+1-D18)))) ->  | P18: hrs. | Q18: TRUE
A24: CNA version C.106 | N24: Auto-save every | O24: 10 | P24: minutes

Sheet ADLs
D1: Support Need | E1: 2:1 Review? | F1: Documentation Needed | G1: Selection Value | H1: En/Dis-able Other | I1: Disabled By | J1: Group # | K1: Group | L1: Name | M1: Current State | N1: Mismatch Trace
B2: Rating selections must be applied in accordance with the “ANA/CNA Manual version 3”, available at http://www.dhs.state.or.us/spd/tools/dd/cm/
A3: AMBULATION / MOBILITY IN THE HOME AND COMMUNITY
A4: =IF(INDEX('Raw Scoring'!D1:D13,MAX(J4:J10)+1)="Yes","2:1 Review","") -> 
B5: This section assesses the child's physical ability to move around in familiar places with or without mechanical aids. Choose the option that most accurately reflects the supports required by the child, which are not due to behaviors. Check an option only if the support needed is due to the child's disability.
B7: Independent or Age Appropriate Supports Provided: The child can ambulate in familiar surroundings without assistance from another individual with or without mechanical aids. | D7: Independent or Age Appropriate Supports Provided | E7: No | F7: None | G7: 0 | H7: N/A | J7: =IF(ISTEXT(K7),VALUE(IF(ISERROR(VALUE((MID(K7,LEN(K7)-1,1)))),0,MID(K7,LEN(K7)-1,1))&IF(ISERROR(VALUE(MID(K7,LEN(K7)-0,1))),0,MID(K7,LEN(K7)-0,1))),J8) -> 1 | K7: ADL1 | L7: HomeAmb1 | M7: TRUE | N7: FALSE
B8: Partial Assist: The child is dependent on assistance from another person for some aspect of ambulation/mobility. | D8: Partial Assist | E8: No | F8: None | G8: 1 | H8: N/A | J8: =IF(ISTEXT(K8),VALUE(IF(ISERROR(VALUE((MID(K8,LEN(K8)-1,1)))),0,MID(K8,LEN(K8)-1,1))&IF(ISERROR(VALUE(MID(K8,LEN(K8)-0,1))),0,MID(K8,LEN(K8)-0,1))),J9) -> 1 | K8: ADL1 | L8: HomeAmb2 | M8: FALSE | N8: FALSE
B9: Full Assist: The child is dependent on assistance from another person for all aspects of ambulation/mobility. | D9: Full Assist | E9: No | F9: None | G9: 4 | H9: N/A | J9: =IF(ISTEXT(K9),VALUE(IF(ISERROR(VALUE((MID(K9,LEN(K9)-1,1)))),0,MID(K9,LEN(K9)-1,1))&IF(ISERROR(VALUE(MID(K9,LEN(K9)-0,1))),0,MID(K9,LEN(K9)-0,1))),J10) -> 1 | K9: ADL1 | L9: HomeAmb3 | M9: FALSE | N9: FALSE
B10: Two-Person Assist: The child requires assistance of two people for all aspects of ambulation/mobility. Documentation of caregivers' schedule and duties are required. | D10: Two-Person Assist | E10: Yes | F10: None | G10: 4 | H10: N/A | J10: =IF(ISTEXT(K10),VALUE(IF(ISERROR(VALUE((MID(K10,LEN(K10)-1,1)))),0,MID(K10,LEN(K10)-1,1))&IF(ISERROR(VALUE(MID(K10,LEN(K10)-0,1))),0,MID(K10,LEN(K10)-0,1))),J11) -> 1 | K10: ADL1 | L10: HomeAmb4 | M10: FALSE | N10: FALSE
A11: NOTES
A15: TRANSFERRING / POSITIONING
A16: =IF(INDEX('Raw Scoring'!D1:D13,MAX(J16:J22)+1)="Yes","2:1 Review","") -> 
B17: This section assesses the child's physical ability to transfer to and from positioning equipment, bathtub, toilet, chair, bed, wheelchair, auto, etc. Choose the option that most accurately reflects the supports required by the child, which are not due to behaviors. Check an option only if the support needed is due to the child's disability.
B19: Independent or Age Appropriate Supports Provided: The child can transfer without assistance from another individual with or without mechanical aids. | D19: Independent or Age Appropriate Supports Provided | E19: No | F19: None | G19: 0 | H19: N/A | J19: =IF(ISTEXT(K19),VALUE(IF(ISERROR(VALUE((MID(K19,LEN(K19)-1,1)))),0,MID(K19,LEN(K19)-1,1))&IF(ISERROR(VALUE(MID(K19,LEN(K19)-0,1))),0,MID(K19,LEN(K19)-0,1))),J20) -> 2 | K19: ADL2 | L19: Transfer1 | M19: TRUE | N19: FALSE
B20: Partial Assist: The child can perform the transfer with or without mechanical aids, but requires some assistance by another person for some aspect of transferring. | D20: Partial Assist | E20: No | F20: None | G20: 1 | H20: N/A | J20: =IF(ISTEXT(K20),VALUE(IF(ISERROR(VALUE((MID(K20,LEN(K20)-1,1)))),0,MID(K20,LEN(K20)-1,1))&IF(ISERROR(VALUE(MID(K20,LEN(K20)-0,1))),0,MID(K20,LEN(K20)-0,1))),J21) -> 2 | K20: ADL2 | L20: Transfer2 | M20: FALSE | N20: FALSE
B21: Full Assist: The child is dependent on another person for all aspects of transferring and positioning. | D21: Full Assist | E21: No | F21: None | G21: 4 | H21: N/A | J21: =IF(ISTEXT(K21),VALUE(IF(ISERROR(VALUE((MID(K21,LEN(K21)-1,1)))),0,MID(K21,LEN(K21)-1,1))&IF(ISERROR(VALUE(MID(K21,LEN(K21)-0,1))),0,MID(K21,LEN(K21)-0,1))),J22) -> 2 | K21: ADL2 | L21: Transfer3 | M21: FALSE | N21: FALSE
B22: Two-Person Assist: The child requires assistance of two people for all aspects of transferring and positioning. Documentation of caregivers' schedule and duties are required. | D22: Two-Person Assist | E22: Yes | F22: None | G22: 4 | H22: N/A | J22: =IF(ISTEXT(K22),VALUE(IF(ISERROR(VALUE((MID(K22,LEN(K22)-1,1)))),0,MID(K22,LEN(K22)-1,1))&IF(ISERROR(VALUE(MID(K22,LEN(K22)-0,1))),0,MID(K22,LEN(K22)-0,1))),J23) -> 2 | K22: ADL2 | L22: Transfer4 | M22: FALSE | N22: FALSE
A23: NOTES
A27: FOOD PREPARATION
A28: =IF(INDEX('Raw Scoring'!D1:D13,MAX(J28:J34)+1)="Yes","2:1 Review","") -> 
B29: This section assesses the ability of a child age 15 or older to prepare food to eat, including a simple meal. A "simple meal" means a meal that does not require use of sharp knives, a stovetop or range other than a microwave. Examples foods items that might be included in a simple meal include a sandwich, frozen entrees, cereal or toast. (Clean-up is not included in the ability or support need scoring.) Choose the option that most accurately reflects the supports required by the child, which are not due to behaviors. Check an option only if the support needed is due to the child's disability and exceeds the amount of support that is typically provided to a child of this age.
B31: Independent or Age Appropriate Supports Provided: The child is younger than 15, or the child can prepare simple foods without assistance from another individual with or without mechanical aids beyond what is appropriate for a child of the same age. | D31: Independent or Age Appropriate Supports Provided | E31: N/A | F31: None | G31: 0 | H31: N/A | J31: =IF(ISTEXT(K31),VALUE(IF(ISERROR(VALUE((MID(K31,LEN(K31)-1,1)))),0,MID(K31,LEN(K31)-1,1))&IF(ISERROR(VALUE(MID(K31,LEN(K31)-0,1))),0,MID(K31,LEN(K31)-0,1))),J32) -> 3 | K31: ADL3 | L31: Meal1 | M31: TRUE | N31: FALSE
B32: Partial Assist: The child requires cueing or some physical assistance from another person to prepare foods for a simple meal beyond what is appropriate for a child of the same age. | D32: Partial Assist | E32: N/A | F32: None | G32: 1 | H32: N/A | J32: =IF(ISTEXT(K32),VALUE(IF(ISERROR(VALUE((MID(K32,LEN(K32)-1,1)))),0,MID(K32,LEN(K32)-1,1))&IF(ISERROR(VALUE(MID(K32,LEN(K32)-0,1))),0,MID(K32,LEN(K32)-0,1))),J33) -> 3 | K32: ADL3 | L32: Meal2 | M32: FALSE | N32: FALSE
B33: Full Assist: The child requires full assistance from another person to prepare all meals, including foods for a simple meal. | D33: Full Assist | E33: N/A | F33: None | G33: 4 | H33: N/A | J33: =IF(ISTEXT(K33),VALUE(IF(ISERROR(VALUE((MID(K33,LEN(K33)-1,1)))),0,MID(K33,LEN(K33)-1,1))&IF(ISERROR(VALUE(MID(K33,LEN(K33)-0,1))),0,MID(K33,LEN(K33)-0,1))),J34) -> 3 | K33: ADL3 | L33: Meal3 | M33: FALSE | N33: FALSE
A34: NOTES
A38: EATING / DRINKING
A39: =IF(INDEX('Raw Scoring'!D1:D13,MAX(J39:J45)+1)="Yes","2:1 Review","") -> 
B40: This section assesses the child's physical ability to safely eat or drink, either orally or via tube, and maintain their nutrition and hydration in their home or community. Choose the option that most accurately reflects the supports required by the child, which are not due to behaviors. Check an option only if the support needed is due to the child's disability. Record tube feeding as constant/aspiration risk.
B42: Independent or Age Appropriate Supports Provided: The child can eat and drink safely and requires no assistance or monitoring while eating or drinking. | D42: Independent or Age Appropriate Supports Provided | E42: N/A | F42: None | G42: 0 | H42: N/A | J42: =IF(ISTEXT(K42),VALUE(IF(ISERROR(VALUE((MID(K42,LEN(K42)-1,1)))),0,MID(K42,LEN(K42)-1,1))&IF(ISERROR(VALUE(MID(K42,LEN(K42)-0,1))),0,MID(K42,LEN(K42)-0,1))),J43) -> 4 | K42: ADL4 | L42: EatDrink1 | M42: TRUE | N42: FALSE
B43: Partial Assist - food cut up: The child requires intermittent assistance and monitoring while eating and drinking, and may require their food to be cut up for them by another person. | D43: Partial Assist - food cut up | E43: N/A | F43: None | G43: 1 | H43: N/A | J43: =IF(ISTEXT(K43),VALUE(IF(ISERROR(VALUE((MID(K43,LEN(K43)-1,1)))),0,MID(K43,LEN(K43)-1,1))&IF(ISERROR(VALUE(MID(K43,LEN(K43)-0,1))),0,MID(K43,LEN(K43)-0,1))),J44) -> 4 | K43: ADL4 | L43: EatDrink2 | M43: FALSE | N43: FALSE
B44: Partial Assist - intermittent: The child requires intermittent assistance and monitoring with eating and drinking but requires food or fluid texture to be altered, per doctor's order, by another person. * | D44: Partial Assist - intermittent | E44: N/A | F44: None | G44: 2 | H44: N/A | J44: =IF(ISTEXT(K44),VALUE(IF(ISERROR(VALUE((MID(K44,LEN(K44)-1,1)))),0,MID(K44,LEN(K44)-1,1))&IF(ISERROR(VALUE(MID(K44,LEN(K44)-0,1))),0,MID(K44,LEN(K44)-0,1))),J45) -> 4 | K44: ADL4 | L44: EatDrink3 | M44: FALSE | N44: FALSE
B45: Full Assist - constant: The child requires constant assistance and monitoring with eating and drinking to maintain proper nutrition and hydration but does not require food or fluid texture to be altered. | D45: Full Assist - constant | E45: N/A | F45: None | G45: 3 | H45: N/A | J45: =IF(ISTEXT(K45),VALUE(IF(ISERROR(VALUE((MID(K45,LEN(K45)-1,1)))),0,MID(K45,LEN(K45)-1,1))&IF(ISERROR(VALUE(MID(K45,LEN(K45)-0,1))),0,MID(K45,LEN(K45)-0,1))),J46) -> 4 | K45: ADL4 | L45: EatDrink4 | M45: FALSE | N45: FALSE
B46: Full Assist - constant/aspiration risk: The child requires constant assistance and monitoring with eating and drinking to maintain proper nutrition and hydration, and/or to prevent the individual from gagging, choking, and aspirating. The individual may require alteration in food or fluid texture for safety. The individual may require medication administration through their tube feeding route. * *See individual indicators for a Nursing Assessment Referral | D46: Full Assist - constant/aspiration risk | E46: N/A | F46: None | G46: 4 | H46: N/A | J46: =IF(ISTEXT(K46),VALUE(IF(ISERROR(VALUE((MID(K46,LEN(K46)-1,1)))),0,MID(K46,LEN(K46)-1,1))&IF(ISERROR(VALUE(MID(K46,LEN(K46)-0,1))),0,MID(K46,LEN(K46)-0,1))),J47) -> 4 | K46: ADL4 | L46: EatDrink5 | M46: FALSE | N46: FALSE
A47: NOTES
A51: BLADDER CONTROL
B52: Care for Incontinence
A53: =IF(INDEX('Raw Scoring'!D1:D13,MAX(J53:J59)+1)="Yes","2:1 Review","") -> 
B54: This section assesses the child's ability to care for incontinence of bladder. Choose the option that most accurately reflects the supports required by the child, which are not due to behaviors. Check an option only if the support needed is due to the child's disability.
B56: Independent or Age Appropriate Supports Provided: The child is independent with incontinence care. Mark independent if not applicable. | D56: Independent or Age Appropriate Supports Provided | E56: N/A | F56: None | G56: 0 | H56: Toilet4+ | J56: =IF(ISTEXT(K56),VALUE(IF(ISERROR(VALUE((MID(K56,LEN(K56)-1,1)))),0,MID(K56,LEN(K56)-1,1))&IF(ISERROR(VALUE(MID(K56,LEN(K56)-0,1))),0,MID(K56,LEN(K56)-0,1))),J57) -> 5 | K56: ADL5 | L56: Bladder1 | M56: TRUE | N56: FALSE
B57: Partial Assist: The child requires assistance from another person to manage incontinency, catheter, or sheath changes, including assistance changing incontinence garments, soiled clothing or equipment. * | D57: Partial Assist | E57: N/A | F57: None | G57: 3 | H57: Toilet4+ | J57: =IF(ISTEXT(K57),VALUE(IF(ISERROR(VALUE((MID(K57,LEN(K57)-1,1)))),0,MID(K57,LEN(K57)-1,1))&IF(ISERROR(VALUE(MID(K57,LEN(K57)-0,1))),0,MID(K57,LEN(K57)-0,1))),J58) -> 5 | K57: ADL5 | L57: Bladder2 | M57: FALSE | N57: FALSE
B58: Full Assist: The child is totally incontinent and dependent on another person for incontinence or catheter care. * *See individual indicators for a Nursing Assessment Referral | D58: Full Assist | E58: N/A | F58: None | G58: 4 | H58: Toilet4- | J58: =IF(ISTEXT(K58),VALUE(IF(ISERROR(VALUE((MID(K58,LEN(K58)-1,1)))),0,MID(K58,LEN(K58)-1,1))&IF(ISERROR(VALUE(MID(K58,LEN(K58)-0,1))),0,MID(K58,LEN(K58)-0,1))),J59) -> 5 | K58: ADL5 | L58: Bladder3 | M58: FALSE | N58: FALSE
A59: NOTES
A63: BOWEL CONTROL
B64: Care for Incontinence
A65: =IF(INDEX('Raw Scoring'!D1:D13,MAX(J65:J71)+1)="Yes","2:1 Review","") -> 
B66: This section assesses the child's ability to care for incontinence of the bowel. (Ineffective cleansing after use of the toilet for elimination should be recorded in "Toileting" and is not recorded in this section.) Choose the option that most accurately reflects the supports required by the child, which are not due to behaviors. Check an option only if the support needed is due to the child's disability.
B68: Independent or Age Appropriate Supports Provided: The child is independent with bowel control issues, whether the individual is continent, incontinent or has an ostomy. Mark independent if not applicable. | D68: Independent or Age Appropriate Supports Provided | E68: N/A | F68: None | G68: 0 | H68: Toilet4+ | J68: =IF(ISTEXT(K68),VALUE(IF(ISERROR(VALUE((MID(K68,LEN(K68)-1,1)))),0,MID(K68,LEN(K68)-1,1))&IF(ISERROR(VALUE(MID(K68,LEN(K68)-0,1))),0,MID(K68,LEN(K68)-0,1))),J69) -> 6 | K68: ADL6 | L68: Bowel1 | M68: TRUE | N68: FALSE
B69: Partial Assist: The child requires assistance managing incontinence of the bowel, changing incontinence garments, soiled clothing or ostomy care. * | D69: Partial Assist | E69: N/A | F69: None | G69: 3 | H69: Toilet4+ | J69: =IF(ISTEXT(K69),VALUE(IF(ISERROR(VALUE((MID(K69,LEN(K69)-1,1)))),0,MID(K69,LEN(K69)-1,1))&IF(ISERROR(VALUE(MID(K69,LEN(K69)-0,1))),0,MID(K69,LEN(K69)-0,1))),J70) -> 6 | K69: ADL6 | L69: Bowel2 | M69: FALSE | N69: FALSE
B70: Full Assist: The child is incontinent of the bowel and dependent on another person to complete all incontinence care. * *See individual indicators for a Nursing Assessment Referral | D70: Full Assist | E70: N/A | F70: None | G70: 4 | H70: Toilet4- | J70: =IF(ISTEXT(K70),VALUE(IF(ISERROR(VALUE((MID(K70,LEN(K70)-1,1)))),0,MID(K70,LEN(K70)-1,1))&IF(ISERROR(VALUE(MID(K70,LEN(K70)-0,1))),0,MID(K70,LEN(K70)-0,1))),J71) -> 6 | K70: ADL6 | L70: Bowel3 | M70: FALSE | N70: FALSE
A71: NOTES
A75: ="TOILETING"&IF(ISBLANK(I79),""," -- Unavailable when ""Full Assist"" is selected for bladder or bowel control (above)") -> TOILETING
A76: =IF(INDEX('Raw Scoring'!D1:D13,MAX(J76:J82)+1)="Yes","2:1 Review","") -> 
B77: This section assesses the child's ability to independently use the toilet (including commode, bedpan, and/or urinal), to cleanse after elimination and to adjust clothing. Choose the option that most accurately reflects the supports required by the child, which are not due to behaviors. Check an option only if the support needed is due to the child's disability.
B79: Independent or Age Appropriate Supports Provided: The child can manage toileting independently and may use mechanical aids, if required. Mark independent if not applicable. | D79: Independent or Age Appropriate Supports Provided | E79: N/A | F79: None | G79: 0 | H79: N/A | J79: =IF(ISTEXT(K79),VALUE(IF(ISERROR(VALUE((MID(K79,LEN(K79)-1,1)))),0,MID(K79,LEN(K79)-1,1))&IF(ISERROR(VALUE(MID(K79,LEN(K79)-0,1))),0,MID(K79,LEN(K79)-0,1))),J80) -> 7 | K79: ADL7 | L79: Toilet1 | M79: TRUE | N79: FALSE
B80: Partial Assist - cueing: The child requires verbal cueing and monitoring to complete toileting activities. | D80: Partial Assist - cueing | E80: N/A | F80: None | G80: 0 | H80: N/A | J80: =IF(ISTEXT(K80),VALUE(IF(ISERROR(VALUE((MID(K80,LEN(K80)-1,1)))),0,MID(K80,LEN(K80)-1,1))&IF(ISERROR(VALUE(MID(K80,LEN(K80)-0,1))),0,MID(K80,LEN(K80)-0,1))),J81) -> 7 | K80: ADL7 | L80: Toilet2 | M80: FALSE | N80: FALSE
B81: Partial Assist - assistance: The child requires assistance from another person for some aspects of using the toilet for elimination. | D81: Partial Assist - assistance | E81: N/A | F81: None | G81: 3 | H81: N/A | J81: =IF(ISTEXT(K81),VALUE(IF(ISERROR(VALUE((MID(K81,LEN(K81)-1,1)))),0,MID(K81,LEN(K81)-1,1))&IF(ISERROR(VALUE(MID(K81,LEN(K81)-0,1))),0,MID(K81,LEN(K81)-0,1))),J82) -> 7 | K81: ADL7 | L81: Toilet3 | M81: FALSE | N81: FALSE
B82: Full Assist: The child is dependent on another person, even with mechanical aids, to assist with some or all parts of using the toilet for elimination. | D82: Full Assist | E82: N/A | F82: None | G82: 4 | H82: N/A | J82: =IF(ISTEXT(K82),VALUE(IF(ISERROR(VALUE((MID(K82,LEN(K82)-1,1)))),0,MID(K82,LEN(K82)-1,1))&IF(ISERROR(VALUE(MID(K82,LEN(K82)-0,1))),0,MID(K82,LEN(K82)-0,1))),J83) -> 7 | K82: ADL7 | L82: Toilet4 | M82: FALSE | N82: FALSE
A83: NOTES
A87: HYGIENE (INCLUDING ORAL HYGIENE)
A88: =IF(INDEX('Raw Scoring'!D1:D13,MAX(J88:J94)+1)="Yes","2:1 Review","") -> 
B89: This section assesses the child's ability to complete personal hygiene tasks such as facial care, shaving, menses care, and oral care. Choose the option that most accurately reflects the supports required by the child, which are not due to behaviors. Check an option only if the support needed is due to the child's disability.
B91: Independent or Age Appropriate Supports Provided: The child can manage personal hygiene tasks, oral hygiene, without reminders, assistance or supervision or with a level of support appropriate for the age of the child. | D91: Independent or Age Appropriate Supports Provided | E91: N/A | F91: None | G91: 0 | H91: N/A | J91: =IF(ISTEXT(K91),VALUE(IF(ISERROR(VALUE((MID(K91,LEN(K91)-1,1)))),0,MID(K91,LEN(K91)-1,1))&IF(ISERROR(VALUE(MID(K91,LEN(K91)-0,1))),0,MID(K91,LEN(K91)-0,1))),J92) -> 8 | K91: ADL8 | L91: Hygiene1 | M91: TRUE | N91: FALSE
B92: Partial Assist - cueing: The child requires monitoring, reminders and minor cueing from another person for some aspects of personal hygiene/oral hygiene. | D92: Partial Assist - cueing | E92: N/A | F92: None | G92: 0 | H92: N/A | J92: =IF(ISTEXT(K92),VALUE(IF(ISERROR(VALUE((MID(K92,LEN(K92)-1,1)))),0,MID(K92,LEN(K92)-1,1))&IF(ISERROR(VALUE(MID(K92,LEN(K92)-0,1))),0,MID(K92,LEN(K92)-0,1))),J93) -> 8 | K92: ADL8 | L92: Hygiene2 | M92: FALSE | N92: FALSE
B93: Partial Assist - assistance: The child requires monitoring, step by step cueing or physical assistance from another person for some aspects of personal hygiene/oral hygiene. | D93: Partial Assist - assistance | E93: N/A | F93: None | G93: 3 | H93: N/A | J93: =IF(ISTEXT(K93),VALUE(IF(ISERROR(VALUE((MID(K93,LEN(K93)-1,1)))),0,MID(K93,LEN(K93)-1,1))&IF(ISERROR(VALUE(MID(K93,LEN(K93)-0,1))),0,MID(K93,LEN(K93)-0,1))),J94) -> 8 | K93: ADL8 | L93: Hygiene3 | M93: FALSE | N93: FALSE
B94: Full Assist: The child is dependent on another person to perform personal hygiene/oral hygiene tasks for them. | D94: Full Assist | E94: N/A | F94: None | G94: 4 | H94: N/A | J94: =IF(ISTEXT(K94),VALUE(IF(ISERROR(VALUE((MID(K94,LEN(K94)-1,1)))),0,MID(K94,LEN(K94)-1,1))&IF(ISERROR(VALUE(MID(K94,LEN(K94)-0,1))),0,MID(K94,LEN(K94)-0,1))),J95) -> 8 | K94: ADL8 | L94: Hygiene4 | M94: FALSE | N94: FALSE
A95: NOTES
A99: BATHING
A100: =IF(INDEX('Raw Scoring'!D1:D13,MAX(J100:J106)+1)="Yes","2:1 Review","") -> 
B101: This section assesses the child's ability to bathe and wash their hair. Choose the option that most accurately reflects the supports required by the child, which are not due to behaviors. Check an option only if the support needed is due to the child's disability.
B103: Independent or Age Appropriate Supports Provided: The child can bathe and wash hair without assistance or supervision. | D103: Independent or Age Appropriate Supports Provided | E103: No | F103: None | G103: 0 | H103: N/A | J103: =IF(ISTEXT(K103),VALUE(IF(ISERROR(VALUE((MID(K103,LEN(K103)-1,1)))),0,MID(K103,LEN(K103)-1,1))&IF(ISERROR(VALUE(MID(K103,LEN(K103)-0,1))),0,MID(K103,LEN(K103)-0,1))),J104) -> 9 | K103: ADL9 | L103: Bath1 | M103: TRUE | N103: FALSE
B104: Partial Assist: The child requires minor physical assistance, standby monitoring, and/or cueing from another person to bathe and wash their hair. | D104: Partial Assist | E104: No | F104: None | G104: 2 | H104: N/A | J104: =IF(ISTEXT(K104),VALUE(IF(ISERROR(VALUE((MID(K104,LEN(K104)-1,1)))),0,MID(K104,LEN(K104)-1,1))&IF(ISERROR(VALUE(MID(K104,LEN(K104)-0,1))),0,MID(K104,LEN(K104)-0,1))),J105) -> 9 | K104: ADL9 | L104: Bath2 | M104: FALSE | N104: FALSE
B105: Full Assist: The child is dependent on assistance from another person to bathe them and wash their hair. | D105: Full Assist | E105: No | F105: None | G105: 4 | H105: N/A | J105: =IF(ISTEXT(K105),VALUE(IF(ISERROR(VALUE((MID(K105,LEN(K105)-1,1)))),0,MID(K105,LEN(K105)-1,1))&IF(ISERROR(VALUE(MID(K105,LEN(K105)-0,1))),0,MID(K105,LEN(K105)-0,1))),J106) -> 9 | K105: ADL9 | L105: Bath3 | M105: FALSE | N105: FALSE
B106: Two-Person Assist: The child requires assistance of two people while bathing and washing their hair. Documentation of caregivers' schedule and duties are required. | D106: Two-Person Assist | E106: Yes | F106: None | G106: 5 | H106: N/A | J106: =IF(ISTEXT(K106),VALUE(IF(ISERROR(VALUE((MID(K106,LEN(K106)-1,1)))),0,MID(K106,LEN(K106)-1,1))&IF(ISERROR(VALUE(MID(K106,LEN(K106)-0,1))),0,MID(K106,LEN(K106)-0,1))),J107) -> 9 | K106: ADL9 | L106: Bath4 | M106: FALSE | N106: FALSE
A107: NOTES
A111: LAUNDRY AND HOUSEKEEPING
A112: =IF(INDEX('Raw Scoring'!D1:D13,MAX(J112:J118)+1)="Yes","2:1 Review","") -> 
B113: This section assesses the ability of a child age 12 and older to participate in the care of their own clothing and living space. For a child age 12 - 14, this means the ability of the child to complete the following types of tasks, with or without instructions or picture cues: put away objects the child has used, deposit dirty clothes into a receptacle, putting away the child's own clothing and completing one or more simple household chores such as drying dishes or emptying trash. For a child 15 - 17, this means the ability of the child to complete the following types of tasks, with or without instructions or picture cues: clean the child's own room, complete a load of laundry, and complete one of more household chores. Choose the option that most accurately reflects the supports required by the child, which are not due to behaviors. Check an option only if the support needed is due to the child's disability and exceeds the amount of support that is typically provided to a child of this age.
B115: Independent or Age Appropriate Supports Provided: The child can complete laundry and housekeeping tasks appropriate for the age of the child. Score here if the child completes the task independently but needs reminding to initiate the task. | D115: Independent or Age Appropriate Supports Provided | E115: N/A | F115: None | G115: 0 | H115: N/A | J115: =IF(ISTEXT(K115),VALUE(IF(ISERROR(VALUE((MID(K115,LEN(K115)-1,1)))),0,MID(K115,LEN(K115)-1,1))&IF(ISERROR(VALUE(MID(K115,LEN(K115)-0,1))),0,MID(K115,LEN(K115)-0,1))),J116) -> 10 | K115: ADL10 | L115: Laundry1 | M115: TRUE | N115: FALSE
B116: Partial Assist: The child requires monitoring, frequent cueing, or some physical assistance to complete housekeeping and laundry tasks beyond supports that are typical for the age of the child. | D116: Partial Assist | E116: N/A | F116: None | G116: 0 | H116: N/A | J116: =IF(ISTEXT(K116),VALUE(IF(ISERROR(VALUE((MID(K116,LEN(K116)-1,1)))),0,MID(K116,LEN(K116)-1,1))&IF(ISERROR(VALUE(MID(K116,LEN(K116)-0,1))),0,MID(K116,LEN(K116)-0,1))),J117) -> 10 | K116: ADL10 | L116: Laundry2 | M116: FALSE | N116: FALSE
B117: Full Assist: The child requires another person to complete all or most housekeeping and laundry tasks for them. Score here if the child participates, but participation does not contribute to the completion of the task. | D117: Full Assist | E117: N/A | F117: None | G117: 2 | H117: N/A | J117: =IF(ISTEXT(K117),VALUE(IF(ISERROR(VALUE((MID(K117,LEN(K117)-1,1)))),0,MID(K117,LEN(K117)-1,1))&IF(ISERROR(VALUE(MID(K117,LEN(K117)-0,1))),0,MID(K117,LEN(K117)-0,1))),J118) -> 10 | K117: ADL10 | L117: Laundry3 | M117: FALSE | N117: FALSE
A118: NOTES
A122: DRESSING & HAIR CARE
A123: =IF(INDEX('Raw Scoring'!D1:D13,MAX(J123:J129)+1)="Yes","2:1 Review","") -> 
B124: This section assesses the child's ability to dress, undress and/or comb hair. Choose the option that most accurately reflects the supports required by the child, which are not due to behaviors. Check an option only if the support needed is due to the child's disability.
B126: Independent or Age Appropriate Supports Provided: The child can dress, undress and/or comb hair independently or with reminding. | D126: Independent or Age Appropriate Supports Provided | E126: N/A | F126: None | G126: 0 | H126: N/A | J126: =IF(ISTEXT(K126),VALUE(IF(ISERROR(VALUE((MID(K126,LEN(K126)-1,1)))),0,MID(K126,LEN(K126)-1,1))&IF(ISERROR(VALUE(MID(K126,LEN(K126)-0,1))),0,MID(K126,LEN(K126)-0,1))),J127) -> 11 | K126: ADL11 | L126: Dress1 | M126: TRUE | N126: FALSE
B127: Partial Assist: The child requires assistance from another person, which may include frequent monitoring and cueing for completing some aspect of dressing, undressing and/or combing hair. | D127: Partial Assist | E127: N/A | F127: None | G127: 2 | H127: N/A | J127: =IF(ISTEXT(K127),VALUE(IF(ISERROR(VALUE((MID(K127,LEN(K127)-1,1)))),0,MID(K127,LEN(K127)-1,1))&IF(ISERROR(VALUE(MID(K127,LEN(K127)-0,1))),0,MID(K127,LEN(K127)-0,1))),J128) -> 11 | K127: ADL11 | L127: Dress2 | M127: FALSE | N127: FALSE
B128: Full Assist: The child requires total assistance from another person to dress, undress and/or comb hair. | D128: Full Assist | E128: N/A | F128: None | G128: 3 | H128: N/A | J128: =IF(ISTEXT(K128),VALUE(IF(ISERROR(VALUE((MID(K128,LEN(K128)-1,1)))),0,MID(K128,LEN(K128)-1,1))&IF(ISERROR(VALUE(MID(K128,LEN(K128)-0,1))),0,MID(K128,LEN(K128)-0,1))),J129) -> 11 | K128: ADL11 | L128: Dress3 | M128: FALSE | N128: FALSE
A129: NOTES
A133: SHOPPING AND MONEY MANAGEMENT
A134: =IF(INDEX('Raw Scoring'!D1:D13,MAX(J134:J140)+1)="Yes","2:1 Review","") -> 
B135: This section assesses the ability of a child age 12 and older to participate in the management of their own resources. For a child age 12 -14 this means the child the child has the ability to handle small amounts (up to $5) of pocket money and participate in the selection of personal goods such as clothing or recreational items. For a child age 15 - 17 this means the child has the ability to handle pocket money (up to $20), create a plan to save for larger purchases, and participate in selection of both personal and household goods. Choose the option that most accurately reflects the supports required by the individual, which are not due to behaviors. Check an option only if the support needed is due to the child's disability and exceeds the amount of support that is typically provided to a child of this age.
B137: Independent or Age Appropriate Supports Provided: The child can handle money and participate in shopping as appropriate for the age of the child. | D137: Independent or Age Appropriate Supports Provided | E137: N/A | F137: None | G137: 0 | H137: N/A | J137: =IF(ISTEXT(K137),VALUE(IF(ISERROR(VALUE((MID(K137,LEN(K137)-1,1)))),0,MID(K137,LEN(K137)-1,1))&IF(ISERROR(VALUE(MID(K137,LEN(K137)-0,1))),0,MID(K137,LEN(K137)-0,1))),J138) -> 12 | K137: ADL12 | L137: Money1 | M137: TRUE | N137: FALSE
B138: Partial Assist: The child requires assistance from another person, which may include frequent monitoring and cueing for some aspect of shopping and money management that is beyond the level of support that is typical for a child of the same age. | D138: Partial Assist | E138: N/A | F138: None | G138: 2 | H138: N/A | J138: =IF(ISTEXT(K138),VALUE(IF(ISERROR(VALUE((MID(K138,LEN(K138)-1,1)))),0,MID(K138,LEN(K138)-1,1))&IF(ISERROR(VALUE(MID(K138,LEN(K138)-0,1))),0,MID(K138,LEN(K138)-0,1))),J139) -> 12 | K138: ADL12 | L138: Money2 | M138: FALSE | N138: FALSE
B139: Full Assist: The child requires total assistance from another person to manage their money for them and shop on their behalf. | D139: Full Assist | E139: N/A | F139: None | G139: 3 | H139: N/A | J139: =IF(ISTEXT(K139),VALUE(IF(ISERROR(VALUE((MID(K139,LEN(K139)-1,1)))),0,MID(K139,LEN(K139)-1,1))&IF(ISERROR(VALUE(MID(K139,LEN(K139)-0,1))),0,MID(K139,LEN(K139)-0,1))),J140) -> 12 | K139: ADL12 | L139: Money3 | M139: FALSE | N139: FALSE
A140: NOTES

Sheet Medical Needs
D1: Support Need | E1: 2:1 Review? | F1: Documentation Needed | G1: Selection Value | H1: En/Dis-able Other | I1: Disabled By | J1: Group # | K1: Group | L1: Name | M1: Current State | N1: Mismatch Trace
B2: Rating selections must be applied in accordance with the “ANA/CNA Manual version 3”, available at http://www.dhs.state.or.us/spd/tools/dd/cm/
A3: COMMUNICATION - EXPRESSIVE
A4: =IF(INDEX('Raw Scoring'!R1:R18,MAX(J4:J10)+1)="Yes","2:1 Review","") -> 
B5: This section assesses the child's ability to verbally, or through adaptive means, understandably express to others their needs in their home or community. Choose the option that most accurately reflects the supports required by the individual. Check an option only if the support needed is due to the child's disability.
B7: Independent or Age Appropriate Supports Provided: The child can communicate their needs with or without the use of adaptive equipment and requires no assistance from another person. | D7: Independent or Age Appropriate Supports Provided | E7: N/A | F7: None | G7: 0 | H7: N/A | J7: =IF(ISTEXT(K7),VALUE(IF(ISERROR(VALUE((MID(K7,LEN(K7)-1,1)))),0,MID(K7,LEN(K7)-1,1))&IF(ISERROR(VALUE(MID(K7,LEN(K7)-0,1))),0,MID(K7,LEN(K7)-0,1))),J8) -> 1 | K7: Medical1 | L7: CommExp1 | M7: TRUE | N7: FALSE
B8: Partial Assist: The child requires assistance from another person intermittently to express their needs so others will understand them, with or without adaptive communication devices or systems. | D8: Partial Assist | E8: N/A | F8: None | G8: 1 | H8: N/A | J8: =IF(ISTEXT(K8),VALUE(IF(ISERROR(VALUE((MID(K8,LEN(K8)-1,1)))),0,MID(K8,LEN(K8)-1,1))&IF(ISERROR(VALUE(MID(K8,LEN(K8)-0,1))),0,MID(K8,LEN(K8)-0,1))),J9) -> 1 | K8: Medical1 | L8: CommExp2 | M8: FALSE | N8: FALSE
B9: Full Assist: The child requires ongoing assistance from another person every day to express their needs so others will understand them, with or without adaptive communication devices or systems. | D9: Full Assist | E9: N/A | F9: None | G9: 2 | H9: N/A | J9: =IF(ISTEXT(K9),VALUE(IF(ISERROR(VALUE((MID(K9,LEN(K9)-1,1)))),0,MID(K9,LEN(K9)-1,1))&IF(ISERROR(VALUE(MID(K9,LEN(K9)-0,1))),0,MID(K9,LEN(K9)-0,1))),J10) -> 1 | K9: Medical1 | L9: CommExp3 | M9: FALSE | N9: FALSE
A10: NOTES
A14: COMMUNICATION - RECEPTIVE
A15: =IF(INDEX('Raw Scoring'!R1:R18,MAX(J15:J21)+1)="Yes","2:1 Review","") -> 
B16: This section assesses the child's ability to understand information and directions from another person. Choose the option that most accurately reflects the supports required by the child. Check an option only if the support needed is due to the child's disability.
B18: Independent or Age Appropriate Supports Provided: The child can understand information conveyed to them. | D18: Independent or Age Appropriate Supports Provided | E18: N/A | F18: None | G18: 0 | H18: N/A | J18: =IF(ISTEXT(K18),VALUE(IF(ISERROR(VALUE((MID(K18,LEN(K18)-1,1)))),0,MID(K18,LEN(K18)-1,1))&IF(ISERROR(VALUE(MID(K18,LEN(K18)-0,1))),0,MID(K18,LEN(K18)-0,1))),J19) -> 2 | K18: Medical2 | L18: CommAst1 | M18: TRUE | N18: FALSE
B19: Partial Assist: The child requires intermittent assistance from another person to provide guidance, reminders and direction in order to understand information or directions from another person. | D19: Partial Assist | E19: N/A | F19: None | G19: 1 | H19: N/A | J19: =IF(ISTEXT(K19),VALUE(IF(ISERROR(VALUE((MID(K19,LEN(K19)-1,1)))),0,MID(K19,LEN(K19)-1,1))&IF(ISERROR(VALUE(MID(K19,LEN(K19)-0,1))),0,MID(K19,LEN(K19)-0,1))),J20) -> 2 | K19: Medical2 | L19: CommAst2 | M19: FALSE | N19: FALSE
B20: Full Assist: The child requires continual assistance from another person to provide guidance, reminders and direction in order to understand information or directions from another person. | D20: Full Assist | E20: N/A | F20: None | G20: 2 | H20: N/A | J20: =IF(ISTEXT(K20),VALUE(IF(ISERROR(VALUE((MID(K20,LEN(K20)-1,1)))),0,MID(K20,LEN(K20)-1,1))&IF(ISERROR(VALUE(MID(K20,LEN(K20)-0,1))),0,MID(K20,LEN(K20)-0,1))),J21) -> 2 | K20: Medical2 | L20: CommAst3 | M20: FALSE | N20: FALSE
A21: NOTES
A25: SAFETY
A26: =IF(INDEX('Raw Scoring'!R1:R18,MAX(J26:J32)+1)="Yes","2:1 Review","") -> 
B27: This section assesses the ability of a child, age 12 or older, to recognize, understand and protect themselves from potential hazards or harmful situations in their home or community, which are not due to behaviors. Choose the option that most accurately reflects the supports required by the child.
B29: Independent or Age Appropriate Supports Provided: The child requires no assistance from another person. | D29: Independent or Age Appropriate Supports Provided | E29: N/A | F29: None | G29: 0 | H29: N/A | J29: =IF(ISTEXT(K29),VALUE(IF(ISERROR(VALUE((MID(K29,LEN(K29)-1,1)))),0,MID(K29,LEN(K29)-1,1))&IF(ISERROR(VALUE(MID(K29,LEN(K29)-0,1))),0,MID(K29,LEN(K29)-0,1))),J30) -> 3 | K29: Medical3 | L29: Safe1 | M29: TRUE | N29: FALSE
B30: Partial Assist: The child requires intermittent assistance/monitoring from another person to recognize, understand and protect themselves from hazards or harmful situations or people at home or in the community. | D30: Partial Assist | E30: N/A | F30: None | G30: 2 | H30: N/A | J30: =IF(ISTEXT(K30),VALUE(IF(ISERROR(VALUE((MID(K30,LEN(K30)-1,1)))),0,MID(K30,LEN(K30)-1,1))&IF(ISERROR(VALUE(MID(K30,LEN(K30)-0,1))),0,MID(K30,LEN(K30)-0,1))),J31) -> 3 | K30: Medical3 | L30: Safe2 | M30: FALSE | N30: FALSE
B31: Full Assist: The child requires continual assistance/monitoring to recognize, understand and protect themselves from hazards or harmful situations or people at home or in the community. | D31: Full Assist | E31: N/A | F31: None | G31: 3 | H31: N/A | J31: =IF(ISTEXT(K31),VALUE(IF(ISERROR(VALUE((MID(K31,LEN(K31)-1,1)))),0,MID(K31,LEN(K31)-1,1))&IF(ISERROR(VALUE(MID(K31,LEN(K31)-0,1))),0,MID(K31,LEN(K31)-0,1))),J32) -> 3 | K31: Medical3 | L31: Safe3 | M31: FALSE | N31: FALSE
A32: NOTES
A36: FIRE EVACUATION
A37: =IF(INDEX('Raw Scoring'!R1:R18,MAX(J37:J43)+1)="Yes","2:1 Review","") -> 
B38: This section assesses the child's ability to evacuate the home in an emergency. Choose the option that most accurately reflects the supports required by the child.
B40: Independent or Age Appropriate Supports Provided: The child evacuates with no assistance. | D40: Independent or Age Appropriate Supports Provided | E40: N/A | F40: None | G40: 0 | H40: N/A | J40: =IF(ISTEXT(K40),VALUE(IF(ISERROR(VALUE((MID(K40,LEN(K40)-1,1)))),0,MID(K40,LEN(K40)-1,1))&IF(ISERROR(VALUE(MID(K40,LEN(K40)-0,1))),0,MID(K40,LEN(K40)-0,1))),J41) -> 4 | K40: Medical4 | L40: Fire1 | M40: TRUE | N40: FALSE
B41: Partial Assist: The child requires verbal assistance from another person to safely evacuate during an emergency. | D41: Partial Assist | E41: N/A | F41: None | G41: 0 | H41: N/A | J41: =IF(ISTEXT(K41),VALUE(IF(ISERROR(VALUE((MID(K41,LEN(K41)-1,1)))),0,MID(K41,LEN(K41)-1,1))&IF(ISERROR(VALUE(MID(K41,LEN(K41)-0,1))),0,MID(K41,LEN(K41)-0,1))),J42) -> 4 | K41: Medical4 | L41: Fire2 | M41: FALSE | N41: FALSE
B42: Full Assist: The child must be physically assisted by another person in order to safely evacuate during an emergency. | D42: Full Assist | E42: N/A | F42: None | G42: 2 | H42: N/A | J42: =IF(ISTEXT(K42),VALUE(IF(ISERROR(VALUE((MID(K42,LEN(K42)-1,1)))),0,MID(K42,LEN(K42)-1,1))&IF(ISERROR(VALUE(MID(K42,LEN(K42)-0,1))),0,MID(K42,LEN(K42)-0,1))),J43) -> 4 | K42: Medical4 | L42: Fire3 | M42: FALSE | N42: FALSE
A43: NOTES
A47: MEDICATION MANAGEMENT SUPPORTS - ORAL
A48: =IF(INDEX('Raw Scoring'!R1:R18,MAX(J48:J54)+1)="Yes","2:1 Review","") -> 
B49: This section assesses the child's oral medication regimen. Choose the option that most accurately reflects the supports required by the child. Check an option only if medication support is due to the child's disability,
B51: Independent or Age Appropriate Supports Provided: Individual does not take any medication or self administers medication with or without provider oversight. | D51: Independent or Age Appropriate Supports Provided | E51: N/A | F51: None | G51: 0 | H51: N/A | J51: =IF(ISTEXT(K51),VALUE(IF(ISERROR(VALUE((MID(K51,LEN(K51)-1,1)))),0,MID(K51,LEN(K51)-1,1))&IF(ISERROR(VALUE(MID(K51,LEN(K51)-0,1))),0,MID(K51,LEN(K51)-0,1))),J52) -> 5 | K51: Medical5 | L51: MedOral1 | M51: TRUE | N51: FALSE
B52: Full Assist - 1 to 4: The individual's medication regimen is totally administered and monitored by another person for their 1 to 4 or less medications. | D52: Full Assist - 1 to 4 | E52: N/A | F52: None | G52: 0 | H52: N/A | J52: =IF(ISTEXT(K52),VALUE(IF(ISERROR(VALUE((MID(K52,LEN(K52)-1,1)))),0,MID(K52,LEN(K52)-1,1))&IF(ISERROR(VALUE(MID(K52,LEN(K52)-0,1))),0,MID(K52,LEN(K52)-0,1))),J53) -> 5 | K52: Medical5 | L52: MedOral2 | M52: FALSE | N52: FALSE
B53: Full Assist - 5 or 6: The individual's medication regimen is totally administered and monitored by another person for their 5 or 6 medications.* | D53: Full Assist - 5 or 6 | E53: N/A | F53: None | G53: 1 | H53: N/A | J53: =IF(ISTEXT(K53),VALUE(IF(ISERROR(VALUE((MID(K53,LEN(K53)-1,1)))),0,MID(K53,LEN(K53)-1,1))&IF(ISERROR(VALUE(MID(K53,LEN(K53)-0,1))),0,MID(K53,LEN(K53)-0,1))),J54) -> 5 | K53: Medical5 | L53: MedOral3 | M53: FALSE | N53: FALSE
B54: Full Assist - 7 or more: The individual's medication regimen is totally administered and monitored by another person for their 7 or more medications.* *See individual indicators for a Nursing Assessment Referral | D54: Full Assist - 7 or more | E54: N/A | F54: None | G54: 2 | H54: N/A | J54: =IF(ISTEXT(K54),VALUE(IF(ISERROR(VALUE((MID(K54,LEN(K54)-1,1)))),0,MID(K54,LEN(K54)-1,1))&IF(ISERROR(VALUE(MID(K54,LEN(K54)-0,1))),0,MID(K54,LEN(K54)-0,1))),J55) -> 5 | K54: Medical5 | L54: MedOral4 | M54: FALSE | N54: FALSE
A55: NOTES
A59: MEDICATION MANAGEMENT SUPPORTS - INHALANTS, TOPICALS, SUPPOSITORIES
A60: =IF(INDEX('Raw Scoring'!R1:R18,MAX(J60:J66)+1)="Yes","2:1 Review","") -> 
B61: This section assesses the child's inhalants, topicals and suppositories regimen. Choose the option that most accurately reflects the supports required by the child. Do not record supports if the child's medication regimen does not include inhalants, topicals or suppositories.
B63: Independent or Age Appropriate Supports Provided: Individual does not require any inhalants, topicals or suppository regimen or self administers medication, with or without provider support. | D63: Independent or Age Appropriate Supports Provided | E63: N/A | F63: None | G63: 0 | H63: N/A | J63: =IF(ISTEXT(K63),VALUE(IF(ISERROR(VALUE((MID(K63,LEN(K63)-1,1)))),0,MID(K63,LEN(K63)-1,1))&IF(ISERROR(VALUE(MID(K63,LEN(K63)-0,1))),0,MID(K63,LEN(K63)-0,1))),J64) -> 6 | K63: Medical6 | L63: MedInhale1 | M63: TRUE | N63: FALSE
B64: Partial Assist: The individual's inhalants, topicals, suppository regimen can be administered by the individual, but some aspects must be monitored or completed by another person.* | D64: Partial Assist | E64: N/A | F64: None | G64: 1 | H64: N/A | J64: =IF(ISTEXT(K64),VALUE(IF(ISERROR(VALUE((MID(K64,LEN(K64)-1,1)))),0,MID(K64,LEN(K64)-1,1))&IF(ISERROR(VALUE(MID(K64,LEN(K64)-0,1))),0,MID(K64,LEN(K64)-0,1))),J65) -> 6 | K64: Medical6 | L64: MedInhale2 | M64: FALSE | N64: FALSE
B65: Full Assist: The individual's inhalants, topicals, suppository regimen must be administered by another person.* *See individual indicators for a Nursing Assessment Referral | D65: Full Assist | E65: N/A | F65: None | G65: 2 | H65: N/A | J65: =IF(ISTEXT(K65),VALUE(IF(ISERROR(VALUE((MID(K65,LEN(K65)-1,1)))),0,MID(K65,LEN(K65)-1,1))&IF(ISERROR(VALUE(MID(K65,LEN(K65)-0,1))),0,MID(K65,LEN(K65)-0,1))),J66) -> 6 | K65: Medical6 | L65: MedInhale3 | M65: FALSE | N65: FALSE
A66: NOTES
A70: MEDICATION MANAGEMENT SUPPORTS - INJECTIONS
A71: =IF(INDEX('Raw Scoring'!R1:R18,MAX(J71:J77)+1)="Yes","2:1 Review","") -> 
B72: This section assesses the child's medication regimen administered by injecting a medication. Choose the option that most accurately reflects the supports required by the child. Do not record supports if the child's medication regimen does not include medications delivered by injection or if the child's injections are administered in a clinical setting.
B74: Independent or Age Appropriate Supports Provided: The individual does not have any medication administered by injection or self-administers medication, with or without provider support. | D74: Independent or Age Appropriate Supports Provided | E74: N/A | F74: None | G74: 0 | H74: N/A | J74: =IF(ISTEXT(K74),VALUE(IF(ISERROR(VALUE((MID(K74,LEN(K74)-1,1)))),0,MID(K74,LEN(K74)-1,1))&IF(ISERROR(VALUE(MID(K74,LEN(K74)-0,1))),0,MID(K74,LEN(K74)-0,1))),J75) -> 7 | K74: Medical7 | L74: MedInject1 | M74: TRUE | N74: FALSE
B75: Partial Assist: The individual administers their regimen of injection by themselves, but some aspects must be monitored or completed by another person. (e.g. insulin) * | D75: Partial Assist | E75: N/A | F75: None | G75: 3 | H75: N/A | J75: =IF(ISTEXT(K75),VALUE(IF(ISERROR(VALUE((MID(K75,LEN(K75)-1,1)))),0,MID(K75,LEN(K75)-1,1))&IF(ISERROR(VALUE(MID(K75,LEN(K75)-0,1))),0,MID(K75,LEN(K75)-0,1))),J76) -> 7 | K75: Medical7 | L75: MedInject2 | M75: FALSE | N75: FALSE
B76: Full Assist: The individual's regimen by injection is totally administered and monitored by another person. (e.g. insulin). * *See individual indicators for a Nursing Assessment Referral | D76: Full Assist | E76: N/A | F76: None | G76: 4 | H76: N/A | J76: =IF(ISTEXT(K76),VALUE(IF(ISERROR(VALUE((MID(K76,LEN(K76)-1,1)))),0,MID(K76,LEN(K76)-1,1))&IF(ISERROR(VALUE(MID(K76,LEN(K76)-0,1))),0,MID(K76,LEN(K76)-0,1))),J77) -> 7 | K76: Medical7 | L76: MedInject3 | M76: FALSE | N76: FALSE
A77: NOTES
A81: HEALTH MANAGEMENT SUPPORTS - GENERAL
A82: =IF(INDEX('Raw Scoring'!R1:R18,MAX(J82:J88)+1)="Yes","2:1 Review","") -> 
B83: This section assesses the child's ability to identify and self-direct their physical health supports. This includes their ability to assist with routine health care decisions and treatments that are not ADL or Medication Management Supports. Choose the option that most accurately reflects the supports required by the child.
B85: Independent or Age Appropriate Supports Provided: The child is under age 15, or the child can identify and communicate pain, discomfort or medical needs; access health care in the community independently and follow through with prescribed medication, treatments and dietary requirements. | D85: Independent or Age Appropriate Supports Provided | E85: N/A | F85: None | G85: 0 | H85: N/A | J85: =IF(ISTEXT(K85),VALUE(IF(ISERROR(VALUE((MID(K85,LEN(K85)-1,1)))),0,MID(K85,LEN(K85)-1,1))&IF(ISERROR(VALUE(MID(K85,LEN(K85)-0,1))),0,MID(K85,LEN(K85)-0,1))),J86) -> 8 | K85: Medical8 | L85: HealthSup1 | M85: TRUE | N85: FALSE
B86: Individual-Directed Care: The individual can fully self-direct or manage their care, even though the individual is not physically able to provide their own care. Care that may be individually directed includes physical care, medication administration, treatments and dietary requirements. | D86: Individual-Directed Care | E86: N/A | F86: None | G86: 0 | H86: N/A | J86: =IF(ISTEXT(K86),VALUE(IF(ISERROR(VALUE((MID(K86,LEN(K86)-1,1)))),0,MID(K86,LEN(K86)-1,1))&IF(ISERROR(VALUE(MID(K86,LEN(K86)-0,1))),0,MID(K86,LEN(K86)-0,1))),J87) -> 8 | K86: Medical8 | L86: HealthSup2 | M86: FALSE | N86: FALSE
B87: Partial Assist and Monitoring: The individual has difficulty recognizing or explaining if they are having pain, discomfort, and/or they require assistance with medication and routine medical/health care needs therefore requiring periodic or weekly monitoring. They may require assistance with implementation of medical interventions, treatments or dietary requirements. | D87: Partial Assist and Monitoring | E87: N/A | F87: None | G87: 0 | H87: N/A | J87: =IF(ISTEXT(K87),VALUE(IF(ISERROR(VALUE((MID(K87,LEN(K87)-1,1)))),0,MID(K87,LEN(K87)-1,1))&IF(ISERROR(VALUE(MID(K87,LEN(K87)-0,1))),0,MID(K87,LEN(K87)-0,1))),J88) -> 8 | K87: Medical8 | L87: HealthSup3 | M87: FALSE | N87: FALSE
B88: Full Assist: The individual's health care is managed through a community health care team, which may include the individual's provider and health care professionals such as primary care physicians, dentist, dietician and psychiatrist. The individual is not able to explain their health care needs or implement the care plan as outlined by the physician, and has current routine medical/health care order(s) that require daily monitoring and assistance to implement medical interventions, treatments and dietary requirements. * *See individual indicators for a Nursing Assessment Referral | D88: Full Assist | E88: N/A | F88: None | G88: 2 | H88: N/A | J88: =IF(ISTEXT(K88),VALUE(IF(ISERROR(VALUE((MID(K88,LEN(K88)-1,1)))),0,MID(K88,LEN(K88)-1,1))&IF(ISERROR(VALUE(MID(K88,LEN(K88)-0,1))),0,MID(K88,LEN(K88)-0,1))),J89) -> 8 | K88: Medical8 | L88: HealthSup4 | M88: FALSE | N88: FALSE
A89: NOTES
A93: COMPLEX HEALTH MANAGEMENT SUPPORTS
A94: =IF(INDEX('Raw Scoring'!R1:R18,MAX(J94:J100)+1)="Yes","2:1 Review","") -> 
B95: This section assesses the child's ability to self-direct their medical care, intervention or treatment needs for complex medical condition(s) which impact all aspects of their care. This section also assesses the individual's ability to assist with, explain and recognize their need for medical care, interventions or treatments for their complex condition(s). Choose the option that most accurately reflects the supports required by the child.
B97: Not Applicable: The individual does not have complex medical conditions. | D97: Not Applicable | E97: No | F97: None | G97: 0 | H97: HealthCmplx2to1- | J97: =IF(ISTEXT(K97),VALUE(IF(ISERROR(VALUE((MID(K97,LEN(K97)-1,1)))),0,MID(K97,LEN(K97)-1,1))&IF(ISERROR(VALUE(MID(K97,LEN(K97)-0,1))),0,MID(K97,LEN(K97)-0,1))),J98) -> 9 | K97: Medical9 | L97: HealthCmplx1 | M97: TRUE | N97: FALSE
B98: Independent: The individual can identify and communicate pain, discomfort and/or complex nursing and medical needs; access health care in the community independently and follow through with prescribed medication and treatment plan and dietary requirements. Their health care needs are stable and predictable. | D98: Independent | E98: No | F98: None | G98: 0 | H98: HealthCmplx2to1- | J98: 9 | K98: Medical9 | L98: HealthCmplx2 | M98: FALSE | N98: FALSE
B99: Individual-Directed Care: The individual can fully self-direct or manage their complex medical condition even though they are not physically able to perform the care. Care that may be directed by the individual includes necessary medical care, medications, treatments, activities of daily living, nutrition and nursing interventions. Their health care needs are stable and predictable. | D99: Individual-Directed Care | E99: No | F99: None | G99: 1 | H99: HealthCmplx2to1- | J99: 9 | K99: Medical9 | L99: HealthCmplx3 | M99: FALSE | N99: FALSE
B100: Partial Assist - weekly: The individual has difficulty explaining and does not recognize the need for care, intervention or treatments for their condition(s). They require monitoring and direct assistance throughout the week by another person to provide their necessary medical care. Their health care needs are stable and predictable.* | D100: Partial Assist - weekly | E100: No | F100: None | G100: 2 | H100: HealthCmplx2to1+ | J100: 9 | K100: Medical9 | L100: HealthCmplx4 | M100: FALSE | N100: FALSE
B101: Partial Assist - 1 to 3 per day: The individual has difficulty explaining and does not recognize the need for care, intervention or treatments for their condition(s). They require monitoring and direct assistance 1 to 3 times throughout the day by another person to provide their necessary medical care. Their health care needs are stable and predictable. * | D101: Partial Assist - 1 to 3 per day | E101: No | F101: None | G101: 3 | H101: HealthCmplx2to1+ | J101: 9 | K101: Medical9 | L101: HealthCmplx5 | M101: FALSE | N101: FALSE
B102: Full Assist - more than 3 per day: The individual is unable to explain or does not recognize the need for care, intervention or treatments for their condition(s). They require frequent monitoring and direct assistance more than 3 times throughout the day by another person to provide the necessary medical care. Their health care needs are stable and predictable.* | D102: Full Assist - more than 3 per day | E102: No | F102: None | G102: 4 | H102: HealthCmplx2to1+ | J102: 9 | K102: Medical9 | L102: HealthCmplx6 | M102: FALSE | N102: FALSE
B103: Full Assistance and Monitoring - exclusive focus: The individual is unable to communicate or recognize the need for care, intervention or treatments for their condition(s). They require exclusive focus by another person for continuous observation and physical assessment throughout the day to provide necessary medical care, medications, treatments, activities of daily living, nutrition and nursing interventions. This individual requires the establishment of the nursing process to outline treatment plans and establish parameters of care. Their medical condition is unstable. * * See individual indicators for a Nursing Assessment Referral *** OIS training may be required. | D103: Full Assistance and Monitoring - exclusive focus | E103: No | F103: None | G103: 5 | H103: HealthCmplx2to1+ | J103: 9 | K103: Medical9 | L103: HealthCmplx7 | M103: FALSE | N103: FALSE
B104: Two-Person Assist: Mark this box when the individual has planned medical treatments that require exclusive focus with physical intervention by 2 people to complete the treatments that assure the health and safety of the individual between the hours of 5 A.M. and 10 P.M. * & *** | D104: Two-Person Assist | E104: Yes | F104: None | G104: N/A | H104: N/A | I104: Medical9. | J104: 9 | K104: Medical9 | L104: HealthCmplx2to1 | M104: FALSE | N104: FALSE
A105: NOTES
D107: ** Old, unused "Nursing" section removed! ** | K107: Medical10
A109: EQUIPMENT
B111: This section records the individual's use of equipment essential to the individual. Check the boxes for equipment used by the individual.
G112: (Max of…)
B113: Not applicable: The individual does not use any of the equipment listed below. | D113: Not Applicable | E113: N/A | G113: 0 | K113: Medical11 | L113: Mobility1 | M113: TRUE | N113: FALSE
B114: Cane | D114: =TRIM(B114) -> Cane | E114: N/A | G114: 0 | K114: Medical11 | L114: Mobility2 | M114: FALSE | N114: FALSE
B115: Leg braces | D115: =TRIM(B115) -> Leg braces | E115: N/A | G115: 2 | K115: Medical11 | L115: Mobility3 | M115: FALSE | N115: FALSE
B116: Walker | D116: Walker | E116: N/A | G116: 0 | K116: Medical11 | L116: Mobility4 | M116: FALSE | N116: FALSE
B117: Ankle or foot orthotics | D117: Ankle or foot orthotics | E117: N/A | G117: 2 | K117: Medical11 | L117: Mobility5 | M117: FALSE | N117: FALSE
B118: Arm splints | D118: Arm splints | E118: N/A | G118: 2 | K118: Medical11 | L118: Mobility6 | M118: FALSE | N118: FALSE
B119: Adaptive eating equipment (not tube feeding equipment) | D119: Adaptive eating equipment | E119: N/A | G119: 1 | K119: Medical11 | L119: Mobility7 | M119: FALSE | N119: FALSE
B121: Not applicable: The individual does not use any of the equipment listed below. | D121: Not Applicable | E121: N/A | G121: 0 | K121: Medical12 | L121: Bed1 | M121: TRUE | N121: FALSE
B122: Hospital bed | D122: =TRIM(B122) -> Hospital bed | E122: N/A | G122: 1 | K122: Medical12 | L122: Bed2 | M122: FALSE | N122: FALSE
B123: Grab bars by bed | D123: Grab bars by bed | E123: N/A | G123: 1 | K123: Medical12 | L123: Bed3 | M123: FALSE | N123: FALSE
B124: Hanging bar above bed | D124: Hanging bar above bed | E124: N/A | G124: 1 | K124: Medical12 | L124: Bed4 | M124: FALSE | N124: FALSE
B126: Not applicable: The individual does not use any of the equipment listed below. | D126: Not Applicable | E126: N/A | G126: 0 | K126: Medical13 | L126: Bath1 | M126: TRUE | N126: FALSE
B127: Shower chair | D127: =TRIM(B127) -> Shower chair | E127: N/A | G127: 1 | K127: Medical13 | L127: Bath2 | M127: FALSE | N127: FALSE
B128: Grab bars in bathroom | D128: Grab bars in bathroom | E128: N/A | G128: 3 | K128: Medical13 | L128: Bath3 | M128: FALSE | N128: FALSE
B129: Shower gurney | D129: Shower gurney | E129: N/A | G129: 4 | K129: Medical13 | L129: Bath4 | M129: FALSE | N129: FALSE
B131: Not applicable: The individual does not use any of the equipment listed below. | D131: Not Applicable | E131: N/A | G131: 0 | K131: Medical14 | L131: Comm1 | M131: TRUE | N131: FALSE
B132: Non-electronic communication boards | D132: =TRIM(B132) -> Non-electronic communication boards | E132: N/A | G132: 2 | K132: Medical14 | L132: Comm2 | M132: FALSE | N132: FALSE
B133: Electronic communication boards | D133: Electronic communication boards | E133: N/A | G133: 2 | K133: Medical14 | L133: Comm3 | M133: FALSE | N133: FALSE
B135: Not applicable: The individual does not use any of the equipment listed below. | D135: Not Applicable | E135: N/A | G135: 0 | K135: Medical15 | L135: Transfer1 | M135: TRUE | N135: FALSE
B136: Hoyer lift | D136: =TRIM(B136) -> Hoyer lift | E136: N/A | G136: 3 | K136: Medical15 | L136: Transfer2 | M136: FALSE | N136: FALSE
B137: Transfer equipment (transfer board) | D137: Transfer equipment (transfer board) | E137: N/A | G137: 2 | K137: Medical15 | L137: Transfer3 | M137: FALSE | N137: FALSE
B139: Not applicable: The individual does not use any of the equipment listed below. | D139: Not Applicable | E139: N/A | G139: 0 | K139: Medical16 | L139: Motion1 | M139: TRUE | N139: FALSE
B140: Body jacket | D140: =TRIM(B140) -> Body jacket | E140: N/A | G140: 3 | K140: Medical16 | L140: Motion2 | M140: FALSE | N140: FALSE
B141: Manual wheel chair | D141: Manual wheel chair | E141: N/A | G141: 1 | K141: Medical16 | L141: Motion3 | M141: FALSE | N141: FALSE
B142: Electric power wheel chair | D142: Electric power wheel chair | E142: N/A | G142: 2 | K142: Medical16 | L142: Motion4 | M142: FALSE | N142: FALSE
B143: Prone stander | D143: Prone stander | E143: N/A | G143: 2 | K143: Medical16 | L143: Motion5 | M143: FALSE | N143: FALSE
B144: Sidelyer | D144: Sidelyer | E144: N/A | G144: 2 | K144: Medical16 | L144: Motion6 | M144: FALSE | N144: FALSE
B146: Not applicable: The individual does not use any of the equipment listed below. | D146: Not Applicable | E146: N/A | G146: 0 | K146: Medical17 | L146: Mechan1 | M146: TRUE | N146: FALSE
B147: Specialized tube feeding equipment* | D147: =SUBSTITUTE(TRIM(B147),"*","") -> Specialized tube feeding equipment | E147: N/A | G147: 4 | K147: Medical17 | L147: Mechan2 | M147: FALSE | N147: FALSE
B148: Nebulizer* | D148: =SUBSTITUTE(TRIM(B148),"*","") -> Nebulizer | E148: N/A | G148: 3 | K148: Medical17 | L148: Mechan3 | M148: FALSE | N148: FALSE
B149: C-PAP* | D149: C-PAP | E149: N/A | G149: 3 | K149: Medical17 | L149: Mechan4 | M149: FALSE | N149: FALSE
B150: Oxygen | D150: Oxygen | E150: N/A | G150: 3 | K150: Medical17 | L150: Mechan5 | M150: FALSE | N150: FALSE
B151: Ventilator | D151: Ventilator | E151: N/A | G151: 4 | K151: Medical17 | L151: Mechan6 | M151: FALSE | N151: FALSE
B152: Pulse oxymeter* | D152: Pulse oxymeter | E152: N/A | G152: 2 | K152: Medical17 | L152: Mechan7 | M152: FALSE | N152: FALSE
B153: Heart monitor* | D153: Heart monitor | E153: N/A | G153: 2 | K153: Medical17 | L153: Mechan8 | M153: FALSE | N153: FALSE
B154: Suctioning equipment | D154: Suctioning equipment | E154: N/A | G154: 4 | K154: Medical17 | L154: Mechan9 | M154: FALSE | N154: FALSE
B155: Vagus nerve stimulator (VNS) | D155: Vagus nerve stimulator (VNS) | E155: N/A | G155: 3 | K155: Medical17 | L155: Mechan10 | M155: FALSE | N155: FALSE
B156: Diabetic insulin pump | D156: Diabetic insulin pump | E156: N/A | G156: 3 | K156: Medical17 | L156: Mechan11 | M156: FALSE | N156: FALSE
B157: Baclofen pump | D157: Baclofen pump | E157: N/A | G157: 2 | K157: Medical17 | L157: Mechan12 | M157: FALSE | N157: FALSE
B158: Prosthetics | D158: Prosthetics | E158: N/A | G158: 1 | K158: Medical17 | L158: Mechan13 | M158: FALSE | N158: FALSE
B159: * See individual indicators for a Nursing Assessment Referral
A160: NOTES

Sheet Nursing Assessment Indicators

Sheet Nighttime Needs
D1: Support Need | E1: 2:1 Review? | F1: Documentation Needed | G1: Selection Value | H1: En/Dis-able Other | I1: Disabled By | J1: Group # | K1: Group | L1: Name | M1: Current State | N1: Mismatch Trace
B2: Rating selections must be applied in accordance with the “ANA/CNA Manual version 3”, available at http://www.dhs.state.or.us/spd/tools/dd/cm/
A3: NIGHTTIME NEEDS
A4: =IF(INDEX('Raw Scoring'!K1:K3,MAX(J4:J10)+1)="Yes","2:1 Review","") -> 
B5: This section assesses the child's need for disability related supports and monitoring during nighttime hours. Choose the option that most accurately reflects the supports required by the child due to the child's disability.
B7: Not Applicable | D7: Not Applicable | E7: No | F7: None | G7: 0 | H7: N/A | J7: =IF(ISTEXT(K7),VALUE(IF(ISERROR(VALUE((MID(K7,LEN(K7)-1,1)))),0,MID(K7,LEN(K7)-1,1))&IF(ISERROR(VALUE(MID(K7,LEN(K7)-0,1))),0,MID(K7,LEN(K7)-0,1))),J8) -> 1 | K7: Nighttime1 | L7: NightAst1 | M7: TRUE | N7: FALSE
B8: Independent: The child may or may not have difficulty sleeping but requires no assistance from another person during the hours of 10:00 P.M. and 5:00 A.M. | D8: Independent | E8: No | F8: None | G8: 0 | H8: N/A | J8: =IF(ISTEXT(K8),VALUE(IF(ISERROR(VALUE((MID(K8,LEN(K8)-1,1)))),0,MID(K8,LEN(K8)-1,1))&IF(ISERROR(VALUE(MID(K8,LEN(K8)-0,1))),0,MID(K8,LEN(K8)-0,1))),J9) -> 1 | K8: Nighttime1 | L8: NightAst2 | M8: FALSE | N8: FALSE
B9: Child Requires Nighttime Assistance - monthly: The child requires occasional monitoring or assistance throughout the month between the hours of 10:00 P.M. and 5:00 A.M. | D9: Nighttime Assist - monthly | E9: No | F9: None | G9: 0 | H9: N/A | J9: 1 | K9: Nighttime1 | L9: NightAst3 | M9: FALSE | N9: FALSE
B10: Child Requires Nighttime Assistance - weekly: The child requires occasional monitoring or assistance throughout the week between the hours of 10:00 P.M. and 5:00 A.M. | D10: Nighttime Assist - weekly | E10: No | F10: None | G10: 1 | H10: N/A | J10: 1 | K10: Nighttime1 | L10: NightAst4 | M10: FALSE | N10: FALSE
B11: Child Requires Nighttime Assistance - intermittent nightly: The child requires intermittent nightly assistance from another person 1 or more times per night between the hours of 10:00 P.M. and 5:00 A.M. | D11: Nighttime Assist - intermittent nightly | E11: No | F11: None | G11: 2 | H11: N/A | J11: 1 | K11: Nighttime1 | L11: NightAst5 | M11: FALSE | N11: FALSE
B12: Child Requires Nighttime Assistance - ongoing nightly: The child requires ongoing assistance from another person who must remain awake and available to respond between the hours of 10:00 P.M. and 5:00 A.M. | D12: Nighttime Assist - ongoing nightly | E12: No | F12: None | G12: 3 | H12: N/A | J12: 1 | K12: Nighttime1 | L12: NightAst6 | M12: FALSE | N12: FALSE
B13: Child Requires Nighttime Exclusive Focus: The child requires ongoing exclusive focus assistance from another person between the hours of 10:00 P.M. and 5:00 A.M. Exclusive focus means that the caregiver must remain awake and provide close monitoring and assistance throughout the night. | D13: Nighttime 1:1 Assist | E13: No | F13: None | G13: 4 | H13: N/A | J13: 1 | K13: Nighttime1 | L13: NightAst7 | M13: FALSE | N13: FALSE
B14: Child Requires Nighttime 2:1 Assistance: The child requires ongoing exclusive focus assistance from 2 people between the hours of 10:00 P.M. and 5:00 A.M. Assistance can include prompting, physical assistance, repositioning and implementation of medical treatments. | D14: Nighttime 2:1 Assist | E14: Yes | F14: None | G14: 4 | H14: N/A | J14: 1 | K14: Nighttime1 | L14: NightAst8 | M14: FALSE | N14: FALSE
A15: NOTES

Sheet Social and Behavioral Needs
D1: Support Need | E1: No | F1: Documentation Needed | G1: Selection Value | H1: En/Dis-able Other | I1: Disabled By | J1: Group # | K1: Group | L1: Name | M1: Current State | N1: Mismatch Trace
B2: Rating selections must be applied in accordance with the “ANA/CNA Manual version 3”, available at http://www.dhs.state.or.us/spd/tools/dd/cm/
A3: BEHAVIORAL SUPPORTS - NO FORMAL PLAN - SUPERVISON AND MONITORING
B4: Supervision and monitoring for behavior and mental health
A5: =IF(INDEX('Raw Scoring'!Y1:Y6,MAX(J5:J11)+1)="Yes","2:1 Review","") -> 
B6: This section assesses the child's ability to function in a home and community environment with behavioral supports from another person to maintain safety of self and/or others. These behaviors do not require a formal behavior support plan and are not addressed in a formal BSP. Choose the option that most accurately reflects the behavior supports required by the child. Do not record supervision needed to address non-behavioral safety or health issues. Check an option only if supports are needed due to the child's disability.
B8: Not Applicable or Age-Appropriate Supervision: The child does not require supervision or monitoring from another person for behavioral issues or, for a child, age-appropriate supervision or monitoring is provided. | D8: Not Applicable or Age-Appropriate Supervision | E8: N/A | F8: None | G8: 0 | H8: N/A | J8: =IF(ISTEXT(K8),VALUE(IF(ISERROR(VALUE((MID(K8,LEN(K8)-1,1)))),0,MID(K8,LEN(K8)-1,1))&IF(ISERROR(VALUE(MID(K8,LEN(K8)-0,1))),0,MID(K8,LEN(K8)-0,1))),J9) -> 1 | K8: Behavior1 | L8: BehavMin1 | M8: TRUE | N8: FALSE
B9: Redirecting: The child has a transition plan, ISP or mental health guidelines that require redirection during waking hours, to assure the safety of the child. This behavior does not require a formal behavior support plan and is not addressed in any formal BSP. | D9: Redirecting | E9: N/A | F9: None | G9: 1 | H9: N/A | J9: =IF(ISTEXT(K9),VALUE(IF(ISERROR(VALUE((MID(K9,LEN(K9)-1,1)))),0,MID(K9,LEN(K9)-1,1))&IF(ISERROR(VALUE(MID(K9,LEN(K9)-0,1))),0,MID(K9,LEN(K9)-0,1))),J10) -> 1 | K9: Behavior1 | L9: BehavMin2 | M9: FALSE | N9: FALSE
B10: Within Hearing or Visual Distance: The child has a transition plan, ISP or mental health guidelines that require supervision for safety, within hearing distance or visual range, during waking hours. This behavior does not require a formal behavior support plan and is not addressed in any formal BSP. | D10: Within Hearing or Visual Distance | E10: N/A | F10: None | G10: 2 | H10: N/A | J10: =IF(ISTEXT(K10),VALUE(IF(ISERROR(VALUE((MID(K10,LEN(K10)-1,1)))),0,MID(K10,LEN(K10)-1,1))&IF(ISERROR(VALUE(MID(K10,LEN(K10)-0,1))),0,MID(K10,LEN(K10)-0,1))),J11) -> 1 | K10: Behavior1 | L10: BehavMin3 | M10: FALSE | N10: FALSE
B11: Within Hearing and Visual Distance: The child has a transition plan, ISP or mental health guidelines requiring visual range and hearing distance supervision during waking hours. This behavior does not require a formal behavior support plan and is not addressed in any formal BSP. | D11: Within Hearing and Visual Distance | E11: N/A | F11: None | G11: 3 | H11: N/A | J11: =IF(ISTEXT(K11),VALUE(IF(ISERROR(VALUE((MID(K11,LEN(K11)-1,1)))),0,MID(K11,LEN(K11)-1,1))&IF(ISERROR(VALUE(MID(K11,LEN(K11)-0,1))),0,MID(K11,LEN(K11)-0,1))),J12) -> 1 | K11: Behavior1 | L11: BehavMin4 | M11: FALSE | N11: FALSE
A12: NOTES
A16: BEHAVIORAL SUPPORTS - PLANS - HOME AND COMMUNITY
B17: Supervision, monitoring and plans for behavior and mental health
A18: =IF(INDEX('Raw Scoring'!Y1:Y6,MAX(J18:J24)+1)="Yes","2:1 Review","") -> 
B19: This section assesses the child's ability to function in a home and community environment with behavioral supports and intervention from another person to maintain safety of self and/or others. Choose the option that most accurately reflects the supports required by the child.
B21: Not Applicable: The child does not have behavioral or mental health needs that require a plan. | D21: Not Applicable | E21: N/A | F21: None | G21: 0 | H21: N/A | J21: =IF(ISTEXT(K21),VALUE(IF(ISERROR(VALUE((MID(K21,LEN(K21)-1,1)))),0,MID(K21,LEN(K21)-1,1))&IF(ISERROR(VALUE(MID(K21,LEN(K21)-0,1))),0,MID(K21,LEN(K21)-0,1))),J22) -> 2 | K21: Behavior2 | L21: BehavFormal1 | M21: TRUE | N21: FALSE
B22: Behavior Plan - No Physical Interventions: The child has a behavior support need that requires a formal behavior plan, which does not include physical intervention(s). ** | D22: Behavior Plan - No Physical Interventions | E22: N/A | F22: None | G22: 1 | H22: N/A | J22: =IF(ISTEXT(K22),VALUE(IF(ISERROR(VALUE((MID(K22,LEN(K22)-1,1)))),0,MID(K22,LEN(K22)-1,1))&IF(ISERROR(VALUE(MID(K22,LEN(K22)-0,1))),0,MID(K22,LEN(K22)-0,1))),J23) -> 2 | K22: Behavior2 | L22: BehavFormal2 | M22: FALSE | N22: FALSE
B23: Behavior Plan: The child has a behavior support need that requires a formal behavior plan, which does include physical intervention(s). ** &*** | D23: Behavior Plan - Physical Interventions | E23: N/A | F23: None | G23: 2 | H23: N/A | J23: =IF(ISTEXT(K23),VALUE(IF(ISERROR(VALUE((MID(K23,LEN(K23)-1,1)))),0,MID(K23,LEN(K23)-1,1))&IF(ISERROR(VALUE(MID(K23,LEN(K23)-0,1))),0,MID(K23,LEN(K23)-0,1))),J24) -> 2 | K23: Behavior2 | L23: BehavFormal3 | M23: FALSE | N23: FALSE
B24: Mental Health Plan: The child has a mental health support need that requires mental health guidelines written by a mental health professional. The mental health plan may include a crisis response plan. *** If you check any questions in the behavioral section marked with a ** then the ISP team must meet and discuss the necessity of a functional assessment (FA) and/or a formal behavior support plan. *** OIS training is required for all paid providers. | D24: Mental Health Plan | E24: N/A | F24: None | G24: 3 | H24: N/A | J24: =IF(ISTEXT(K24),VALUE(IF(ISERROR(VALUE((MID(K24,LEN(K24)-1,1)))),0,MID(K24,LEN(K24)-1,1))&IF(ISERROR(VALUE(MID(K24,LEN(K24)-0,1))),0,MID(K24,LEN(K24)-0,1))),J25) -> 2 | K24: Behavior2 | L24: BehavFormal4 | M24: FALSE | N24: FALSE
A25: NOTES
A29: BEHAVIORAL SUPPORTS - SUPERVISON - HOME
B30: Supervision and monitoring for behavior, mental health or legally mandated supervision in the home environment.
A31: =IF(INDEX('Raw Scoring'!Y1:Y6,MAX(J31:J37)+1)="Yes","2:1 Review","") -> 
B32: This section assesses the child's ability to function in the home with supports and interventions from another person to maintain safety of self and/or others. Choose the option that most accurately reflects the behavior supports required by the child. Do not record supervision needed to address non-behavioral safety or health issues. Check an option only if supports are needed due to the child's disability.
B34: Not Applicable or Age-Appropriate Supervision: The child does not require supervision or monitoring from another person for behavioral issues or, for a child, age-appropriate supervision or monitoring is provided. | D34: Not Applicable or Age-Appropriate Supervision | E34: N/A | F34: None | G34: 0 | H34: N/A | J34: =IF(ISTEXT(K34),VALUE(IF(ISERROR(VALUE((MID(K34,LEN(K34)-1,1)))),0,MID(K34,LEN(K34)-1,1))&IF(ISERROR(VALUE(MID(K34,LEN(K34)-0,1))),0,MID(K34,LEN(K34)-0,1))),J35) -> 3 | K34: Behavior3 | L34: BehavPlan1 | M34: TRUE | N34: FALSE
B35: Redirecting: The child has or needs a formal behavior plan, a legal order, or mental health guidelines that require redirection during waking hours, to assure the safety of the child. ** | D35: Redirecting | E35: N/A | F35: None | G35: 1 | H35: N/A | J35: =IF(ISTEXT(K35),VALUE(IF(ISERROR(VALUE((MID(K35,LEN(K35)-1,1)))),0,MID(K35,LEN(K35)-1,1))&IF(ISERROR(VALUE(MID(K35,LEN(K35)-0,1))),0,MID(K35,LEN(K35)-0,1))),J36) -> 3 | K35: Behavior3 | L35: BehavPlan2 | M35: FALSE | N35: FALSE
B36: Within Hearing or Visual Distance: The child has or needs a formal behavior plan, a legal order, or mental health guidelines that require supervision of the child to be within hearing or visual distance. ** | D36: Within Hearing or Visual Distance | E36: N/A | F36: None | G36: 2 | H36: N/A | J36: =IF(ISTEXT(K36),VALUE(IF(ISERROR(VALUE((MID(K36,LEN(K36)-1,1)))),0,MID(K36,LEN(K36)-1,1))&IF(ISERROR(VALUE(MID(K36,LEN(K36)-0,1))),0,MID(K36,LEN(K36)-0,1))),J37) -> 3 | K36: Behavior3 | L36: BehavPlan3 | M36: FALSE | N36: FALSE
B37: Within Hearing and Visual Distance: The child has or needs a formal behavior plan, a legal order, or mental health guidelines that require supervision of the child to be within hearing and visual distance. ** If you check any questions in the behavioral section marked with a ** and the child has or needs a formal behavior plan, then a functional assessment (FA) must be completed and a formal behavior support plan must be developed, if indicated by the FA. | D37: Within Hearing and Visual Distance | E37: N/A | F37: None | G37: 3 | H37: N/A | J37: =IF(ISTEXT(K37),VALUE(IF(ISERROR(VALUE((MID(K37,LEN(K37)-1,1)))),0,MID(K37,LEN(K37)-1,1))&IF(ISERROR(VALUE(MID(K37,LEN(K37)-0,1))),0,MID(K37,LEN(K37)-0,1))),J38) -> 3 | K37: Behavior3 | L37: BehavPlan4 | M37: FALSE | N37: FALSE
A38: NOTES
A42: BEHAVIORAL SUPPORTS - SUPERVISION - HOME - EXCLUSIVE FOCUS
B43: Supervision and monitoring for behavior, mental health or legally mandated supervision in the home environment.
A44: =IF(INDEX('Raw Scoring'!Y1:Y6,MAX(J44:J50)+1)="Yes","2:1 Review","") -> 
B45: This section assesses the child’s need for supervision and monitoring requiring the “exclusive focus” of a caregiver to maintain safety of self and/or others. Exclusive focus means that the caregiver must provide complete and uninterrupted attention to the child to the degree that no other task can completed while the caregiver is responsible for the supervision of the child including supervision of other children or adults requiring care, household tasks, or personal social or recreational activity. The need for exclusive focus supervision and monitoring must be based on a pattern of behavior that either a) has resulted in injury to the child or others that required professional medical attention; or b) presents a direct and significant risk of injury severe enough to require professional medical attention. NOTE REQUIRED: If Exclusive Focus hours are recorded in this section, the type of behavior(s), history of injury, and frequency/duration of episodes of behavior of an intensity likely to result in injury must be recorded in the notes field. Choose the option that most accurately reflects the behavior supports required by the child. Do not record supervision needed to address non-behavioral safety or health issues. Check an option only if supports are needed due to the child's disability.
B47: Not Applicable: The child does not require Exclusive Focus or two-on-one supervision in the home. | D47: Not Applicable | E47: No | F47: None | G47: 0 | H47: InHome2to1- | J47: =IF(ISTEXT(K47),VALUE(IF(ISERROR(VALUE((MID(K47,LEN(K47)-1,1)))),0,MID(K47,LEN(K47)-1,1))&IF(ISERROR(VALUE(MID(K47,LEN(K47)-0,1))),0,MID(K47,LEN(K47)-0,1))),J48) -> 4 | K47: Behavior4 | L47: BehavInHome1 | M47: TRUE | N47: FALSE
B48: Exclusive Focus - 2: The child has or needs a formal behavior plan, has a legal order or mental health guidelines that require "exclusive focus" supervision. A caregiver must maintain an exclusive focus on the child between the hours of 5:00 A.M. and 10:00 P.M. up to 2 hours a day. ** See nighttime section for hours between 10:00 P.M. and 5:00 A.M. Documentation of caregivers' schedule and duties is required. | D48: Exclusive Focus - 2 | E48: No | F48: None | G48: 1 | H48: InHome2to1+ | J48: 4 | K48: Behavior4 | L48: BehavInHome2 | M48: FALSE | N48: FALSE
B49: Exclusive Focus - 4: The child has or needs a formal behavior plan, has a legal order or mental health guidelines that require "exclusive focus" supervision. A caregiver must maintain an exclusive focus on the child between the hours of 5:00 A.M. and 10:00 P.M. up to 4 hours a day. ** See nighttime section for hours between 10:00 P.M. and 5:00 A.M. Documentation of caregivers' schedule and duties is required. | D49: Exclusive Focus - 4 | E49: No | F49: None | G49: 2 | H49: InHome2to1+ | J49: 4 | K49: Behavior4 | L49: BehavInHome3 | M49: FALSE | N49: FALSE
B50: Exclusive Focus - 6: The child has or needs a formal behavior plan, has a legal order or mental health guidelines that require "exclusive focus" supervision. A caregiver must maintain an exclusive focus on the child between the hours of 5:00 A.M. and 10:00 P.M. up to 6 hours a day. ** See nighttime section for hours between 10:00 P.M. and 5:00 A.M. Documentation of caregivers' schedule and duties is required. | D50: Exclusive Focus - 6 | E50: No | F50: None | G50: 3 | H50: InHome2to1+ | J50: 4 | K50: Behavior4 | L50: BehavInHome4 | M50: FALSE | N50: FALSE
B51: Exclusive Focus - 8: The child has or needs a formal behavior plan, has a legal order or mental health guidelines that require "exclusive focus" supervision. A caregiver must maintain an exclusive focus on the child between the hours of 5:00 A.M. and 10:00 P.M. up to 8 hours a day. ** See nighttime section for hours between 10:00 P.M. and 5:00 A.M. Documentation of caregivers' schedule and duties is required. | D51: Exclusive Focus - 8 | E51: No | F51: None | G51: 4 | H51: InHome2to1+ | J51: 4 | K51: Behavior4 | L51: BehavInHome5 | M51: FALSE | N51: FALSE
B52: Exclusive Focus - 10: The child has or needs a formal behavior plan, has a legal order or mental health guidelines that require "exclusive focus" supervision. A caregiver must maintain an exclusive focus on the child between the hours of 5:00 A.M. and 10:00 P.M. up to 10 hours a day. ** See nighttime section for hours between 10:00 P.M. and 5:00 A.M. Documentation of caregivers' schedule and duties is required. | D52: Exclusive Focus - 10 | E52: No | F52: None | G52: 5 | H52: InHome2to1+ | J52: 4 | K52: Behavior4 | L52: BehavInHome6 | M52: FALSE | N52: FALSE
B53: Exclusive Focus - 12: The child has or needs a formal behavior plan, has a legal order or mental health guidelines that require "exclusive focus" supervision. A caregiver must maintain an exclusive focus on the child between the hours of 5:00 A.M. and 10:00 P.M. up to 12 hours a day. ** See nighttime section for hours between 10:00 P.M. and 5:00 A.M. Documentation of caregivers' schedule and duties is required. | D53: Exclusive Focus - 12 | E53: No | F53: None | G53: 6 | H53: InHome2to1+ | J53: 4 | K53: Behavior4 | L53: BehavInHome7 | M53: FALSE | N53: FALSE
B54: Two-Person Assist: The child has or needs a formal behavior plan, has a legal order or mental health guidelines that require 2:1 exclusive focus on the child between the hours of 5:00 A.M. and 10:00 P.M. ** See nighttime section for hours between 10:00 P.M. and 5:00 A.M. Documentation of Caregivers' schedule and duties is required. If you check any questions in the behavioral section marked with a ** and the child has or needs a formal behavior plan, then a functional assessment (FA) must be completed and a formal behavior support plan must be developed, if indicated by the FA. | D54: Two-Person Assist | E54: Yes | F54: None | G54: N/A | H54: N/A | I54: Behavior4. | J54: 4 | K54: Behavior4 | L54: InHome2to1 | M54: FALSE | N54: FALSE
A55: NOTES
A59: BEHAVIORAL SUPPORTS - SUPERVISION - COMMUNITY
B60: Supervision and monitoring for behavior, mental health or legally mandated supervision in the community.
A61: =IF(INDEX('Raw Scoring'!Y1:Y6,MAX(J61:J67)+1)="Yes","2:1 Review","") -> 
B62: This section assesses the child's ability to function in the community with supports and interventions from another person to maintain safety of self and/or others. Choose the option that most accurately reflects the behavior supports required by the child. Do not record supervision needed to address non-behavioral safety or health issues. Check an option only if supports are needed due to the child's disability.
B64: Not Applicable: The child does not require supervision or monitoring from another person for behavioral issues in the community. | D64: Not Applicable | E64: No | F64: None | G64: 0 | H64: Cmty2to1- | J64: =IF(ISTEXT(K64),VALUE(IF(ISERROR(VALUE((MID(K64,LEN(K64)-1,1)))),0,MID(K64,LEN(K64)-1,1))&IF(ISERROR(VALUE(MID(K64,LEN(K64)-0,1))),0,MID(K64,LEN(K64)-0,1))),J65) -> 5 | K64: Behavior5 | L64: BehavCmty1 | M64: TRUE | N64: FALSE
B65: Within Hearing or Visual Distance: The child has or needs a formal behavior plan, legal order, or mental health guidelines that require supervision of the child to be within hearing or visual distance while in the community. ** | D65: Within Hearing or Visual Distance | E65: No | F65: None | G65: 3 | H65: Cmty2to1+ | J65: =IF(ISTEXT(K65),VALUE(IF(ISERROR(VALUE((MID(K65,LEN(K65)-1,1)))),0,MID(K65,LEN(K65)-1,1))&IF(ISERROR(VALUE(MID(K65,LEN(K65)-0,1))),0,MID(K65,LEN(K65)-0,1))),J66) -> 5 | K65: Behavior5 | L65: BehavCmty2 | M65: FALSE | N65: FALSE
B66: Within Hearing and Visual Distance: The child has or needs a formal behavior plan, legal order, or mental health guidelines that require supervision of the child to be within hearing and visual distance while in the community. ** | D66: Within Hearing and Visual Distance | E66: No | F66: None | G66: 4 | H66: Cmty2to1+ | J66: =IF(ISTEXT(K66),VALUE(IF(ISERROR(VALUE((MID(K66,LEN(K66)-1,1)))),0,MID(K66,LEN(K66)-1,1))&IF(ISERROR(VALUE(MID(K66,LEN(K66)-0,1))),0,MID(K66,LEN(K66)-0,1))),J67) -> 5 | K66: Behavior5 | L66: BehavCmty3 | M66: FALSE | N66: FALSE
B67: Exclusive Focus: The child has or needs a formal behavior plan, has a legal order or mental health guidelines that require exclusive focus supervision in the community. A caregiver must maintain an exclusive focus on the child while in the community. ** See nighttime section for hours between 10:00 P.M. and 5:00 A.M. Documentation of caregivers' schedule and duties is required. | D67: Exclusive Focus | E67: No | F67: None | G67: 4 | H67: Cmty2to1+ | J67: =IF(ISTEXT(K67),VALUE(IF(ISERROR(VALUE((MID(K67,LEN(K67)-1,1)))),0,MID(K67,LEN(K67)-1,1))&IF(ISERROR(VALUE(MID(K67,LEN(K67)-0,1))),0,MID(K67,LEN(K67)-0,1))),J68) -> 5 | K67: Behavior5 | L67: BehavCmty4 | M67: FALSE | N67: FALSE
B68: Two-Person Assist: The child has or needs a formal behavior plan, has a legal order or mental health guidelines that require 2:1 exclusive focus on the child while in the community. ** See nighttime section for hours between 10:00 P.M. and 5:00 A.M. Documentation of caregivers' schedule and duties is required. If you check any questions in the behavioral section marked with a * then the ISP team must meet and discuss the necessity of a functional assessment (FA) and/or a formal behavior support plan. | D68: Two-Person Assist | E68: Yes | F68: None | G68: N/A | H68: N/A | I68: Behavior5. | J68: =IF(ISTEXT(K68),VALUE(IF(ISERROR(VALUE((MID(K68,LEN(K68)-1,1)))),0,MID(K68,LEN(K68)-1,1))&IF(ISERROR(VALUE(MID(K68,LEN(K68)-0,1))),0,MID(K68,LEN(K68)-0,1))),J69) -> 5 | K68: Behavior5 | L68: Cmty2to1 | M68: FALSE | N68: FALSE
A69: NOTES

Sheet Enhanced or Exceptional
D1: Support Need | E1: 2:1 Review? | F1: Documentation Needed | G1: Selection Value | H1: En/Dis-able Other | I1: Disabled By | J1: Group # | K1: Group | L1: Name | M1: Current State | N1: Mismatch Trace
B2: Rating selections must be applied in accordance with “Enhanced/Exceptional Insert to the ANA/CNA Manual version 3”, available at http://www.dhs.state.or.us/spd/tools/dd/cm/
A3: ENHANCED or EXCEPTIONAL NEEDS
B6: Nursing Tasks: check the box for all nursing tasks for which the individual requires physical assistance from a caregiver. Do not include tasks that the individual completes independently and for which the individual requires only monitoring, reminders or cuing. Do not include tasks which are performed in a clinical setting by professional staff or which are performed by home health nurse.
B8: Ventilator -- Mechanical ventilation monitoring and care (does not include CPAP/BiPAP). | G8: 4 | K8: EE_Nursing1 | L8: Ventilator1 | M8: FALSE | N8: FALSE
B9: CPAP/BiPAP -- Individual requires daily assistance and monitoring use of CPAP or BiPAP. | G9: 2 | K9: EE_Nursing1 | L9: CPAP2 | M9: FALSE | N9: FALSE
B10: Oxygen -- Administration and monitoring of oxygen on a daily or near daily basis. | G10: 1 | K10: EE_Nursing1 | L10: Oxygen3 | M10: FALSE | N10: FALSE
B11: Extensive respiratory treatment - respiratory treatment, one or more times daily, such as: chest percussion (including use of percussion vest), postural drainage, nebulizer or tracheal aerosol therapy. Do not include use of inhaler(s), oxygen or suctioning. | G11: 2 | K11: EE_Nursing1 | L11: Resp4 | M11: FALSE | N11: FALSE
B12: Tracheotomy care - includes maintenance/cuff inflation. | G12: 2 | K12: EE_Nursing1 | L12: Trach5 | M12: FALSE | N12: FALSE
B13: Suctioning airway, tracheal or nasopharyngeal suctioning one or more times daily to prevent aspiration. Do not check when suctioning is limited to the oral cavity. | G13: 2 | K13: EE_Nursing1 | L13: Suction6 | M13: FALSE | N13: FALSE
B14: Stoma care -- includes cleansing and dressing changes at the opening where the tube (e.g. tracheostomy, colostomy, gastrostomy or urostomy) enter the body. | G14: 1 | K14: EE_Nursing1 | L14: Stoma7 | M14: FALSE | N14: FALSE
B15: Tube feeding -- Feedings administered via nasogastric, gastrostomy or jejunostomy tube one or more times every day. | G15: 2 | K15: EE_Nursing1 | L15: FeedingTube8 | M15: FALSE | N15: FALSE
B16: Diabetes management which includes all of the following components: daily blood glucose testing and administration of sliding scale insulin by the caregiver and management of diabetic diet. | G16: 1 | K16: EE_Nursing1 | L16: Diabetes9 | M16: FALSE | N16: FALSE
B17: Central Line, Intravenous (IV) injections/infusions; and/or daily intramuscular or subcutaneous injections -- include only those injections/infusions administered by a caregiver. Do not include injections/infusions administered by a medical professional in a clinical setting or providing support through a hospice or outpatient program. | G17: 2 | K17: EE_Nursing1 | L17: Injection10 | M17: FALSE | N17: FALSE
B18: Dialysis -- peritoneal dialysis or hemodialysis administered by the caregiver in the home. Do not include dialysis treatments administered in a clinical setting. | G18: 3 | K18: EE_Nursing1 | L18: Dialysis11 | M18: FALSE | N18: FALSE
B19: Shunt (cerebral) -- Includes daily documented neuro-checks. | G19: 2 | K19: EE_Nursing1 | L19: Shunt12 | M19: FALSE | N19: FALSE
B20: Vital sign monitoring (temperature, respiration, heart rate and blood pressure) one or more times per day when results are recorded as ordered by the primary care provider. Do not include monitoring that does not include documentation of results or was not ordered by the primary care provider. | G20: 1 | K20: EE_Nursing1 | L20: VitalSigns13 | M20: FALSE | N20: FALSE
B21: Seizure interventions (treatments) required on 2 or more days per month, not including scheduled medications. Count only medical treatments ordered to stop the seizure(s). Do not include monitoring, timing of seizures, removing dangerous objects or other actions a caregiver may perform but which are not a treatment to stop the seizure(s). | G21: 2 | K21: EE_Nursing1 | L21: Seisure14 | M21: FALSE | N21: FALSE
B22: Baclofen pump -- close monitoring for adverse effects. | G22: 1 | K22: EE_Nursing1 | L22: MedPump15 | M22: FALSE | N22: FALSE
B23: Wound care/ulcer care other than amputation site care -- Include open wounds which require assessment by a medical professional to evaluate appropriate treatment, and stage III or IV ulcers ( a skin ulcer, including pressure sores, which results in full loss of skin and tissue and may extend into muscle or bone.) Do not include minor injuries requiring only first aid, or preventative treatment for an individual who is at risk, but does not currently have a stage III or IV skin ulcer. | G23: 2 | K23: EE_Nursing1 | L23: WoundCare16 | M23: FALSE | N23: FALSE
B24: Amputation site care for new amputation. Includes monitoring for infection, application and monitoring of compression bandage. | G24: 2 | K24: EE_Nursing1 | L24: SumpCare17 | M24: FALSE | N24: FALSE
B25: Colostomy/Urostomy/Ileostomy care -- monitoring, tracking and disposal of output, and maintenance of ostomy device/tubing. | G25: 1 | K25: EE_Nursing1 | L25: Ostomy18 | M25: FALSE | N25: FALSE
B26: Digital Stimulation/Impaction removal -- Individual requires digital stimulation of the bowel or digital removal of stool lodged in the rectum on a daily or near daily basis. Do not include other bowel care. Do not include care performed by a medical professional other than the caregiver. | G26: 1 | K26: EE_Nursing1 | L26: ImpactionCare19 | M26: FALSE | N26: FALSE
B27: Urinary Catheterization --Care must be daily or more frequently. Includes care for indwelling catheter or suprapubic catheter or insertion of a catheter (intermittent catheterization.). Does not include use of a condom catheter. | G27: 1 | K27: EE_Nursing1 | L27: Cath20 | M27: FALSE | N27: FALSE
B28: Mechanical Lift/Stander/Sidelyer/Body Jacket -- individual requires use of a mechanical lift for all transfers or requires a stander, sidelyer and/or body jacket on a daily basis. | G28: 1 | K28: EE_Nursing1 | L28: Positioning21 | M28: FALSE | N28: FALSE
B29: Requires awake caregiver 20 or more hours per day to monitor medical status and complete nursing tasks. *Count only if an awake caregiver is required 20 or more hours per day on a daily basis. *Do not check if awake caregiver is occasionally required 20 or more hours per day. *Do not check if the individual has an altered sleep schedule but routinely has a period of more than 4 hours during day during which an awake caregiver is not required. *Count only if medical needs include a risk to health and safety and cannot safely be addressed through adaptations such as medical alarms. | G29: TRUE | K29: EE_Nursing1 | L29: TwentyHrs22 | M29: FALSE | N29: FALSE
B30: None of the above | G30: TRUE | K30: EE_Nursing1 | L30: None23 | M30: FALSE | N30: FALSE
A31: NOTES
B34: Behavior Supports: Check all that are true. Record only plans and interventions that are actually in place at the time of this assessment. (Note: this is a different basis than is applied to the similar questions on the behavior tab.)
B36: Behavior Support Plan implementation - individual has a Behavior Support Plan (or Mental Health Plan) which includes specific proactive supports, reactive supports and crisis supports. The plan is currently being implemented by caregivers and caregivers document the incidence of behaviors. Include only behavior support plans or mental health plans which address behaviors that are dangerous or have a significant negative impact to the individual's ability to complete or receive support for ADL, IADL or health related activities. * Do not include behavior guideline, interaction guideline or safety guideline documents that are not a full BSP. * Do not include behavior documents that are designed to be implemented by the individual rather than by the caregiver. | G36: 3 | H36: SupPlanRevised2 CmplxTools3 PPI4 TwentyHrs5 | K36: EE_Behav1 | L36: SupPlanImpl1 | M36: FALSE | N36: FALSE
B37: Behavior Support Plan Revision -- the individual's Behavior Support Plan has been revised 2 or more times in the last 12 months to address new behaviors, or to address significant changes in behavior or significant changes in the effectiveness of the behavior support strategies. A significant change is one which results in the addition or substitution of a behavior support strategy not previously contained in the plan. Significant changes do not include adjustments to existing strategies such as changing the type of reward provided when a behavior goal is met or adjustment of visual tools used to implement the plan. | G37: 1 | I37: SupPlanImpl1. | K37: EE_Behav1 | L37: SupPlanRevised2 | M37: FALSE | N37: FALSE
B38: Development of complex tools used in BSP -- the individual’s BSP includes complex behavior support tools that must be developed and significantly altered by a caregiver one or more times per month. Complex behavior support tools are tools that require specific training to develop and adapt such as social stories or visual structure systems. These tools must be developed and adapted by the caregiver as new triggers are encountered or changes in behavior occur. Do not include tools developed by someone other than the caregiver or minor changes to existing or prefabricated tools. | G38: 1 | I38: SupPlanImpl1. | K38: EE_Behav1 | L38: CmplxTools3 | M38: FALSE | N38: FALSE
B39: Protective Physical Interventions -- the individual has a behavior support plan which includes protective physical interventions; AND protective physical interventions have been used to keep the individual safe in crisis situations at one of the following intervals: -PPIs (not including deflection, evasion or body positioning) have been needed 3 or more times in the last 6 months; OR -PPIs (not including deflection, evasion or body positioning) have been needed 5 or more times in the last 12 months; OR -PPIs, including deflection, evasion , or body positioning maneuvers have been needed at least weekly throughout the last 6 months; OR -Individual has had a BSP which includes PPIs for less than 6 months AND the emergency services, crisis intervention services or protective services were utilized to address a dangerous behavior 2 or more times in the past 12 months. | G39: 1 | I39: SupPlanImpl1. | K39: EE_Behav1 | L39: PPI4 | M39: FALSE | N39: FALSE
B40: Requires awake caregiver 20 or more hours per day to provide behavior supports. Individual has behaviors which occur during both day and nighttime hours and could not be safely addressed without active supervision by an awake caregiver. *Count only if an awake caregiver is required 20 or more hours per day on a daily basis. *Do not check if awake caregiver is occasionally required 20 or more hours per day. *Do not check if the individual has an altered sleep schedule but routinely has a sleep period of more than 4 hours per day during which an awake caregiver is not required. *Count only if behaviors include a risk to health and safety and cannot safely be addressed through environmental adaptations. | G40: TRUE | I40: SupPlanImpl1. | K40: EE_Behav1 | L40: TwentyHrs5 | M40: FALSE | N40: FALSE
B41: None of the above | G41: TRUE | K41: EE_Behav1 | L41: None6 | M41: FALSE | N41: FALSE
A42: NOTES

Sheet Support Needs Summary
A1: SUPPORT NEEDS SUMMARY
A3: ADLs | B3: Support Needs Category
B4: =ADLs!$A3 -> AMBULATION / MOBILITY IN THE HOME AND COMMUNITY
B5: Support Need | C5: 2:1 Review? | D5: Documentation Needed
B6: Independent or Age Appropriate Supports Provided | C6: No | D6: None
B7: Support Needs Category
B8: =ADLs!$A15 -> TRANSFERRING / POSITIONING
B9: Support Need | C9: 2:1 Review? | D9: Documentation Needed
B10: Independent or Age Appropriate Supports Provided | C10: No | D10: None
B11: Support Needs Category
B12: =ADLs!$A27 -> FOOD PREPARATION
B13: Support Need | C13: 2:1 Review? | D13: Documentation Needed
B14: Independent or Age Appropriate Supports Provided | C14: No | D14: None
B15: Support Needs Category
B16: =ADLs!$A38 -> EATING / DRINKING
B17: Support Need | C17: 2:1 Review? | D17: Documentation Needed
B18: Independent or Age Appropriate Supports Provided | C18: No | D18: None
B19: Support Needs Category
B20: =ADLs!$A51 -> BLADDER CONTROL
B21: Support Need | C21: 2:1 Review? | D21: Documentation Needed
B22: Independent or Age Appropriate Supports Provided | C22: No | D22: None
B23: Support Needs Category
B24: =ADLs!$A63 -> BOWEL CONTROL
B25: Support Need | C25: 2:1 Review? | D25: Documentation Needed
B26: Independent or Age Appropriate Supports Provided | C26: No | D26: None
B27: Support Needs Category
B28: =ADLs!$A75 -> TOILETING
B29: Support Need | C29: 2:1 Review? | D29: Documentation Needed
B30: Independent or Age Appropriate Supports Provided | C30: No | D30: None
B31: Support Needs Category
B32: =ADLs!$A87 -> HYGIENE (INCLUDING ORAL HYGIENE)
B33: Support Need | C33: 2:1 Review? | D33: Documentation Needed
B34: Independent or Age Appropriate Supports Provided | C34: No | D34: None
B35: Support Needs Category
B36: =ADLs!$A99 -> BATHING
B37: Support Need | C37: 2:1 Review? | D37: Documentation Needed
B38: Independent or Age Appropriate Supports Provided | C38: No | D38: None
B39: Support Needs Category
B40: =ADLs!$A111 -> LAUNDRY AND HOUSEKEEPING
B41: Support Need | C41: 2:1 Review? | D41: Documentation Needed
B42: Independent or Age Appropriate Supports Provided | C42: No | D42: None
B43: Support Needs Category
B44: =ADLs!$A122 -> DRESSING & HAIR CARE
B45: Support Need | C45: 2:1 Review? | D45: Documentation Needed
B46: Independent or Age Appropriate Supports Provided | C46: No | D46: None
B47: Support Needs Category
B48: =ADLs!$A133 -> SHOPPING AND MONEY MANAGEMENT
B49: Support Need | C49: 2:1 Review? | D49: Documentation Needed
B50: Independent or Age Appropriate Supports Provided | C50: No | D50: None
A51: Medical Needs | B51: Support Needs Category
B52: ='Medical Needs'!$A3 -> COMMUNICATION - EXPRESSIVE
B53: Support Need | C53: 2:1 Review? | D53: Documentation Needed
B54: Independent or Age Appropriate Supports Provided | C54: No | D54: None
B55: Support Needs Category
B56: ='Medical Needs'!$A14 -> COMMUNICATION - RECEPTIVE
B57: Support Need | C57: 2:1 Review? | D57: Documentation Needed
B58: Independent or Age Appropriate Supports Provided | C58: No | D58: None
B59: Support Needs Category
B60: ='Medical Needs'!$A25 -> SAFETY
B61: Support Need | C61: 2:1 Review? | D61: Documentation Needed
B62: Independent or Age Appropriate Supports Provided | C62: No | D62: None
B63: Support Needs Category
B64: ='Medical Needs'!$A36 -> FIRE EVACUATION
B65: Support Need | C65: 2:1 Review? | D65: Documentation Needed
B66: Independent or Age Appropriate Supports Provided | C66: No | D66: None
B67: Support Needs Category
B68: ='Medical Needs'!$A47 -> MEDICATION MANAGEMENT SUPPORTS - ORAL
B69: Support Need | C69: 2:1 Review? | D69: Documentation Needed
B70: Independent or Age Appropriate Supports Provided | C70: No | D70: None
B71: Support Needs Category
B72: ='Medical Needs'!$A59 -> MEDICATION MANAGEMENT SUPPORTS - INHALANTS, TOPICALS, SUPPOSITORIES
B73: Support Need | C73: 2:1 Review? | D73: Documentation Needed
B74: Independent or Age Appropriate Supports Provided | C74: No | D74: None
B75: Support Needs Category
B76: ='Medical Needs'!$A70 -> MEDICATION MANAGEMENT SUPPORTS - INJECTIONS
B77: Support Need | C77: 2:1 Review? | D77: Documentation Needed
B78: Independent or Age Appropriate Supports Provided | C78: No | D78: None
B79: Support Needs Category
B80: ='Medical Needs'!$A81 -> HEALTH MANAGEMENT SUPPORTS - GENERAL
B81: Support Need | C81: 2:1 Review? | D81: Documentation Needed
B82: Independent or Age Appropriate Supports Provided | C82: No | D82: None
B83: Support Needs Category
B84: ='Medical Needs'!$A93 -> COMPLEX HEALTH MANAGEMENT SUPPORTS
B85: Support Need | C85: 2:1 Review? | D85: Documentation Needed
B86: Not Applicable | C86: N/A | D86: N/A
A87: Med. Enh./Except. | B87: (None)
B88: Ventilator monitoring and care
B89: CPAP/BiPAP assistance and monitoring
B90: Oxygen administration and monitoring
B91: Extensive respiratory treatment
B92: Tracheotomy care
B93: Suctioning airway
B94: Stoma care
B95: Tube feeding
B96: Diabetes management
B97: Injections/infusions
B98: Dialysis (by the caregiver in the home)
B99: Shunt (cerebral) monitoring and care
B100: Monitoring of vital signs
B101: Seizure interventions
B102: Baclofen pump monitoring and assistance
B103: Wound care/ulcer care
B104: Stump care for new amputation
B105: Colostomy/urostomy/ileostomy care
B106: Impaction removal
B107: Urinary catheterization
B108: Mechanical lift, stander, sidelyer, or bodyJacket
B109: Awake caregiver required 20 or more hours per day
A110: Equipment | B110: (None)
B111: Cane
B112: Leg braces
B113: Walker
B114: Ankle or foot orthotics
B115: Arm splints
B116: Adaptive eating equipment (not tube feeding equipment)
B117: Hospital bed
B118: Grab bars by bed
B119: Hanging bar above bed
B120: Shower chair
B121: Grab bars in bathroom
B122: Shower gurney
B123: Non-electronic communication boards
B124: Electronic communication boards
B125: Hoyer lift
B126: Transfer equipment (transfer board)
B127: Body jacket
B128: Manual wheel chair
B129: Electric power wheel chair
B130: Prone stander
B131: Sidelyer
B132: Specialized tube feeding equipment
B133: Nebulizer
B134: C-PAP
B135: Oxygen
B136: Ventilator
B137: Pulse oxymeter
B138: Heart monitor
B139: Suctioning equipment
B140: Vagus nerve stimulator (VNS)
B141: Diabetic insulin pump
B142: Baclofen pump
B143: Prosthetics
A144: Nighttime Needs | B144: Support Needs Category
B145: ='Nighttime Needs'!A3 -> NIGHTTIME NEEDS
B146: Support Need | C146: 2:1 Review? | D146: Documentation Needed
B147: Not Applicable | C147: N/A | D147: N/A
A148: Behavior Needs | B148: Support Needs Category | C148: No | D148: None
B149: ='Social and Behavioral Needs'!A3 -> BEHAVIORAL SUPPORTS - NO FORMAL PLAN - SUPERVISON AND MONITORING
B150: Support Need | C150: 2:1 Review? | D150: Documentation Needed
B151: Not Applicable or Age-Appropriate Supervision | C151: No | D151: None
B152: Support Needs Category
B153: ='Social and Behavioral Needs'!A16 -> BEHAVIORAL SUPPORTS - PLANS - HOME AND COMMUNITY
B154: Support Need | C154: 2:1 Review? | D154: Documentation Needed
B155: Not Applicable | C155: N/A | D155: N/A
B156: Support Needs Category
B157: ='Social and Behavioral Needs'!A29 -> BEHAVIORAL SUPPORTS - SUPERVISON - HOME
B158: Support Need | C158: 2:1 Review? | D158: Documentation Needed
B159: Not Applicable or Age-Appropriate Supervision | C159: No | D159: None
B160: Support Needs Category
B161: ='Social and Behavioral Needs'!A42 -> BEHAVIORAL SUPPORTS - SUPERVISION - HOME - EXCLUSIVE FOCUS
B162: Support Need | C162: 2:1 Review? | D162: Documentation Needed
B163: Not Applicable | C163: N/A | D163: N/A
B164: Support Needs Category
B165: ='Social and Behavioral Needs'!A59 -> BEHAVIORAL SUPPORTS - SUPERVISION - COMMUNITY
B166: Support Need | C166: 2:1 Review? | D166: Documentation Needed
B167: Not Applicable | C167: N/A | D167: N/A
A168: Behav. Enh./Except. | B168: (None)
B169: Behavior support plan, implementation
B170: Behavior documentation data
B171: Behavior support plan, multiple revisions
B172: Protective physical interventions
B173: Awake caregiver required 20 or more hours per day

Sheet Summary of In-Home Hours
A1: In Home Needs Summary - Children
A2: Name of Individual | B2: =IF(ClientName=0,"",ClientName) ->  | D2: Date of Birth | E2: =IF(ClientDOB=0,"",ClientDOB) -> 
A3: Date of Assessment | B3: =IF(AssessmentDate=0,"",AssessmentDate) ->  | D3: Age | E3: =ClientAge -> 
D4: Assessed Hours Per Day | E4: 2:1 Review Required? | F4: =IF(AND(ISBLANK('2-1 Review and Approval'!$A$23),ISBLANK('2-1 Review and Approval'!$F$23)),"","Approved Monthly 2:1 Hours") -> 
A6: ADL/IADL Hourly Supports | D6: =IF(ServiceSetting=CNA_GroupHome,"N/A (SE 50 or 141)",IF(ServiceElement=SE_FosterCare,"N/A (SE 58)",'Raw Scoring'!$L11)) -> 0 | E6: =IF(NOT(ISNUMBER($D$6)),"N/A",ADLs2to1Rev) -> No | F6: =IF(OR(E6="No",E6="N/A")," ",IF(AND(ISBLANK('2-1 Review and Approval'!$A$23),ISBLANK('2-1 Review and Approval'!$F$23)),"Approval Required",IF(SUM('2-1 Review and Approval'!L6:L8)>0,SUM('2-1 Review and Approval'!L6:L8),0))) -> 
A7: Behavior Hourly Supports | D7: =IF(NOT(ISNUMBER($D$6)),$D$6,'Raw Scoring'!$L12) -> 0 | E7: =IF(NOT(ISNUMBER($D$6)),"N/A",Behav2to1Rev) -> No | F7: =IF(OR(E7="No",E7="N/A")," ",IF(AND(ISBLANK('2-1 Review and Approval'!$A$23),ISBLANK('2-1 Review and Approval'!$F$23)),"Approval Required",IF(SUM('2-1 Review and Approval'!L11:L12)>0,SUM('2-1 Review and Approval'!L11:L12),0))) -> 
A8: Medical & Safety Hourly Supports | D8: =IF(NOT(ISNUMBER($D$6)),$D$6,'Raw Scoring'!$L13) -> 0 | E8: =IF(NOT(ISNUMBER($D$6)),"N/A",Med2to1Rev) -> No | F8: =IF(OR(E8="No",E8="N/A")," ",IF(AND(ISBLANK('2-1 Review and Approval'!$A$23),ISBLANK('2-1 Review and Approval'!$F$23)),"Approval Required",IF(('2-1 Review and Approval'!L9)>0,('2-1 Review and Approval'!L9),0))) -> 
A9: Nighttime Hourly Supports | D9: =IF(NOT(ISNUMBER($D$6)),$D$6,'Raw Scoring'!$L14) -> 0 | E9: =IF(NOT(ISNUMBER($D$6)),"N/A",Night2to1Rev) -> No | F9: =IF(OR(E9="No",E9="N/A")," ",IF(AND(ISBLANK('2-1 Review and Approval'!$A$23),ISBLANK('2-1 Review and Approval'!$F$23)),"Approval Required",IF(('2-1 Review and Approval'!L10)>0,('2-1 Review and Approval'!L10),0))) -> 
A10: Daily Average Attendant Care Hours (Sept - May) | D10: =IF(NOT(ClientDemComplete),"Incomplete Demographics",IF(NOT(ISNUMBER($D$6)),$D$6,'Raw Scoring'!$L15)) -> 0 | E10: =FifthBdayNotificationMsg -> 
A11: Monthly Attendant Care Hours (Sept - May) | D11: =IF(NOT(ClientDemComplete),$D$10,IF(NOT(ISNUMBER($D$6)),$D$6,'Raw Scoring'!$L16)) -> 0
A12: Daily Average Attendant Care Hours (June - Aug) | D12: =IF(NOT(ClientDemComplete),"Incomplete Demographics",IF(NOT(ISNUMBER($D$6)),$D$6,'Raw Scoring'!$L17)) -> 0
A13: Monthly Attendant Care Hours (June - Aug) | D13: =IF(NOT(ClientDemComplete),$D$12,IF(NOT(ISNUMBER($D$6)),$D$6,'Raw Scoring'!$L18)) -> 0
A14: Additional Monthly Attendant Care Hours for 2:1 Support | F14: =Approved2to1HoursQualified -> 0
A16: 2:1 hours included in the totals shown on this line may be used ONLY for a second caregiver working during the Attendant care hours shown above, for provision of supports assessed as requiring 2 caregivers. | C16: Total Approved Monthly Attendant Care hours, including 2:1 hours (Sept - May) | D16: =IF(NOT(ISNUMBER($D$11)),$D$11,IF(NOT(ISNUMBER($D$6)),$D$6,'Raw Scoring'!$J22)) -> 0 | E16: Total Approved Monthly Attendant Care hours, including 2:1 hours (June - Aug) | F16: =IF(NOT(ISNUMBER($D$12)),$D$12,IF(NOT(ISNUMBER($D$6)),$D$6,'Raw Scoring'!$L22)) -> 0
D17: =IF(AND(ISNUMBER($D$11),OR(MinLT14HrRdcnOvrrd,Min14to20HrRdcnOvrrd>0,Min14to20HrRdcnOvrrdWntr>0)),"(Partial or no reduction due to minimum-hour limits)","") -> 
A18: Enhanced/Exceptional Status | D18: Behavioral | E18: Medical
D19: =IF(NOT(ISNUMBER($D$6)),$D$6,EE_BehavIsEnhExc) -> N/A | E19: =IF(NOT(ISNUMBER($D$6)),$D$6,EE_MedIsEnhExc) -> N/A
A20: =IF(ServiceElement = SE_CIIS, "(Enhanced and Exceptional status are not applicable to children enrolled in CIIS.)","") -> 
A21: My signature verifies I have completed the In Home Support Needs Assessment using all available information obtained through observation, interview and the individual's records. The assessment accurately reflects the individual's support needs according to the interpretations contained in the ANA/CNA Manual.
A22: Completed by: | B22: =IF(ISBLANK(AssessorName),"",AssessorName) ->  | D22: Signature: | E22: ________________________________
A24: Comments:
A31: =EffectivePreRedn*100 -> 0
A32: =EffectivePostRedn*100 -> 0

Sheet 2-1 Review and Approval
A2: Review and Approval of 2 Person Supports | C2: =IF(ISBLANK('Client Demographics'!D3),"",'Client Demographics'!D3&" - "&'Client Demographics'!D4) ->  | F2: DHS Review - 2:1 Exception | J2: Date of Review/Determination:
A4: 1. Determine the amount of 2 person hours that are necessary to safely provide the support. | F4: ODDS Review Team:
B5: Maximum Monthly 2:1 Hours* | C5: Monthly 2:1 Hours Needed | G5: Monthly 2:1 Hours Approved
A6: Mobility | B6: =IF(NOT(ISNUMBER('Summary of In-Home Hours'!$D$6)),0,IF('Raw Scoring'!D2="Yes", 30, 0)) -> 0 | C6: 0 | F6: Mobility | L6: =IF(G6<>0,G6,IF(ISBLANK(C6),0,MIN(B6,C6))) -> 0
A7: Transfer/Positioning | B7: =IF(NOT(ISNUMBER('Summary of In-Home Hours'!$D$6)),0,IF('Raw Scoring'!D3="Yes",30, 0)) -> 0 | C7: 0 | F7: Transfer/Positioning | L7: 0
A8: Bathing | B8: =IF(NOT(ISNUMBER('Summary of In-Home Hours'!$D$6)),0,IF('Raw Scoring'!D10="Yes", 20, 0)) -> 0 | C8: 0 | F8: Bathing | L8: 0
A9: Complex Medical Interventions | B9: =IF(NOT(ISNUMBER('Summary of In-Home Hours'!$D$6)),0,IF(MedSupCmplx="Yes", 90, 0)) -> 0 | C9: 0 | F9: Complex Medical Interventions | L9: 0
A10: Night | B10: =IF(NOT(ISNUMBER('Summary of In-Home Hours'!$D$6)),0,IF('Raw Scoring'!K2="Yes", 90, 0)) -> 0 | C10: 0 | F10: Night | L10: 0
A11: Behavior - Home | B11: =IF(NOT(ISNUMBER('Summary of In-Home Hours'!$D$6)),0,IF(BehavSupvsnExclFocus="Yes", 90, 0)) -> 0 | C11: 0 | F11: Behavior - Home | L11: 0
A12: Behavior - Community | B12: =IF(NOT(ISNUMBER('Summary of In-Home Hours'!$D$6)),0,IF(BehavSupvsnCmty="Yes", 30, 0)) -> 0 | C12: 0 | F12: Behavior - Community | L12: 0
A13: Locally Approved 2:1 hours | B13: =IF(NOT(ISNUMBER('Summary of In-Home Hours'!$D$6)),'Summary of In-Home Hours'!$D$6,Approved2to1Hours) -> 0 | F13: ODDS Approved 2:1 hours | G13: =IF(NOT(ISNUMBER(Approved2to1HoursQualified)),Approved2to1HoursQualified,SUM(G6:G12)) -> 0 | L13: =SUM(L6:L12) -> 0
A15: 2. Confirm that the 2:1 support assessed is necessary. There is no means of safely performing the support with a single, qualified caregiver. - The 2:1 support is needed in all or almost all cases where the activity is performed and is not a need only in specific situations. - The amount authorized is based on the actual frequency and duration of the activity(ies) that require 2:1 support. Include brief comment regarding rationale for approval or non-approval, below. | F15: 2. Does the information provided support the assessment that 2:1 support is necessary in the categories recorded?
A18: 3. Confirm that the individual's file includes documentation that supports the need for the 2:1 support by identifying the type of documentation, below. If 2:1 is support is not approved, enter "N/A". (Examples: Physical Therapy evaluation dated 2/5/11, Physician's note dated 3/8/12, Case note 1/12/13 re: Service Coordinator's observation.) | F18: 3. Support tasks, reported frequency, usual duration of 2:1 need:
F20: Additional Information:
A21: 4. Authorized Signature. Review and approval may only be completed by the Brokerage Director or CDDP Manager or their designee. The Personal Agent or Services Coordinator may not authorize 2:1 support for an individual on their caseload. To complete the electronic file, the authorized signer enters their name and the date into the boxes, below. A copy of this page retained in the client file.
A22: SIGNATURE | C22: DATE | F22: ODDS SIGNATURE | I22: DATE
A25: *"Maximum Monthly 2:1 Hours" are the highest allocations of 2:1 support which may be authorized by a CDDP or Support Services Brokerage. When support is needed in excess of the amounts shown above, an Exception Request may be submitted to ODDS for review. Fax a copy of this completed worksheet to: 503-373-7274, ATTN: In-Home 2:1 Exception Request

Sheet Raw Scoring (hidden)
A1: ADL Group ID | B1: Selection Value | C1: Adjusted Value | D1: 2:1 Review | E1: New Scoring Row | F1: New Scoring Column* | G1: Hours | H1: Nighttime Group ID | I1: Selection Value | J1: Adjusted Value | K1: 2:1 Review | L1: New Scoring Row | M1: New Scoring Column | N1: Hours | O1: Medical Group ID | P1: Selection Value | Q1: Adjusted Value | R1: 2:1 Review | S1: New Scoring Row | T1: New Scoring Column | U1: Hours | V1: Behavior Group ID | W1: Selection Value | X1: Adjusted Value | Y1: 2:1 Review | Z1: New Scoring Row | AA1: New Scoring Column* | AB1: Hours | AD1: EE_Nursing Group ID | AE1: Selection Value | AG1: EE_Behav Group ID | AH1: Selection Value
A2: ADL1 | B2: 0 | C2: =B2 -> 0 | D2: No | E2: =MATCH(A2,'New Scoring'!$A:$A,0)+C2 -> 3 | F2: =IF(EffectiveAge<5,COLUMN(NS_Age5),IF(EffectiveAge<12,COLUMN(NS_Age6to9),Default_NS_AgeCol))+IF(D2="Yes",Unreduced_NS_Offset,0) -> 3 | G2: =IF(EffectiveAge<4,0,OFFSET(NS_Values,E2-1,F2-1,1,1)) -> 0 | H2: Nighttime1 | I2: 0 | J2: =I2 -> 0 | K2: No | L2: =MATCH(H2,'New Scoring'!$A:$A,0)+J2 -> 75 | M2: =Default_NS_AgeCol+IF(K2="Yes",Unreduced_NS_Offset,0) -> 3 | N2: =IF(EffectiveAge=0,0,OFFSET(NS_Values,L2-1,M2-1,1,1)) -> 0 | O2: Medical1 | P2: 0 | Q2: =P2 -> 0 | R2: N/A | S2: =MATCH(O2,'New Scoring'!$A:$A,0)+Q2 -> 81 | T2: =Default_NS_AgeCol+IF(R2="Yes",Unreduced_NS_Offset,0) -> 3 | U2: =IF(EffectiveAge=0,0,OFFSET(NS_Values,S2-1,T2-1,1,1)) -> 0 | V2: Behavior1 | W2: 0 | X2: =IF($W$4>1,0,W2) -> 0 | Y2: N/A | Z2: =MATCH(V2,'New Scoring'!$A:$A,0)+X2 -> 183 | AA2: =IF(EffectiveAge<5,COLUMN(NS_Age5),IF(EffectiveAge<12,COLUMN(NS_Age6to9),Default_NS_AgeCol))+IF(Y2="Yes",Unreduced_NS_Offset,0) -> 3 | AB2: =IF(EffectiveAge<3.5,0,OFFSET(NS_Values,Z2-1,AA2-1,1,1)) -> 0 | AD2: Ventilator1 | AE2: 0 | AG2: SupPlanImpl1 | AH2: 0 | AJ2: EE_MedIsEnh: | AK2: =IF(EE_NursingComplete,IF(EE_NursingEnh,$AK$9,$AK$11),IF(MedShEnh,$AK$12,$AK$11)) -> N/A
A3: ADL2 | B3: 0 | C3: 0 | D3: No | E3: =MATCH(A3,'New Scoring'!$A:$A,0)+C3 -> 9 | F3: =IF(EffectiveAge<5,COLUMN(NS_Age5),IF(EffectiveAge<12,COLUMN(NS_Age6to9),Default_NS_AgeCol))+IF(D3="Yes",Unreduced_NS_Offset,0) -> 3 | G3: =IF(EffectiveAge<4,0,OFFSET(NS_Values,E3-1,F3-1,1,1)) -> 0 | H3: Totals | I3: =SUM(I2:I2) -> 0 | J3: =SUM(J2:J2) -> 0 | K3: =IF(COUNTIF(K1:K2,"Yes"),"Yes","No") -> No | N3: =SUM(N2:N2) -> 0 | O3: Medical2 | P3: 0 | Q3: =P3 -> 0 | R3: N/A | S3: =MATCH(O3,'New Scoring'!$A:$A,0)+Q3 -> 87 | T3: 3 | U3: 0 | V3: Behavior2 | W3: 0 | X3: =W3 -> 0 | Y3: N/A | Z3: =MATCH(V3,'New Scoring'!$A:$A,0)+X3 -> 189 | AA3: =IF(EffectiveAge<5,COLUMN(NS_Age5),IF(EffectiveAge<12,COLUMN(NS_Age6to9),Default_NS_AgeCol))+IF(Y3="Yes",Unreduced_NS_Offset,0) -> 3 | AB3: =IF(EffectiveAge=0,0,OFFSET(NS_Values,Z3-1,AA3-1,1,1)) -> 0 | AD3: CPAP2 | AE3: 0 | AG3: SupPlanRevised2 | AH3: 0 | AJ3: EE_MedIsExc: | AK3: =IF(EE_NursingComplete,IF(EE_NursingExc,$AK$10,$AK$11),IF(OR(MedShEnh,MedShExc),$AK$12,$AK$11)) -> N/A
A4: ADL3 | B4: 0 | C4: 0 | D4: N/A | E4: =MATCH(A4,'New Scoring'!$A:$A,0)+C4 -> 15 | F4: =Default_NS_AgeCol+IF(D4="Yes",Unreduced_NS_Offset,0) -> 3 | G4: =IF(EffectiveAge<15,0,IF(EffectiveAge<4,0,OFFSET(NS_Values,E4-1,F4-1,1,1))) -> 0 | O4: Medical3 | P4: 0 | Q4: 0 | R4: N/A | S4: =MATCH(O4,'New Scoring'!$A:$A,0)+Q4 -> 93 | T4: 3 | U4: 0 | V4: Behavior3 | W4: 0 | X4: 0 | Y4: N/A | Z4: =MATCH(V4,'New Scoring'!$A:$A,0)+X4 -> 195 | AA4: =IF(EffectiveAge<5,COLUMN(NS_Age5),IF(EffectiveAge<12,COLUMN(NS_Age6to9),Default_NS_AgeCol))+IF(Y4="Yes",Unreduced_NS_Offset,0) -> 3 | AB4: =IF(EffectiveAge=0,0,OFFSET(NS_Values,Z4-1,AA4-1,1,1)) -> 0 | AD4: Oxygen3 | AE4: 0 | AG4: CmplxTools3 | AH4: 0 | AJ4: EE_MedIsEnhExc: | AK4: =IF(EE_MedIsExc<>$AK$11,EE_MedIsExc,EE_MedIsEnh) -> N/A
A5: ADL4 | B5: 0 | C5: 0 | D5: N/A | E5: =MATCH(A5,'New Scoring'!$A:$A,0)+C5 -> 21 | F5: =IF(EffectiveAge<5,COLUMN(NS_Age5),IF(EffectiveAge<12,COLUMN(NS_Age6to9),Default_NS_AgeCol))+IF(D5="Yes",Unreduced_NS_Offset,0) -> 3 | G5: =IF(EffectiveAge<3,0,OFFSET(NS_Values,E5-1,F5-1,1,1)) -> 0 | O5: Medical4 | P5: 0 | Q5: 0 | R5: N/A | S5: =MATCH(O5,'New Scoring'!$A:$A,0)+Q5 -> 99 | T5: 3 | U5: 0 | V5: Behavior4 | W5: 0 | X5: 0 | Y5: No | Z5: =MATCH(V5,'New Scoring'!$A:$A,0)+X5 -> 201 | AA5: =IF(EffectiveAge<5,COLUMN(NS_Age5),IF(EffectiveAge<12,COLUMN(NS_Age6to9),Default_NS_AgeCol))+IF(Y5="Yes",Unreduced_NS_Offset,0) -> 3 | AB5: =IF(EffectiveAge=0,0,OFFSET(NS_Values,Z5-1,AA5-1,1,1)) -> 0 | AD5: Resp4 | AE5: 0 | AG5: PPI4 | AH5: 0 | AJ5: EE_BehavIsEnh: | AK5: =IF(EE_BehavComplete,IF(EE_BehavEnh,$AK$9,$AK$11),IF(BehavShEnh,$AK$12,$AK$11)) -> N/A
A6: ADL5 | B6: 0 | C6: 0 | D6: N/A | E6: =MATCH(A6,'New Scoring'!$A:$A,0)+C6 -> 27 | F6: 3 | G6: =IF(EffectiveAge<4,0,OFFSET(NS_Values,E6-1,F6-1,1,1)) -> 0 | O6: Medical5 | P6: 0 | Q6: 0 | R6: N/A | S6: =MATCH(O6,'New Scoring'!$A:$A,0)+Q6 -> 105 | T6: 3 | U6: 0 | V6: Behavior5 | W6: 0 | X6: 0 | Y6: No | Z6: =MATCH(V6,'New Scoring'!$A:$A,0)+X6 -> 209 | AA6: =IF(EffectiveAge<5,COLUMN(NS_Age5),IF(EffectiveAge<12,COLUMN(NS_Age6to9),Default_NS_AgeCol))+IF(Y6="Yes",Unreduced_NS_Offset,0) -> 3 | AB6: =IF(EffectiveAge=0,0,OFFSET(NS_Values,Z6-1,AA6-1,1,1)) -> 0 | AD6: Trach5 | AE6: 0 | AG6: TwentyHrs5 | AH6: 0 | AJ6: EE_BehavIsExc: | AK6: =IF(EE_BehavComplete,IF(EE_BehavExc,$AK$10,$AK$11),IF(OR(BehavShEnh,BehavShExc),$AK$12,$AK$11)) -> N/A
A7: ADL6 | B7: 0 | C7: 0 | D7: N/A | E7: =MATCH(A7,'New Scoring'!$A:$A,0)+C7 -> 33 | F7: 3 | G7: =IF(EffectiveAge<4,0,OFFSET(NS_Values,E7-1,F7-1,1,1)) -> 0 | O7: Medical6 | P7: 0 | Q7: 0 | R7: N/A | S7: =MATCH(O7,'New Scoring'!$A:$A,0)+Q7 -> 111 | T7: 3 | U7: 0 | V7: Totals | W7: =SUM(V2:V6) -> 0 | X7: =SUM(W2:W6) -> 0 | Y7: =IF(COUNTIF(Y1:Y6,"Yes"),"Yes","No") -> No | AB7: =SUM(AB2:AB6) -> 0 | AD7: Suction6 | AE7: 0 | AG7: None6 | AH7: 0 | AJ7: EE_BehavIsEnhExc: | AK7: =IF(EE_BehavIsExc<>$AK$11,EE_BehavIsExc,EE_BehavIsEnh) -> N/A
A8: ADL7 | B8: 0 | C8: 0 | D8: N/A | E8: =MATCH(A8,'New Scoring'!$A:$A,0)+C8 -> 39 | F8: 3 | G8: =IF(EffectiveAge<4,0,OFFSET(NS_Values,E8-1,F8-1,1,1)) -> 0 | O8: Medical7 | P8: 0 | Q8: 0 | R8: N/A | S8: =MATCH(O8,'New Scoring'!$A:$A,0)+Q8 -> 117 | T8: 3 | U8: 0 | V8: Enhanced | W8: =AND(W3 >= 1, W4 >= 2, W6 >= 3) -> FALSE | AA8: *Values can differ from default for some ages | AD8: Stoma7 | AE8: 0 | AG8: Total | AH8: =SUM(AH2:AH5) -> 0
A9: ADL8 | B9: 0 | C9: 0 | D9: N/A | E9: =MATCH(A9,'New Scoring'!$A:$A,0)+C9 -> 45 | F9: 3 | G9: =IF(EffectiveAge=0,0,OFFSET(NS_Values,E9-1,F9-1,1,1)) -> 0 | O9: Medical8 | P9: 0 | Q9: 0 | R9: N/A | S9: =MATCH(O9,'New Scoring'!$A:$A,0)+Q9 -> 123 | T9: 3 | U9: 0 | V9: Exceptional | W9: =AND(W3 >= 2, W4 >= 3, W6 >= 4) -> FALSE | AD9: FeedingTube8 | AE9: 0 | AG9: Enhanced | AH9: =AH2>0 -> FALSE | AJ9: Text: | AK9: Enhanced
A10: ADL9 | B10: 0 | C10: 0 | D10: No | E10: =MATCH(A10,'New Scoring'!$A:$A,0)+C10 -> 51 | F10: 3 | G10: =IF(EffectiveAge=0,0,OFFSET(NS_Values,E10-1,F10-1,1,1)) -> 0 | H10: 5 can be valid | O10: Medical9 | P10: 0 | Q10: 0 | R10: No | S10: =MATCH(O10,'New Scoring'!$A:$A,0)+Q10 -> 129 | T10: 3 | U10: 0 | V10: 5 can be valid | AD10: Diabetes9 | AE10: 0 | AG10: Exceptional | AH10: =AND(EE_BehavEnh,AH6,SUM(AH3:AH5)>0) -> FALSE | AK10: Exceptional
A11: ADL10 | B11: 0 | C11: 0 | D11: N/A | E11: =MATCH(A11,'New Scoring'!$A:$A,0)+C11 -> 57 | F11: =Default_NS_AgeCol+IF(D11="Yes",Unreduced_NS_Offset,0) -> 3 | G11: =IF(EffectiveAge<15,0,IF(EffectiveAge<4,0,OFFSET(NS_Values,E11-1,F11-1,1,1))) -> 0 | I11: ADL/IADL Hourly Supports | L11: =IF(ConstlMinTotal>ScoreTotalHours,$D$64,$B$26) -> 0 | O11: Medical10 | R11: N/A | S11: =MATCH(O11,'New Scoring'!$A:$A,0)+Q11 -> 135 | T11: 3 | V11: (Old, unused "Nursing" section removed!) | AD11: Injection10 | AE11: 0 | AG11: Complete | AH11: =OR(AH6,AH7, AH8>0) -> FALSE | AK11: N/A
A12: ADL11 | B12: 0 | C12: 0 | D12: N/A | E12: =MATCH(A12,'New Scoring'!$A:$A,0)+C12 -> 63 | F12: =IF(EffectiveAge<5,COLUMN(NS_Age5),IF(EffectiveAge<12,COLUMN(NS_Age6to9),Default_NS_AgeCol))+IF(D12="Yes",Unreduced_NS_Offset,0) -> 3 | G12: =IF(EffectiveAge=0,0,OFFSET(NS_Values,E12-1,F12-1,1,1)) -> 0 | I12: Behavior Hourly Supports | L12: =IF(ConstlMinTotal>ScoreTotalHours,$D$66,$E$26) -> 0 | O12: Medical11 | P12: 0 | Q12: 0 | R12: N/A | S12: =MATCH(O12,'New Scoring'!$A:$A,0)+Q12 -> 141 | T12: 3 | U12: =IF(EffectiveAge=0,0,OFFSET(NS_Values,S12-1,T12-1,1,1)) -> 0 | V12: Equip.: No score | AD12: Dialysis11 | AE12: 0 | AK12: Please fill out "Enhanced or Exception" sheet
A13: ADL12 | B13: 0 | C13: 0 | D13: N/A | E13: =MATCH(A13,'New Scoring'!$A:$A,0)+C13 -> 69 | F13: =IF(EffectiveAge<5,COLUMN(NS_Age5),IF(EffectiveAge<12,COLUMN(NS_Age6to9),Default_NS_AgeCol))+IF(D13="Yes",Unreduced_NS_Offset,0) -> 3 | G13: =IF(EffectiveAge=0,0,OFFSET(NS_Values,E13-1,F13-1,1,1)) -> 0 | I13: Medical & Safety Hourly Supports | L13: =IF(ConstlMinTotal>ScoreTotalHours,$D$65,$D$26) -> 0 | O13: Medical12 | P13: 0 | Q13: 0 | R13: N/A | S13: =MATCH(O13,'New Scoring'!$A:$A,0)+Q13 -> 147 | T13: 3 | U13: 0 | AD13: Shunt12 | AE13: 0
A14: Totals | B14: =SUM(B2:B13) -> 0 | C14: =SUM(C2:C13) -> 0 | D14: =IF(COUNTIF(D1:D13,"Yes"),"Yes","No") -> No | G14: =SUM(G2:G13) -> 0 | I14: Nighttime Hourly Supports | L14: =IF(ConstlMinTotal>ScoreTotalHours,ScoreNighttimeHours*ConstlMinTotal/17,$C$26) -> 0 | O14: Medical13 | P14: 0 | Q14: 0 | R14: N/A | S14: =MATCH(O14,'New Scoring'!$A:$A,0)+Q14 -> 153 | T14: 3 | U14: 0 | AD14: VitalSigns13 | AE14: 0
F15: *Values can differ, by row, for some ages | I15: Daily Average Attendant Care Hours (Sept - May) | L15: =IF(PersCareEquiv>SchlAgeVal,PersCareEquiv,IF(ConstlMinTotal>SummerHrs,SUM($L$11:$L$14),IF(IsSchlAge,SUM($L$11:$L$14),SummerHrs))) -> 0 | M15: (C.101: Constellation bug fixed) | O15: Medical14 | P15: 0 | Q15: 0 | R15: N/A | S15: =MATCH(O15,'New Scoring'!$A:$A,0)+Q15 -> 159 | T15: 3 | U15: 0 | AD15: Seisure14 | AE15: 0
I16: Monthly Attendant Care Hours (Sept - May) | L16: =ROUNDUP($L$15*DaysPerMo,0) -> 0 | O16: Medical15 | P16: 0 | Q16: 0 | R16: N/A | S16: =MATCH(O16,'New Scoring'!$A:$A,0)+Q16 -> 165 | T16: 3 | U16: 0 | AD16: MedPump15 | AE16: 0
I17: Daily Average Attendant Care Hours (June - Aug) | L17: =IF(PersCareEquiv>SummerHrs,PersCareEquiv,IF(ConstlMinTotal>SummerHrs,SUM($L$11:$L$14),SummerHrs)) -> 0 | M17: (C.101: Constellation bug fixed) | O17: Medical16 | P17: 0 | Q17: 0 | R17: N/A | S17: =MATCH(O17,'New Scoring'!$A:$A,0)+Q17 -> 171 | T17: 3 | U17: 0 | AD17: WoundCare16 | AE17: 0
I18: Monthly Attendant Care Hours (June - Aug) | L18: =ROUNDUP($L$17*DaysPerMo,0) -> 0 | O18: Medical17 | P18: 0 | Q18: 0 | R18: N/A | S18: =MATCH(O18,'New Scoring'!$A:$A,0)+Q18 -> 177 | T18: 3 | U18: 0 | V18: Equip.: Does score | AD18: SumpCare17 | AE18: 0
B19: ADL | C19: Nighttime | D19: Medical | E19: Behavior | F19: Total | G19: DayTime Total | H19: Set by VBA | I19: FALSE | J19: < 14 hr Min. Score Reduction Override (Winter & Summer) | O19: Totals | P19: =SUM(O2:O16) -> 0 | Q19: =SUM(P2:P18) -> 0 | R19: =IF(COUNTIF(R1:R18,"Yes"),"Yes","No") -> No | U19: =SUM(U2:U18) -> 0 | AD19: Ostomy18 | AE19: 0
A20: Hours | B20: =G14 -> 0 | C20: =N3 -> 0 | D20: =U19 -> 0 | E20: =AB7 -> 0 | F20: =SUM(B20:E20) -> 0 | G20: =B20+D20+E20 -> 0 | H20: code1,2 | I20: 0 | J20: 14 to 20 hr Min. Score Reduction Override (Winter) | O20: Enhanced | P20: =OR(P10 >= 1, AND(P9 >= 2, OR(P7 >= 2, P8 >= 3, P18 >= 2, B5 >= 4))) -> FALSE | AD20: ImpactionCare19 | AE20: 0
A21: Hours Adjusted | B21: =IF(EffectiveAge>4,IF(B20>5,5,B20),IF(B20>3,3, B20)) -> 0 | C21: =IF(C20>7,7,C20) -> 0 | D21: =IF(EffectiveAge<12,IF(D20>8,8,D20),IF(D20>10,10,D20)) -> 0 | E21: =IF(EffectiveAge<12,IF(E20>8,8,E20),IF(E20>10,10,E20)) -> 0 | F21: 0 | G21: =B21+D21+E21 -> 0 | I21: 14 to 20 hr Min. Score Reduction Override (Summer) | L21: 0 | M21: Set by VBA | O21: Exceptional | P21: =AND(MedShEnh, P11 >= 2) -> FALSE | AD21: Cath20 | AE21: 0
A22: Hours Adjusted 2 | B22: =IF(D21>3,(17-(D21-3))*$B21/17,B21) -> 0 | C22: =IF(($C21/7)>(G21/17), (7*(G21/17)), $C21) -> 0 | D22: =D21 -> 0 | E22: =IF($G$21>17,(E21/$G$21)*17,E21) -> 0 | F22: 0 | G22: =B22+D22+E22 -> 0 | I22: Winter + 2:1 Hrs. | J22: =IF(Min14to20HrRdcnOvrrdWntr>0,Min14to20HrRdcnOvrrdWntr,ROUNDUP($L$16+Approved2to1Hours,0)) -> 0 | K22: Summer + 2:1 Hrs. | L22: =IF(Min14to20HrRdcnOvrrd>0,Min14to20HrRdcnOvrrd,ROUNDUP($L$18+Approved2to1Hours,0)) -> 0 | M22: code2 | AD22: Positioning21 | AE22: 0
A23: Summer Hrs. | B23: =IF($G$22>17,(B22/$G$22)*17,B22) -> 0 | C23: =C22 -> 0 | D23: =IF($G$22>17,(D22/$G$22)*17,D22) -> 0 | E23: =IF($G$22>17,(E22/$G$22)*17,E22) -> 0 | F23: 0 | G23: =B23+D23+E23 -> 0 | AD23: TwentyHrs22 | AE23: 0
A24: School Year Hrs. | B24: =B23*$I$28 -> 0 | C24: =C23 -> 0 | D24: =D23*$I$28 -> 0 | E24: =E23*$I$28 -> 0 | F24: 0 | M24: 1For reduced scores < 14 hrs/mo (equiv. to < 20 hrs in version-C), the final, displayed score should be same as version-C score (i.e. unreduced). | AD24: None23 | AE24: 0
A25: Summer Hrs. (Reduced) | B25: =B23-(B23*$E$32) -> 0 | C25: 0 | D25: 0 | E25: 0 | F25: 0 | G25: =B25+D25+E25 -> 0 | M25: 2For reduced scores between 14-20 hrs/mo (equiv. to 20-28.57 hrs in version-C), the final, displayed score should be a minimum of 20 hrs/mo. | AD25: Total | AE25: =SUM(AE2:AE22) -> 0
A26: School Year Hrs. (Reduced) | B26: 0 | C26: 0 | D26: 0 | E26: 0 | F26: 0 | M26: (see the CheckMinScoringValues routine) | AD26: Enhanced | AE26: =AE25>=2 -> FALSE
A27: Pers Care Min Adj | G27: (Obsolete SNAP) | I27: School Adj | AD27: Exceptional | AE27: =AND(AE25>=4,AE23) -> FALSE
A28: Constellation Adj | G28: (Obsolete SNAP) | I28: =1-((6/17)*0.588) -> 0.7924705882 | J28: = 1-((6/17)*.588)) | AD28: Complete | AE28: =OR(AE23,AE24, AE25>0) -> FALSE
A29: Days | G29: (Obsolete SNAP) | J29: 6/17 = six school hrs. per 17 waking hrs.
A30: Total Adult | G30: (Obsolete SNAP) | J30: .588 = 58.8% school time per month = 17.88/30.41
A31: Total Kid | G31: (Obsolete SNAP) | J31: 17.88 = avg. school days/month = 161/9
C32: Post-Reduction: | D32: 0 | E32: =IF(OR(ServiceElement=SE51SelectionStr,MinLT14HrRdcnOvrrd),0,$D$32) -> 0 | J32: 161 = avg. school days per year (ct halfdays as 0.5)
A33: Effective Assmt Date | J33: 30.41 = average days per month
A34: =IF(AssessmentDate=0,0,DATE(YEAR(AssessmentDate),MONTH((AssessmentDate)),DAY((AssessmentDate))+AssmtGracePeriod)) -> 00:00:00
A36: Effective Age | B36: New Scoring | C36: Unreduced | D36: Unreduced | G36: School-Age Check: | I36: =OR(EffectiveAge>=5,AND(EffectiveAge=4,FifthBday<NextSept1Date)) -> TRUE | J36: True if age 5 or older, or if 4, then if b-day is prior to Sept. 1 of the (effective) assessment-date year, otherwise False
A37: (Year.Fraction) | B37: Age Column | C37: Age Column | D37: Col. Offset | I37: =IF(IsSchlAge,WinterHrs,SummerHrs) -> 0 | J37: Either Winter or Summer hours, depending on school-age cutoff status
A38: =IF(ClientDOB="", "", IF(DATEDIF(ClientDOB,EffectiveAssmtDate,"Y")=0, ROUND(DATEDIF(ClientDOB,EffectiveAssmtDate,"YM")/12, 2), IF(DATEDIF(ClientDOB,EffectiveAssmtDate,"Y")=1, ROUND(DATEDIF(ClientDOB,EffectiveAssmtDate,"M")/12, 2), DATEDIF(ClientDOB,EffectiveAssmtDate,"Y")))) ->  | B38: =IF(OR(NOT(ISNUMBER(EffectiveAge)),EffectiveAge<=2), COLUMN(NS_Age0to2), IF(EffectiveAge=3, COLUMN(NS_Age3), IF(EffectiveAge=4, COLUMN(NS_Age4), IF(EffectiveAge=5, COLUMN(NS_Age5), IF(EffectiveAge<=9, COLUMN(NS_Age6to9), IF(EffectiveAge<=11, COLUMN(NS_Age10to11), IF(EffectiveAge<=14, COLUMN(NS_Age12to14), COLUMN(NS_Age15to17)))))))) -> 3 | C38: =IF(OR(NOT(ISNUMBER(EffectiveAge)),EffectiveAge<=2), COLUMN(UR_Age0to2), IF(EffectiveAge=3, COLUMN(UR_Age3), IF(EffectiveAge=4, COLUMN(UR_Age4), IF(EffectiveAge=5, COLUMN(UR_Age5), IF(EffectiveAge<=9, COLUMN(UR_Age6to9), IF(EffectiveAge<=11, COLUMN(UR_Age10to11), IF(EffectiveAge<=14, COLUMN(UR_Age12to14), COLUMN(UR_Age15to17)))))))) -> 15 | D38: =Unreduced_NS_AgeCol-Default_NS_AgeCol -> 12 | G38: 5th bday | H38: Sept of assmt yr | I38: Next assmt by
G39: =DATE(YEAR(ClientDOB)+5,MONTH(ClientDOB),DAY(ClientDOB)) -> 1904-12-31 | H39: =DATE(YEAR(EffectiveAssmtDate),9,1) -> 1900-09-01 | I39: =DATE(YEAR(AssessmentDate)+1,MONTH(AssessmentDate),DAY(AssessmentDate)) -> 1900-12-31
A40: Avg. Days/Month | G40: =IF(AND(NextSept1Date > EffectiveAssmtDate, NextSept1Date < NextAsmtDate), IF(OR(ClientAge=4,ClientAge=5), "School year hours must be implemeted in the month of September following the child's 5th birthday. Summer hours may be used in all months until the September following the child's 5th birthday."," "), " ") -> 
A41: 30.41 | G41: ^ 5th birthday notification message
C43: Personal Care Equivalent
C44: =IF((G2+G3+G5+G6+G7+G8>0),1,0) -> 0 | D44: =(20/DaysPerMo)*C44 -> 0 | E44: Hrs. per day at 20 Hrs. per month
C46: Constellation of minor supports
C47: ADL1 | D47: =IF(B2>0,1,0) -> 0
C48: ADL2 | D48: =IF(B3>0,1,0) -> 0
C49: ADL4 | D49: =IF(B5>1,1,0) -> 0
C50: ADL5 | D50: =IF(B6>2,1,0) -> 0
C51: ADL6 | D51: =IF(B7>2,1,0) -> 0
C52: ADL7 | D52: =IF(B8>2,1,0) -> 0
C53: ADL8 | D53: =IF(B9>2,1,0) -> 0
C54: ADL9 | D54: =IF(B10>2,1,0) -> 0 | E54: =SUM(D47:D54) -> 0
C55: Med1 | D55: =IF(P2>0,1,0) -> 0
C56: Med3 | D56: =IF(P4>0,1,0) -> 0
C57: Med6 | D57: =IF(P7>2,1,0) -> 0
C58: Med7 | D58: =IF(P8>0,1,0) -> 0 | E58: =SUM(D55:D58) -> 0
C59: Beh1 | D59: =IF(W2>2,1,0) -> 0
C60: Beh3 | D60: =IF(W4>2,2,IF(W4>1,1,0)) -> 0
C61: Beh5 | D61: =IF(W6>4,2,IF(W6>2,1,0)) -> 0 | E61: =SUM(D59:D61) -> 0
C62: total | D62: =SUM(D47:D61) -> 0
C63: MIN hours | D63: =IF(D62>10.9,20/DaysPerMo,IF(D62>6.9,15/DaysPerMo,IF(D62>2.9,10/DaysPerMo,0))) -> 0
C64: minADLhours | D64: =(E54/D62)*D63 ->  | E64: =20*I28 -> 15.84941176
C65: minMedhours | D65: =(E58/D62)*D63 ->  | E65: =14*I28 -> 11.09458824
C66: min Beh Hours | D66: =(E61/D62)*D63 -> 
C67: ck total | D67: =SUM(D64:D66) -> 

Sheet New Scoring (hidden)
A1: Pre-Reduction: | B1: 0 | C1: CNA - BREAKPOINTS WITH OVERRIDE | L1: =IF(OR(ServiceElement=SE51SelectionStr,MinLT14HrRdcnOvrrd),0,$B$1) -> 0 | M1: << SE51 doesn't apply to | O1: CNA - NEW BREAKPOINTS (Same scores) | Y1: CNA - OLD BREAKPOINTS
A2: Category | B2: Selection Value | C2: 0-2 | D2: 3 | E2: 4 | F2: 5 | G2: 6-9 | H2: 10-11 | I2: 12-14 | J2: 15-17 | K2: 18+ | L2: Topic | M2: CNA but is included for consistency. | O2: 0-2 | P2: 3 | Q2: 4 | R2: 5 | S2: 6-9 | T2: 10-11 | U2: 12-14 | V2: 15-17 | W2: 18+ | Y2: Hours for Ages 0 to 5 | Z2: Hours for Ages 6 to 9 | AA2: Hours for Ages > 9 | AC2: Last updated | AE2: Score Range Names | AF2: Unreduced Range Names
A3: ADL1 | B3: 0 | C3: =O3-(O3*$L$1) -> 0 | D3: =P3-(P3*$L$1) -> 0 | E3: =Q3-(Q3*$L$1) -> 0 | F3: =R3-(R3*$L$1) -> 0 | G3: =S3-(S3*$L$1) -> 0 | H3: =T3-(T3*$L$1) -> 0 | I3: =U3-(U3*$L$1) -> 0 | J3: =V3-(V3*$L$1) -> 0 | K3: =W3-(W3*$L$1) -> 0 | L3: Ambulation/Mobility | M3: NOTE: Blue font items are formulas! | O3: 0 | P3: 0 | Q3: 0 | R3: 0 | S3: 0 | T3: 0 | U3: 0 | V3: 0 | W3: 0 | Y3: 0 | Z3: 0 | AA3: 0 | AE3: NS_Age0to2 | AF3: UR_Age0to2
A4: ADL1 | B4: 1 | C4: 0.1 | D4: 0.1 | E4: 0.1 | F4: 0.1 | G4: 0.5 | H4: 0.5 | I4: 0.5 | J4: 0.5 | K4: 0 | O4: 0.1 | P4: 0.1 | Q4: 0.1 | R4: 0.1 | S4: 0.5 | T4: 0.5 | U4: 0.5 | V4: 0.5 | W4: 0 | Y4: 0.1 | Z4: 0.5 | AA4: 0.5 | AE4: NS_Age3 | AF4: UR_Age3
A5: ADL1 | B5: 2 | C5: 0.1 | D5: 0.1 | E5: 0.1 | F5: 0.1 | G5: 0.5 | H5: 0.5 | I5: 0.5 | J5: 0.5 | K5: 0 | M5: Not an avaiable score | O5: 0.1 | P5: 0.1 | Q5: 0.1 | R5: 0.1 | S5: 0.5 | T5: 0.5 | U5: 0.5 | V5: 0.5 | W5: 0 | Y5: 0.1 | Z5: 0.5 | AA5: 0.5 | AE5: NS_Age4 | AF5: UR_Age4
A6: ADL1 | B6: 3 | C6: 0.1 | D6: 0.1 | E6: 0.1 | F6: 0.1 | G6: 0.5 | H6: 0.5 | I6: 0.5 | J6: 0.5 | K6: 0 | M6: Not an avaiable score | O6: 0.1 | P6: 0.1 | Q6: 0.1 | R6: 0.1 | S6: 0.5 | T6: 0.5 | U6: 0.5 | V6: 0.5 | W6: 0 | Y6: 0.1 | Z6: 0.5 | AA6: 0.5 | AE6: NS_Age5 | AF6: UR_Age5
A7: ADL1 | B7: 4 | C7: 0.25 | D7: 0.25 | E7: 0.25 | F7: 0.25 | G7: 1.25 | H7: 1.5 | I7: 1.5 | J7: 1.5 | K7: 0 | O7: 0.25 | P7: 0.25 | Q7: 0.25 | R7: 0.25 | S7: 1.25 | T7: 1.5 | U7: 1.5 | V7: 1.5 | W7: 0 | Y7: 0.25 | Z7: 1.25 | AA7: 1.5 | AE7: NS_Age6to9 | AF7: UR_Age6to9
A8: ADL1 | B8: 5 | C8: 0.5 | D8: 0.5 | E8: 0.5 | F8: 0.5 | G8: 1.25 | H8: 1.5 | I8: 1.5 | J8: 1.5 | K8: 0 | M8: Not an avaiable score | O8: 0.5 | P8: 0.5 | Q8: 0.5 | R8: 0.5 | S8: 1.25 | T8: 1.5 | U8: 1.5 | V8: 1.5 | W8: 0 | Y8: 0.5 | Z8: 1.25 | AA8: 1.5 | AE8: NS_Age10to11 | AF8: UR_Age10to11
A9: ADL2 | B9: 0 | C9: 0 | D9: 0 | E9: 0 | F9: 0 | G9: 0 | H9: 0 | I9: 0 | J9: 0 | K9: 0 | L9: Transferring/Positioning | O9: 0 | P9: 0 | Q9: 0 | R9: 0 | S9: 0 | T9: 0 | U9: 0 | V9: 0 | W9: 0 | Y9: 0 | Z9: 0 | AA9: 0 | AE9: NS_Age12to14 | AF9: UR_Age12to14
A10: ADL2 | B10: 1 | C10: 0.05 | D10: 0.05 | E10: 0.05 | F10: 0.05 | G10: 0.25 | H10: 0.5 | I10: 0.5 | J10: 0.5 | K10: 0 | O10: 0.05 | P10: 0.05 | Q10: 0.05 | R10: 0.05 | S10: 0.25 | T10: 0.5 | U10: 0.5 | V10: 0.5 | W10: 0 | Y10: 0.05 | Z10: 0.25 | AA10: 0.5 | AE10: NS_Age15to17 | AF10: UR_Age15to17
A11: ADL2 | B11: 2 | C11: 0.05 | D11: 0.05 | E11: 0.05 | F11: 0.05 | G11: 0.25 | H11: 0.5 | I11: 0.5 | J11: 0.5 | K11: 0 | O11: 0.05 | P11: 0.05 | Q11: 0.05 | R11: 0.05 | S11: 0.25 | T11: 0.5 | U11: 0.5 | V11: 0.5 | W11: 0 | Y11: 0.05 | Z11: 0.25 | AA11: 0.5 | AE11: NS_AgeGE18 | AF11: UR_AgeGE18
A12: ADL2 | B12: 3 | C12: 0.05 | D12: 0.05 | E12: 0.05 | F12: 0.05 | G12: 0.25 | H12: 0.5 | I12: 0.5 | J12: 0.5 | K12: 0 | O12: 0.05 | P12: 0.05 | Q12: 0.05 | R12: 0.05 | S12: 0.25 | T12: 0.5 | U12: 0.5 | V12: 0.5 | W12: 0 | Y12: 0.05 | Z12: 0.25 | AA12: 0.5
A13: ADL2 | B13: 4 | C13: 0.25 | D13: 0.25 | E13: 0.25 | F13: 0.25 | G13: 1 | H13: 1 | I13: 1 | J13: 1 | K13: 0 | O13: 0.25 | P13: 0.25 | Q13: 0.25 | R13: 0.25 | S13: 1 | T13: 1 | U13: 1 | V13: 1 | W13: 0 | Y13: 0.25 | Z13: 1 | AA13: 1
A14: ADL2 | B14: 5 | C14: 0.25 | D14: 0.25 | E14: 0.25 | F14: 0.25 | G14: 1 | H14: 1 | I14: 1 | J14: 1 | K14: 0 | O14: 0.25 | P14: 0.25 | Q14: 0.25 | R14: 0.25 | S14: 1 | T14: 1 | U14: 1 | V14: 1 | W14: 0 | Y14: 0.25 | Z14: 1 | AA14: 1
A15: ADL3 | B15: 0 | C15: 0 | D15: 0 | E15: 0 | F15: 0 | G15: 0 | H15: 0 | I15: 0 | J15: 0 | K15: 0 | L15: Food Preparation | O15: 0 | P15: 0 | Q15: 0 | R15: 0 | S15: 0 | T15: 0 | U15: 0 | V15: 0 | W15: 0 | Y15: 0 | Z15: 0 | AA15: 0
A16: ADL3 | B16: 1 | C16: 0 | D16: 0 | E16: 0 | F16: 0 | G16: 0 | H16: 0.0625 | I16: 0.0625 | J16: 0.0625 | K16: 0 | O16: 0 | P16: 0 | Q16: 0 | R16: 0 | S16: 0 | T16: 0.0625 | U16: 0.0625 | V16: 0.0625 | W16: 0 | Y16: 0 | Z16: 0 | AA16: 0.0625
A17: ADL3 | B17: 2 | C17: 0 | D17: 0 | E17: 0 | F17: 0 | G17: 0 | H17: 0.0625 | I17: 0.0625 | J17: 0.0625 | K17: 0 | O17: 0 | P17: 0 | Q17: 0 | R17: 0 | S17: 0 | T17: 0.0625 | U17: 0.0625 | V17: 0.0625 | W17: 0 | Y17: 0 | Z17: 0 | AA17: =0.125/2 -> 0.0625
A18: ADL3 | B18: 3 | C18: 0 | D18: 0 | E18: 0 | F18: 0 | G18: 0 | H18: 0.0625 | I18: 0.0625 | J18: 0.0625 | K18: 0 | O18: 0 | P18: 0 | Q18: 0 | R18: 0 | S18: 0 | T18: 0.0625 | U18: 0.0625 | V18: 0.0625 | W18: 0 | Y18: 0 | Z18: 0 | AA18: =0.125/2 -> 0.0625
A19: ADL3 | B19: 4 | C19: 0 | D19: 0 | E19: 0 | F19: 0 | G19: 0 | H19: 0.125 | I19: 0.125 | J19: 0.125 | K19: 0 | O19: 0 | P19: 0 | Q19: 0 | R19: 0 | S19: 0 | T19: 0.125 | U19: 0.125 | V19: 0.125 | W19: 0 | Y19: 0 | Z19: 0 | AA19: 0.125
A20: ADL3 | B20: 5 | C20: 0 | D20: 0 | E20: 0 | F20: 0 | G20: 0 | H20: 0.125 | I20: 0.125 | J20: 0.125 | K20: 0 | O20: 0 | P20: 0 | Q20: 0 | R20: 0 | S20: 0 | T20: 0.125 | U20: 0.125 | V20: 0.125 | W20: 0 | Y20: 0 | Z20: 0 | AA20: 0.125
A21: ADL4 | B21: 0 | C21: 0 | D21: 0 | E21: 0 | F21: 0 | G21: 0 | H21: 0 | I21: 0 | J21: 0 | K21: 0 | L21: Eating/Drinking | O21: 0 | P21: 0 | Q21: 0 | R21: 0 | S21: 0 | T21: 0 | U21: 0 | V21: 0 | W21: 0 | Y21: 0 | Z21: 0 | AA21: 0
A22: ADL4 | B22: 1 | C22: 0 | D22: 0 | E22: 0 | F22: 0 | G22: 0 | H22: 0.25 | I22: 0.25 | J22: 0.25 | K22: 0 | O22: 0 | P22: 0 | Q22: 0 | R22: 0 | S22: 0 | T22: 0.25 | U22: 0.25 | V22: 0.25 | W22: 0 | Y22: 0 | Z22: 0 | AA22: 0.25
A23: ADL4 | B23: 2 | C23: 0.05 | D23: 0.05 | E23: 0.05 | F23: 0.05 | G23: 0.25 | H23: 0.75 | I23: 0.75 | J23: 0.75 | K23: 0 | O23: 0.05 | P23: 0.05 | Q23: 0.05 | R23: 0.05 | S23: 0.25 | T23: 0.75 | U23: 0.75 | V23: 0.75 | W23: 0 | Y23: 0.05 | Z23: 0.25 | AA23: 0.75
A24: ADL4 | B24: 3 | C24: 0.5 | D24: 0.5 | E24: 0.5 | F24: 0.5 | G24: 1 | H24: 1.25 | I24: 1.25 | J24: 1.25 | K24: 0 | O24: 0.5 | P24: 0.5 | Q24: 0.5 | R24: 0.5 | S24: 1 | T24: 1.25 | U24: 1.25 | V24: 1.25 | W24: 0 | Y24: 0.5 | Z24: 1 | AA24: 1.25
A25: ADL4 | B25: 4 | C25: 0.75 | D25: 0.75 | E25: 0.75 | F25: 0.75 | G25: 1.25 | H25: 1.5 | I25: 1.5 | J25: 1.5 | K25: 0 | O25: 0.75 | P25: 0.75 | Q25: 0.75 | R25: 0.75 | S25: 1.25 | T25: 1.5 | U25: 1.5 | V25: 1.5 | W25: 0 | Y25: 0.75 | Z25: 1.25 | AA25: 1.5
A26: ADL4 | B26: 5 | C26: 0.75 | D26: 0.75 | E26: 0.75 | F26: 0.75 | G26: 1.25 | H26: 1.5 | I26: 1.5 | J26: 1.5 | K26: 0 | O26: 0.75 | P26: 0.75 | Q26: 0.75 | R26: 0.75 | S26: 1.25 | T26: 1.5 | U26: 1.5 | V26: 1.5 | W26: 0 | Y26: 0.75 | Z26: 1.25 | AA26: 1.5
A27: ADL5 | B27: 0 | C27: 0 | D27: 0 | E27: 0 | F27: 0 | G27: 0 | H27: 0 | I27: 0 | J27: 0 | K27: 0 | L27: Bladder Control | O27: 0 | P27: 0 | Q27: 0 | R27: 0 | S27: 0 | T27: 0 | U27: 0 | V27: 0 | W27: 0 | Y27: 0 | Z27: 0 | AA27: 0
A28: ADL5 | B28: 1 | C28: 0 | D28: 0 | E28: 0 | F28: 0 | G28: 0 | H28: 0 | I28: 0 | J28: 0 | K28: 0 | O28: 0 | P28: 0 | Q28: 0 | R28: 0 | S28: 0 | T28: 0 | U28: 0 | V28: 0 | W28: 0 | Y28: 0 | Z28: 0 | AA28: 0
A29: ADL5 | B29: 2 | C29: 0 | D29: 0 | E29: 0 | F29: 0 | G29: 0 | H29: 0 | I29: 0 | J29: 0 | K29: 0 | O29: 0 | P29: 0 | Q29: 0 | R29: 0 | S29: 0 | T29: 0 | U29: 0 | V29: 0 | W29: 0 | Y29: 0 | Z29: 0 | AA29: 0
A30: ADL5 | B30: 3 | C30: 0.25 | D30: 0.25 | E30: 0.25 | F30: 0.25 | G30: 0.5 | H30: 0.5 | I30: 0.5 | J30: 0.5 | K30: 0 | O30: 0.25 | P30: 0.25 | Q30: 0.25 | R30: 0.25 | S30: 0.5 | T30: 0.5 | U30: 0.5 | V30: 0.5 | W30: 0 | Y30: 0.25 | Z30: 0.5 | AA30: 0.5
A31: ADL5 | B31: 4 | C31: 0.5 | D31: 0.5 | E31: 0.5 | F31: 0.5 | G31: 0.75 | H31: 0.75 | I31: 0.75 | J31: 0.75 | K31: 0 | O31: 0.5 | P31: 0.5 | Q31: 0.5 | R31: 0.5 | S31: 0.75 | T31: 0.75 | U31: 0.75 | V31: 0.75 | W31: 0 | Y31: 0.5 | Z31: 0.75 | AA31: 0.75
A32: ADL5 | B32: 5 | C32: 0.5 | D32: 0.5 | E32: 0.5 | F32: 0.5 | G32: 0.75 | H32: 0.75 | I32: 0.75 | J32: 0.75 | K32: 0 | O32: 0.5 | P32: 0.5 | Q32: 0.5 | R32: 0.5 | S32: 0.75 | T32: 0.75 | U32: 0.75 | V32: 0.75 | W32: 0 | Y32: 0.5 | Z32: 0.75 | AA32: 0.75
A33: ADL6 | B33: 0 | C33: 0 | D33: 0 | E33: 0 | F33: 0 | G33: 0 | H33: 0 | I33: 0 | J33: 0 | K33: 0 | L33: Bowel Control | O33: 0 | P33: 0 | Q33: 0 | R33: 0 | S33: 0 | T33: 0 | U33: 0 | V33: 0 | W33: 0 | Y33: 0 | Z33: 0 | AA33: 0
A34: ADL6 | B34: 1 | C34: 0 | D34: 0 | E34: 0 | F34: 0 | G34: 0 | H34: 0 | I34: 0 | J34: 0 | K34: 0 | O34: 0 | P34: 0 | Q34: 0 | R34: 0 | S34: 0 | T34: 0 | U34: 0 | V34: 0 | W34: 0 | Y34: 0 | Z34: 0 | AA34: 0
A35: ADL6 | B35: 2 | C35: 0 | D35: 0 | E35: 0 | F35: 0 | G35: 0 | H35: 0 | I35: 0 | J35: 0 | K35: 0 | O35: 0 | P35: 0 | Q35: 0 | R35: 0 | S35: 0 | T35: 0 | U35: 0 | V35: 0 | W35: 0 | Y35: 0 | Z35: 0 | AA35: 0
A36: ADL6 | B36: 3 | C36: 0.25 | D36: 0.25 | E36: 0.25 | F36: 0.25 | G36: 0.5 | H36: 0.5 | I36: 0.5 | J36: 0.5 | K36: 0 | O36: 0.25 | P36: 0.25 | Q36: 0.25 | R36: 0.25 | S36: 0.5 | T36: 0.5 | U36: 0.5 | V36: 0.5 | W36: 0 | Y36: 0.25 | Z36: 0.5 | AA36: 0.5
A37: ADL6 | B37: 4 | C37: 0.5 | D37: 0.5 | E37: 0.5 | F37: 0.5 | G37: 0.75 | H37: 0.75 | I37: 0.75 | J37: 0.75 | K37: 0 | O37: 0.5 | P37: 0.5 | Q37: 0.5 | R37: 0.5 | S37: 0.75 | T37: 0.75 | U37: 0.75 | V37: 0.75 | W37: 0 | Y37: 0.5 | Z37: 0.75 | AA37: 0.75
A38: ADL6 | B38: 5 | C38: 0.5 | D38: 0.5 | E38: 0.5 | F38: 0.5 | G38: 0.75 | H38: 0.75 | I38: 0.75 | J38: 0.75 | K38: 0 | O38: 0.5 | P38: 0.5 | Q38: 0.5 | R38: 0.5 | S38: 0.75 | T38: 0.75 | U38: 0.75 | V38: 0.75 | W38: 0 | Y38: 0.5 | Z38: 0.75 | AA38: 0.75
A39: ADL7 | B39: 0 | C39: 0 | D39: 0 | E39: 0 | F39: 0 | G39: 0 | H39: 0 | I39: 0 | J39: 0 | K39: 0 | L39: Toileting | O39: 0 | P39: 0 | Q39: 0 | R39: 0 | S39: 0 | T39: 0 | U39: 0 | V39: 0 | W39: 0 | Y39: 0 | Z39: 0 | AA39: 0
A40: ADL7 | B40: 1 | C40: 0 | D40: 0 | E40: 0 | F40: 0 | G40: 0 | H40: 0 | I40: 0 | J40: 0 | K40: 0 | O40: 0 | P40: 0 | Q40: 0 | R40: 0 | S40: 0 | T40: 0 | U40: 0 | V40: 0 | W40: 0 | Y40: 0 | Z40: 0 | AA40: 0
A41: ADL7 | B41: 2 | C41: 0 | D41: 0 | E41: 0 | F41: 0 | G41: 0 | H41: 0 | I41: 0 | J41: 0 | K41: 0 | O41: 0 | P41: 0 | Q41: 0 | R41: 0 | S41: 0 | T41: 0 | U41: 0 | V41: 0 | W41: 0 | Y41: 0 | Z41: 0 | AA41: 0
A42: ADL7 | B42: 3 | C42: 0.125 | D42: 0.125 | E42: 0.125 | F42: 0.125 | G42: 0.125 | H42: 0.5 | I42: 0.5 | J42: 0.5 | K42: 0 | O42: 0.125 | P42: 0.125 | Q42: 0.125 | R42: 0.125 | S42: 0.125 | T42: 0.5 | U42: 0.5 | V42: 0.5 | W42: 0 | Y42: 0.125 | Z42: 0.125 | AA42: 0.5
A43: ADL7 | B43: 4 | C43: 0.5 | D43: 0.5 | E43: 0.5 | F43: 0.5 | G43: 0.75 | H43: 0.75 | I43: 0.75 | J43: 0.75 | K43: 0 | O43: 0.5 | P43: 0.5 | Q43: 0.5 | R43: 0.5 | S43: 0.75 | T43: 0.75 | U43: 0.75 | V43: 0.75 | W43: 0 | Y43: 0.5 | Z43: 0.75 | AA43: 0.75
A44: ADL7 | B44: 5 | C44: 0.5 | D44: 0.5 | E44: 0.5 | F44: 0.5 | G44: 0.75 | H44: 0.75 | I44: 0.75 | J44: 0.75 | K44: 0 | O44: 0.5 | P44: 0.5 | Q44: 0.5 | R44: 0.5 | S44: 0.75 | T44: 0.75 | U44: 0.75 | V44: 0.75 | W44: 0 | Y44: 0.5 | Z44: 0.75 | AA44: 0.75
A45: ADL8 | B45: 0 | C45: 0 | D45: 0 | E45: 0 | F45: 0 | G45: 0 | H45: 0 | I45: 0 | J45: 0 | K45: 0 | L45: Hygiene | O45: 0 | P45: 0 | Q45: 0 | R45: 0 | S45: 0 | T45: 0 | U45: 0 | V45: 0 | W45: 0 | Y45: 0 | Z45: 0 | AA45: 0
A46: ADL8 | B46: 1 | C46: 0 | D46: 0 | E46: 0 | F46: 0 | G46: 0 | H46: 0 | I46: 0 | J46: 0 | K46: 0 | O46: 0 | P46: 0 | Q46: 0 | R46: 0 | S46: 0 | T46: 0 | U46: 0 | V46: 0 | W46: 0 | Y46: 0 | Z46: 0 | AA46: 0
A47: ADL8 | B47: 2 | C47: 0 | D47: 0 | E47: 0 | F47: 0 | G47: 0 | H47: 0 | I47: 0 | J47: 0 | K47: 0 | O47: 0 | P47: 0 | Q47: 0 | R47: 0 | S47: 0 | T47: 0 | U47: 0 | V47: 0 | W47: 0 | Y47: 0 | Z47: 0 | AA47: 0
A48: ADL8 | B48: 3 | C48: 0.0125 | D48: 0.0125 | E48: 0.0125 | F48: 0.0125 | G48: 0.05 | H48: 0.1 | I48: 0.1 | J48: 0.1 | K48: 0 | O48: 0.0125 | P48: 0.0125 | Q48: 0.0125 | R48: 0.0125 | S48: 0.05 | T48: 0.1 | U48: 0.1 | V48: 0.1 | W48: 0 | Y48: 0.0125 | Z48: 0.05 | AA48: 0.1
A49: ADL8 | B49: 4 | C49: 0.025 | D49: 0.025 | E49: 0.025 | F49: 0.025 | G49: 0.1 | H49: 0.125 | I49: 0.125 | J49: 0.125 | K49: 0 | O49: 0.025 | P49: 0.025 | Q49: 0.025 | R49: 0.025 | S49: 0.1 | T49: 0.125 | U49: 0.125 | V49: 0.125 | W49: 0 | Y49: 0.025 | Z49: 0.1 | AA49: 0.125
A50: ADL8 | B50: 5 | C50: 0.05 | D50: 0.05 | E50: 0.05 | F50: 0.05 | G50: 0.125 | H50: 0.15 | I50: 0.15 | J50: 0.15 | K50: 0 | O50: 0.05 | P50: 0.05 | Q50: 0.05 | R50: 0.05 | S50: 0.125 | T50: 0.15 | U50: 0.15 | V50: 0.15 | W50: 0 | Y50: 0.05 | Z50: 0.125 | AA50: 0.15
A51: ADL9 | B51: 0 | C51: 0 | D51: 0 | E51: 0 | F51: 0 | G51: 0 | H51: 0 | I51: 0 | J51: 0 | K51: 0 | L51: Bathing | O51: 0 | P51: 0 | Q51: 0 | R51: 0 | S51: 0 | T51: 0 | U51: 0 | V51: 0 | W51: 0 | Y51: 0 | Z51: 0 | AA51: 0
A52: ADL9 | B52: 1 | C52: 0 | D52: 0 | E52: 0 | F52: 0 | G52: 0 | H52: 0.25 | I52: 0.25 | J52: 0.25 | K52: 0 | O52: 0 | P52: 0 | Q52: 0 | R52: 0 | S52: 0 | T52: 0.25 | U52: 0.25 | V52: 0.25 | W52: 0 | Y52: 0 | Z52: 0 | AA52: 0.25
A53: ADL9 | B53: 2 | C53: 0.1 | D53: 0.1 | E53: 0.1 | F53: 0.1 | G53: 0.25 | H53: 0.25 | I53: 0.25 | J53: 0.25 | K53: 0 | O53: 0.1 | P53: 0.1 | Q53: 0.1 | R53: 0.1 | S53: 0.25 | T53: 0.25 | U53: 0.25 | V53: 0.25 | W53: 0 | Y53: 0.1 | Z53: 0.25 | AA53: 0.25
A54: ADL9 | B54: 3 | C54: 0.1 | D54: 0.1 | E54: 0.1 | F54: 0.1 | G54: 0.25 | H54: 0.25 | I54: 0.25 | J54: 0.25 | K54: 0 | O54: 0.1 | P54: 0.1 | Q54: 0.1 | R54: 0.1 | S54: 0.25 | T54: 0.25 | U54: 0.25 | V54: 0.25 | W54: 0 | Y54: 0.1 | Z54: 0.25 | AA54: 0.25
A55: ADL9 | B55: 4 | C55: 0.25 | D55: 0.25 | E55: 0.25 | F55: 0.25 | G55: 0.5 | H55: 0.75 | I55: 0.75 | J55: 0.75 | K55: 0 | O55: 0.25 | P55: 0.25 | Q55: 0.25 | R55: 0.25 | S55: 0.5 | T55: 0.75 | U55: 0.75 | V55: 0.75 | W55: 0 | Y55: 0.25 | Z55: 0.5 | AA55: 0.75
A56: ADL9 | B56: 5 | C56: 0.25 | D56: 0.25 | E56: 0.25 | F56: 0.25 | G56: 0.5 | H56: 0.75 | I56: 0.75 | J56: 0.75 | K56: 0 | O56: 0.25 | P56: 0.25 | Q56: 0.25 | R56: 0.25 | S56: 0.5 | T56: 0.75 | U56: 0.75 | V56: 0.75 | W56: 0 | Y56: 0.25 | Z56: 0.5 | AA56: 0.75
A57: ADL10 | B57: 0 | C57: 0 | D57: 0 | E57: 0 | F57: 0 | G57: 0 | H57: 0 | I57: 0 | J57: 0 | K57: 0 | L57: Laundry/Housekeeping | O57: 0 | P57: 0 | Q57: 0 | R57: 0 | S57: 0 | T57: 0 | U57: 0 | V57: 0 | W57: 0 | Y57: 0 | Z57: 0 | AA57: 0
A58: ADL10 | B58: 1 | C58: 0 | D58: 0 | E58: 0 | F58: 0 | G58: 0 | H58: 0.032884 | I58: 0.032884 | J58: 0.032884 | K58: 0 | O58: 0 | P58: 0 | Q58: 0 | R58: 0 | S58: 0 | T58: 0.032884 | U58: 0.032884 | V58: 0.032884 | W58: 0 | Y58: 0 | Z58: 0 | AA58: 0.032884
A59: ADL10 | B59: 2 | C59: 0 | D59: 0 | E59: 0 | F59: 0 | G59: 0 | H59: 0.065768 | I59: 0.065768 | J59: 0.065768 | K59: 0 | O59: 0 | P59: 0 | Q59: 0 | R59: 0 | S59: 0 | T59: 0.065768 | U59: 0.065768 | V59: 0.065768 | W59: 0 | Y59: 0 | Z59: 0 | AA59: 0.065768
A60: ADL10 | B60: 3 | C60: 0 | D60: 0 | E60: 0 | F60: 0 | G60: 0 | H60: 0.065768 | I60: 0.065768 | J60: 0.065768 | K60: 0 | O60: 0 | P60: 0 | Q60: 0 | R60: 0 | S60: 0 | T60: 0.065768 | U60: 0.065768 | V60: 0.065768 | W60: 0 | Y60: 0 | Z60: 0 | AA60: 0.065768
A61: ADL10 | B61: 4 | C61: 0 | D61: 0 | E61: 0 | F61: 0 | G61: 0 | H61: 0.065768 | I61: 0.065768 | J61: 0.065768 | K61: 0 | O61: 0 | P61: 0 | Q61: 0 | R61: 0 | S61: 0 | T61: 0.065768 | U61: 0.065768 | V61: 0.065768 | W61: 0 | Y61: 0 | Z61: 0 | AA61: 0.065768
A62: ADL10 | B62: 5 | C62: 0 | D62: 0 | E62: 0 | F62: 0 | G62: 0 | H62: 0.065768 | I62: 0.065768 | J62: 0.065768 | K62: 0 | O62: 0 | P62: 0 | Q62: 0 | R62: 0 | S62: 0 | T62: 0.065768 | U62: 0.065768 | V62: 0.065768 | W62: 0 | Y62: 0 | Z62: 0 | AA62: 0.065768
A63: ADL11 | B63: 0 | C63: 0 | D63: 0 | E63: 0 | F63: 0 | G63: 0 | H63: 0 | I63: 0 | J63: 0 | K63: 0 | L63: Dressing/Hair Care | O63: 0 | P63: 0 | Q63: 0 | R63: 0 | S63: 0 | T63: 0 | U63: 0 | V63: 0 | W63: 0 | Y63: 0 | Z63: 0 | AA63: 0
A64: ADL11 | B64: 1 | C64: 0 | D64: 0 | E64: 0 | F64: 0 | G64: 0 | H64: 0.167 | I64: 0.167 | J64: 0.167 | K64: 0 | O64: 0 | P64: 0 | Q64: 0 | R64: 0 | S64: 0 | T64: 0.167 | U64: 0.167 | V64: 0.167 | W64: 0 | Y64: 0 | Z64: 0 | AA64: 0.167
A65: ADL11 | B65: 2 | C65: 0 | D65: 0 | E65: 0 | F65: 0 | G65: 0 | H65: 0.167 | I65: 0.167 | J65: 0.167 | K65: 0 | O65: 0 | P65: 0 | Q65: 0 | R65: 0 | S65: 0 | T65: 0.167 | U65: 0.167 | V65: 0.167 | W65: 0 | Y65: 0 | Z65: 0 | AA65: 0.167
A66: ADL11 | B66: 3 | C66: 0.0833 | D66: 0.0833 | E66: 0.0833 | F66: 0.0833 | G66: 0.333 | H66: 0.667 | I66: 0.667 | J66: 0.667 | K66: 0 | O66: 0.0833 | P66: 0.0833 | Q66: 0.0833 | R66: 0.0833 | S66: 0.333 | T66: 0.667 | U66: 0.667 | V66: 0.667 | W66: 0 | Y66: 0.0833 | Z66: 0.333 | AA66: 0.667
A67: ADL11 | B67: 4 | C67: =O67-(O67*$L$1) -> 0.1667 | D67: =P67-(P67*$L$1) -> 0.1667 | E67: =Q67-(Q67*$L$1) -> 0.1667 | F67: =R67-(R67*$L$1) -> 0.1667 | G67: =S67-(S67*$L$1) -> 0.333 | H67: =T67-(T67*$L$1) -> 0.667 | I67: =U67-(U67*$L$1) -> 0.667 | J67: =V67-(V67*$L$1) -> 0.667 | K67: =W67-(W67*$L$1) -> 0 | O67: 0.1667 | P67: 0.1667 | Q67: 0.1667 | R67: 0.1667 | S67: 0.333 | T67: 0.667 | U67: 0.667 | V67: 0.667 | W67: 0 | Y67: 0.1667 | Z67: 0.333 | AA67: 0.667
A68: ADL11 | B68: 5 | C68: 0.1667 | D68: 0.1667 | E68: 0.1667 | F68: 0.1667 | G68: 0.333 | H68: 0.667 | I68: 0.667 | J68: 0.667 | K68: 0 | O68: 0.1667 | P68: 0.1667 | Q68: 0.1667 | R68: 0.1667 | S68: 0.333 | T68: 0.667 | U68: 0.667 | V68: 0.667 | W68: 0 | Y68: 0.1667 | Z68: 0.333 | AA68: 0.667
A69: ADL12 | B69: 0 | C69: 0 | D69: 0 | E69: 0 | F69: 0 | G69: 0 | H69: 0 | I69: 0 | J69: 0 | K69: 0 | L69: Shopping/Money Mgmt. | O69: 0 | P69: 0 | Q69: 0 | R69: 0 | S69: 0 | T69: 0 | U69: 0 | V69: 0 | W69: 0 | Y69: 0 | Z69: 0 | AA69: 0
A70: ADL12 | B70: 1 | C70: 0 | D70: 0 | E70: 0 | F70: 0 | G70: 0 | H70: 0 | I70: 0 | J70: 0 | K70: 0 | O70: 0 | P70: 0 | Q70: 0 | R70: 0 | S70: 0 | T70: 0 | U70: 0 | V70: 0 | W70: 0 | Y70: 0 | Z70: 0 | AA70: 0
A71: ADL12 | B71: 2 | C71: 0 | D71: 0 | E71: 0 | F71: 0 | G71: 0 | H71: 0 | I71: 0 | J71: 0 | K71: 0 | O71: 0 | P71: 0 | Q71: 0 | R71: 0 | S71: 0 | T71: 0 | U71: 0 | V71: 0 | W71: 0 | Y71: 0 | Z71: 0 | AA71: 0
A72: ADL12 | B72: 3 | C72: 0 | D72: 0 | E72: 0 | F72: 0 | G72: 0 | H72: 0 | I72: 0 | J72: 0 | K72: 0 | O72: 0 | P72: 0 | Q72: 0 | R72: 0 | S72: 0 | T72: 0 | U72: 0 | V72: 0 | W72: 0 | Y72: 0 | Z72: 0 | AA72: 0
A73: ADL12 | B73: 4 | C73: 0 | D73: 0 | E73: 0 | F73: 0 | G73: 0 | H73: 0 | I73: 0 | J73: 0 | K73: 0 | O73: 0 | P73: 0 | Q73: 0 | R73: 0 | S73: 0 | T73: 0 | U73: 0 | V73: 0 | W73: 0 | Y73: 0 | Z73: 0 | AA73: 0
A74: ADL12 | B74: 5 | C74: 0 | D74: 0 | E74: 0 | F74: 0 | G74: 0 | H74: 0 | I74: 0 | J74: 0 | K74: 0 | O74: 0 | P74: 0 | Q74: 0 | R74: 0 | S74: 0 | T74: 0 | U74: 0 | V74: 0 | W74: 0 | Y74: 0 | Z74: 0 | AA74: 0
A75: Nighttime1 | B75: 0 | C75: 0 | D75: 0 | E75: 0 | F75: 0 | G75: 0 | H75: 0 | I75: 0 | J75: 0 | K75: 0 | L75: Nighttime | O75: 0 | P75: 0 | Q75: 0 | R75: 0 | S75: 0 | T75: 0 | U75: 0 | V75: 0 | W75: 0 | Y75: 0 | Z75: 0 | AA75: 0
A76: Nighttime1 | B76: 1 | C76: 0 | D76: 0 | E76: 0 | F76: 0 | G76: 0 | H76: 1 | I76: 1 | J76: 1 | K76: 0 | O76: 0 | P76: 0 | Q76: 0 | R76: 0 | S76: 0 | T76: 1 | U76: 1 | V76: 1 | W76: 0 | Y76: 0 | Z76: 0 | AA76: 1
A77: Nighttime1 | B77: 2 | C77: 0.667 | D77: 0.667 | E77: 0.667 | F77: 0.667 | G77: 1 | H77: 2 | I77: 2 | J77: 2 | K77: 0 | O77: 0.667 | P77: 0.667 | Q77: 0.667 | R77: 0.667 | S77: 1 | T77: 2 | U77: 2 | V77: 2 | W77: 0 | Y77: 0.667 | Z77: 1 | AA77: 2
A78: Nighttime1 | B78: 3 | C78: 7 | D78: 7 | E78: 7 | F78: 7 | G78: 7 | H78: 7 | I78: 7 | J78: 7 | K78: 0 | O78: 7 | P78: 7 | Q78: 7 | R78: 7 | S78: 7 | T78: 7 | U78: 7 | V78: 7 | W78: 0 | Y78: 7 | Z78: 7 | AA78: 7
A79: Nighttime1 | B79: 4 | C79: 7 | D79: 7 | E79: 7 | F79: 7 | G79: 7 | H79: 7 | I79: 7 | J79: 7 | K79: 0 | O79: 7 | P79: 7 | Q79: 7 | R79: 7 | S79: 7 | T79: 7 | U79: 7 | V79: 7 | W79: 0 | Y79: 7 | Z79: 7 | AA79: 7
A80: Nighttime1 | B80: 5 | C80: 7 | D80: 7 | E80: 7 | F80: 7 | G80: 7 | H80: 7 | I80: 7 | J80: 7 | K80: 0 | O80: 7 | P80: 7 | Q80: 7 | R80: 7 | S80: 7 | T80: 7 | U80: 7 | V80: 7 | W80: 0 | Y80: 7 | Z80: 7 | AA80: 7
A81: Medical1 | B81: 0 | C81: 0 | D81: 0 | E81: 0 | F81: 0 | G81: 0 | H81: 0 | I81: 0 | J81: 0 | K81: 0 | L81: Communication, Expressive | O81: 0 | P81: 0 | Q81: 0 | R81: 0 | S81: 0 | T81: 0 | U81: 0 | V81: 0 | W81: 0 | Y81: 0 | Z81: 0 | AA81: 0
A82: Medical1 | B82: 1 | C82: 0.04 | D82: 0.04 | E82: 0.04 | F82: 0.04 | G82: 0.175 | H82: 0.175 | I82: 0.175 | J82: 0.175 | K82: 0 | O82: 0.04 | P82: 0.04 | Q82: 0.04 | R82: 0.04 | S82: 0.175 | T82: 0.175 | U82: 0.175 | V82: 0.175 | W82: 0 | Y82: 0.04 | Z82: 0.175 | AA82: 0.175
A83: Medical1 | B83: 2 | C83: 0.0875 | D83: 0.0875 | E83: 0.0875 | F83: 0.0875 | G83: 0.25 | H83: 0.25 | I83: 0.25 | J83: 0.25 | K83: 0 | O83: 0.0875 | P83: 0.0875 | Q83: 0.0875 | R83: 0.0875 | S83: 0.25 | T83: 0.25 | U83: 0.25 | V83: 0.25 | W83: 0 | Y83: 0.0875 | Z83: 0.25 | AA83: 0.25
A84: Medical1 | B84: 3 | C84: 0.0875 | D84: 0.0875 | E84: 0.0875 | F84: 0.0875 | G84: 0.25 | H84: 0.25 | I84: 0.25 | J84: 0.25 | K84: 0 | O84: 0.0875 | P84: 0.0875 | Q84: 0.0875 | R84: 0.0875 | S84: 0.25 | T84: 0.25 | U84: 0.25 | V84: 0.25 | W84: 0 | Y84: 0.0875 | Z84: 0.25 | AA84: 0.25
A85: Medical1 | B85: 4 | C85: 0.0875 | D85: 0.0875 | E85: 0.0875 | F85: 0.0875 | G85: 0.25 | H85: 0.25 | I85: 0.25 | J85: 0.25 | K85: 0 | O85: 0.0875 | P85: 0.0875 | Q85: 0.0875 | R85: 0.0875 | S85: 0.25 | T85: 0.25 | U85: 0.25 | V85: 0.25 | W85: 0 | Y85: 0.0875 | Z85: 0.25 | AA85: 0.25
A86: Medical1 | B86: 5 | C86: 0.0875 | D86: 0.0875 | E86: 0.0875 | F86: 0.0875 | G86: 0.25 | H86: 0.25 | I86: 0.25 | J86: 0.25 | K86: 0 | O86: 0.0875 | P86: 0.0875 | Q86: 0.0875 | R86: 0.0875 | S86: 0.25 | T86: 0.25 | U86: 0.25 | V86: 0.25 | W86: 0 | Y86: 0.0875 | Z86: 0.25 | AA86: 0.25
A87: Medical2 | B87: 0 | C87: 0 | D87: 0 | E87: 0 | F87: 0 | G87: 0 | H87: 0 | I87: 0 | J87: 0 | K87: 0 | L87: Communication, Receptive | O87: 0 | P87: 0 | Q87: 0 | R87: 0 | S87: 0 | T87: 0 | U87: 0 | V87: 0 | W87: 0 | Y87: 0 | Z87: 0 | AA87: 0
A88: Medical2 | B88: 1 | C88: 0.03125 | D88: 0.03125 | E88: 0.03125 | F88: 0.03125 | G88: 0.125 | H88: 0.175 | I88: 0.175 | J88: 0.175 | K88: 0 | O88: 0.03125 | P88: 0.03125 | Q88: 0.03125 | R88: 0.03125 | S88: 0.125 | T88: 0.175 | U88: 0.175 | V88: 0.175 | W88: 0 | Y88: 0.03125 | Z88: 0.125 | AA88: 0.175
A89: Medical2 | B89: 2 | C89: 0.0625 | D89: 0.0625 | E89: 0.0625 | F89: 0.0625 | G89: 0.25 | H89: 0.25 | I89: 0.25 | J89: 0.25 | K89: 0 | O89: 0.0625 | P89: 0.0625 | Q89: 0.0625 | R89: 0.0625 | S89: 0.25 | T89: 0.25 | U89: 0.25 | V89: 0.25 | W89: 0 | Y89: 0.0625 | Z89: 0.25 | AA89: 0.25
A90: Medical2 | B90: 3 | C90: 0.0625 | D90: 0.0625 | E90: 0.0625 | F90: 0.0625 | G90: 0.25 | H90: 0.25 | I90: 0.25 | J90: 0.25 | K90: 0 | O90: 0.0625 | P90: 0.0625 | Q90: 0.0625 | R90: 0.0625 | S90: 0.25 | T90: 0.25 | U90: 0.25 | V90: 0.25 | W90: 0 | Y90: 0.0625 | Z90: 0.25 | AA90: 0.25
A91: Medical2 | B91: 4 | C91: 0.0625 | D91: 0.0625 | E91: 0.0625 | F91: 0.0625 | G91: 0.25 | H91: 0.25 | I91: 0.25 | J91: 0.25 | K91: 0 | O91: 0.0625 | P91: 0.0625 | Q91: 0.0625 | R91: 0.0625 | S91: 0.25 | T91: 0.25 | U91: 0.25 | V91: 0.25 | W91: 0 | Y91: 0.0625 | Z91: 0.25 | AA91: 0.25
A92: Medical2 | B92: 5 | C92: 0.0625 | D92: 0.0625 | E92: 0.0625 | F92: 0.0625 | G92: 0.25 | H92: 0.25 | I92: 0.25 | J92: 0.25 | K92: 0 | O92: 0.0625 | P92: 0.0625 | Q92: 0.0625 | R92: 0.0625 | S92: 0.25 | T92: 0.25 | U92: 0.25 | V92: 0.25 | W92: 0 | Y92: 0.0625 | Z92: 0.25 | AA92: 0.25
A93: Medical3 | B93: 0 | C93: 0 | D93: 0 | E93: 0 | F93: 0 | G93: 0 | H93: 0 | I93: 0 | J93: 0 | K93: 0 | L93: Safety | O93: 0 | P93: 0 | Q93: 0 | R93: 0 | S93: 0 | T93: 0 | U93: 0 | V93: 0 | W93: 0 | Y93: 0 | Z93: 0 | AA93: 0
A94: Medical3 | B94: 1 | C94: 0 | D94: 0 | E94: 0 | F94: 0 | G94: 0 | H94: 0 | I94: 0 | J94: 0 | K94: 0 | O94: 0 | P94: 0 | Q94: 0 | R94: 0 | S94: 0 | T94: 0 | U94: 0 | V94: 0 | W94: 0 | Y94: 0 | Z94: 0 | AA94: 0
A95: Medical3 | B95: 2 | C95: 0 | D95: 0 | E95: 0 | F95: 0 | G95: 0 | H95: 0.25 | I95: 0.25 | J95: 0.25 | K95: 0 | O95: 0 | P95: 0 | Q95: 0 | R95: 0 | S95: 0 | T95: 0.25 | U95: 0.25 | V95: 0.25 | W95: 0 | Y95: 0 | Z95: 0 | AA95: 0.25
A96: Medical3 | B96: 3 | C96: 0 | D96: 0 | E96: 0 | F96: 0 | G96: 0 | H96: 1 | I96: 1 | J96: 1 | K96: 0 | O96: 0 | P96: 0 | Q96: 0 | R96: 0 | S96: 0 | T96: 1 | U96: 1 | V96: 1 | W96: 0 | Y96: 0 | Z96: 0 | AA96: 1
A97: Medical3 | B97: 4 | C97: 0 | D97: 0 | E97: 0 | F97: 0 | G97: 0 | H97: 1 | I97: 1 | J97: 1 | K97: 0 | O97: 0 | P97: 0 | Q97: 0 | R97: 0 | S97: 0 | T97: 1 | U97: 1 | V97: 1 | W97: 0 | Y97: 0 | Z97: 0 | AA97: 1
A98: Medical3 | B98: 5 | C98: 0 | D98: 0 | E98: 0 | F98: 0 | G98: 0 | H98: 1 | I98: 1 | J98: 1 | K98: 0 | O98: 0 | P98: 0 | Q98: 0 | R98: 0 | S98: 0 | T98: 1 | U98: 1 | V98: 1 | W98: 0 | Y98: 0 | Z98: 0 | AA98: 1
A99: Medical4 | B99: 0 | C99: 0 | D99: 0 | E99: 0 | F99: 0 | G99: 0 | H99: 0 | I99: 0 | J99: 0 | K99: 0 | L99: Fire Evacuation | O99: 0 | P99: 0 | Q99: 0 | R99: 0 | S99: 0 | T99: 0 | U99: 0 | V99: 0 | W99: 0 | Y99: 0 | Z99: 0 | AA99: 0
A100: Medical4 | B100: 1 | C100: 0 | D100: 0 | E100: 0 | F100: 0 | G100: 0 | H100: 0 | I100: 0 | J100: 0 | K100: 0 | O100: 0 | P100: 0 | Q100: 0 | R100: 0 | S100: 0 | T100: 0 | U100: 0 | V100: 0 | W100: 0 | Y100: 0 | Z100: 0 | AA100: 0
A101: Medical4 | B101: 2 | C101: 0 | D101: 0 | E101: 0 | F101: 0 | G101: 0 | H101: 0 | I101: 0 | J101: 0 | K101: 0 | O101: 0 | P101: 0 | Q101: 0 | R101: 0 | S101: 0 | T101: 0 | U101: 0 | V101: 0 | W101: 0 | Y101: 0 | Z101: 0 | AA101: 0
A102: Medical4 | B102: 3 | C102: 0 | D102: 0 | E102: 0 | F102: 0 | G102: 0 | H102: 0 | I102: 0 | J102: 0 | K102: 0 | O102: 0 | P102: 0 | Q102: 0 | R102: 0 | S102: 0 | T102: 0 | U102: 0 | V102: 0 | W102: 0 | Y102: 0 | Z102: 0 | AA102: 0
A103: Medical4 | B103: 4 | C103: 0 | D103: 0 | E103: 0 | F103: 0 | G103: 0 | H103: 0 | I103: 0 | J103: 0 | K103: 0 | O103: 0 | P103: 0 | Q103: 0 | R103: 0 | S103: 0 | T103: 0 | U103: 0 | V103: 0 | W103: 0 | Y103: 0 | Z103: 0 | AA103: 0
A104: Medical4 | B104: 5 | C104: 0 | D104: 0 | E104: 0 | F104: 0 | G104: 0 | H104: 0 | I104: 0 | J104: 0 | K104: 0 | O104: 0 | P104: 0 | Q104: 0 | R104: 0 | S104: 0 | T104: 0 | U104: 0 | V104: 0 | W104: 0 | Y104: 0 | Z104: 0 | AA104: 0
A105: Medical5 | B105: 0 | C105: 0 | D105: 0 | E105: 0 | F105: 0 | G105: 0 | H105: 0 | I105: 0 | J105: 0 | K105: 0 | L105: Medication - Oral | O105: 0 | P105: 0 | Q105: 0 | R105: 0 | S105: 0 | T105: 0 | U105: 0 | V105: 0 | W105: 0 | Y105: 0 | Z105: 0 | AA105: 0
A106: Medical5 | B106: 1 | C106: 0 | D106: 0 | E106: 0 | F106: 0 | G106: 0 | H106: 0.125 | I106: 0.125 | J106: 0.125 | K106: 0 | O106: 0 | P106: 0 | Q106: 0 | R106: 0 | S106: 0 | T106: 0.125 | U106: 0.125 | V106: 0.125 | W106: 0 | Y106: 0 | Z106: 0 | AA106: 0.125
A107: Medical5 | B107: 2 | C107: 0 | D107: 0 | E107: 0 | F107: 0 | G107: 0 | H107: 0.125 | I107: 0.125 | J107: 0.125 | K107: 0 | O107: 0 | P107: 0 | Q107: 0 | R107: 0 | S107: 0 | T107: 0.125 | U107: 0.125 | V107: 0.125 | W107: 0 | Y107: 0 | Z107: 0 | AA107: 0.125
A108: Medical5 | B108: 3 | C108: 0 | D108: 0 | E108: 0 | F108: 0 | G108: 0.125 | H108: 0.25 | I108: 0.25 | J108: 0.25 | K108: 0 | O108: 0 | P108: 0 | Q108: 0 | R108: 0 | S108: 0.125 | T108: 0.25 | U108: 0.25 | V108: 0.25 | W108: 0 | Y108: 0 | Z108: 0.125 | AA108: 0.25
A109: Medical5 | B109: 4 | C109: 0 | D109: 0 | E109: 0 | F109: 0 | G109: 0.125 | H109: 0.25 | I109: 0.25 | J109: 0.25 | K109: 0 | O109: 0 | P109: 0 | Q109: 0 | R109: 0 | S109: 0.125 | T109: 0.25 | U109: 0.25 | V109: 0.25 | W109: 0 | Y109: 0 | Z109: 0.125 | AA109: 0.25
A110: Medical5 | B110: 5 | C110: 0 | D110: 0 | E110: 0 | F110: 0 | G110: 0.125 | H110: 0.25 | I110: 0.25 | J110: 0.25 | K110: 0 | O110: 0 | P110: 0 | Q110: 0 | R110: 0 | S110: 0.125 | T110: 0.25 | U110: 0.25 | V110: 0.25 | W110: 0 | Y110: 0 | Z110: 0.125 | AA110: 0.25
A111: Medical6 | B111: 0 | C111: 0 | D111: 0 | E111: 0 | F111: 0 | G111: 0 | H111: 0 | I111: 0 | J111: 0 | K111: 0 | L111: Meds - Inhalants, Topicals, Supp. | O111: 0 | P111: 0 | Q111: 0 | R111: 0 | S111: 0 | T111: 0 | U111: 0 | V111: 0 | W111: 0 | Y111: 0 | Z111: 0 | AA111: 0
A112: Medical6 | B112: 1 | C112: 0 | D112: 0 | E112: 0 | F112: 0 | G112: 0.125 | H112: 0.125 | I112: 0.125 | J112: 0.125 | K112: 0 | O112: 0 | P112: 0 | Q112: 0 | R112: 0 | S112: 0.125 | T112: 0.125 | U112: 0.125 | V112: 0.125 | W112: 0 | Y112: 0 | Z112: 0.125 | AA112: 0.125
A113: Medical6 | B113: 2 | C113: 0.05 | D113: 0.05 | E113: 0.05 | F113: 0.05 | G113: 0.25 | H113: 0.5 | I113: 0.5 | J113: 0.5 | K113: 0 | O113: 0.05 | P113: 0.05 | Q113: 0.05 | R113: 0.05 | S113: 0.25 | T113: 0.5 | U113: 0.5 | V113: 0.5 | W113: 0 | Y113: 0.05 | Z113: 0.25 | AA113: 0.5
A114: Medical6 | B114: 3 | C114: 0.05 | D114: 0.05 | E114: 0.05 | F114: 0.05 | G114: 0.25 | H114: 0.5 | I114: 0.5 | J114: 0.5 | K114: 0 | O114: 0.05 | P114: 0.05 | Q114: 0.05 | R114: 0.05 | S114: 0.25 | T114: 0.5 | U114: 0.5 | V114: 0.5 | W114: 0 | Y114: 0.05 | Z114: 0.25 | AA114: 0.5
A115: Medical6 | B115: 4 | C115: 0.05 | D115: 0.05 | E115: 0.05 | F115: 0.05 | G115: 0.25 | H115: 0.5 | I115: 0.5 | J115: 0.5 | K115: 0 | O115: 0.05 | P115: 0.05 | Q115: 0.05 | R115: 0.05 | S115: 0.25 | T115: 0.5 | U115: 0.5 | V115: 0.5 | W115: 0 | Y115: 0.05 | Z115: 0.25 | AA115: 0.5
A116: Medical6 | B116: 5 | C116: 0.05 | D116: 0.05 | E116: 0.05 | F116: 0.05 | G116: 0.25 | H116: 0.5 | I116: 0.5 | J116: 0.5 | K116: 0 | O116: 0.05 | P116: 0.05 | Q116: 0.05 | R116: 0.05 | S116: 0.25 | T116: 0.5 | U116: 0.5 | V116: 0.5 | W116: 0 | Y116: 0.05 | Z116: 0.25 | AA116: 0.5
A117: Medical7 | B117: 0 | C117: 0 | D117: 0 | E117: 0 | F117: 0 | G117: 0 | H117: 0 | I117: 0 | J117: 0 | K117: 0 | L117: Meds - Injections | O117: 0 | P117: 0 | Q117: 0 | R117: 0 | S117: 0 | T117: 0 | U117: 0 | V117: 0 | W117: 0 | Y117: 0 | Z117: 0 | AA117: 0
A118: Medical7 | B118: 1 | C118: 0 | D118: 0 | E118: 0 | F118: 0 | G118: 0 | H118: 0 | I118: 0 | J118: 0 | K118: 0 | O118: 0 | P118: 0 | Q118: 0 | R118: 0 | S118: 0 | T118: 0 | U118: 0 | V118: 0 | W118: 0 | Y118: 0 | Z118: 0 | AA118: 0
A119: Medical7 | B119: 2 | C119: 0 | D119: 0 | E119: 0 | F119: 0 | G119: 0 | H119: 0 | I119: 0 | J119: 0 | K119: 0 | O119: 0 | P119: 0 | Q119: 0 | R119: 0 | S119: 0 | T119: 0 | U119: 0 | V119: 0 | W119: 0 | Y119: 0 | Z119: 0 | AA119: 0
A120: Medical7 | B120: 3 | C120: 0.25 | D120: 0.25 | E120: 0.25 | F120: 0.25 | G120: 0.25 | H120: 0.5 | I120: 0.5 | J120: 0.5 | K120: 0 | O120: 0.25 | P120: 0.25 | Q120: 0.25 | R120: 0.25 | S120: 0.25 | T120: 0.5 | U120: 0.5 | V120: 0.5 | W120: 0 | Y120: 0.25 | Z120: 0.25 | AA120: 0.5
A121: Medical7 | B121: 4 | C121: 0.5 | D121: 0.5 | E121: 0.5 | F121: 0.5 | G121: 0.5 | H121: 1 | I121: 1 | J121: 1 | K121: 0 | O121: 0.5 | P121: 0.5 | Q121: 0.5 | R121: 0.5 | S121: 0.5 | T121: 1 | U121: 1 | V121: 1 | W121: 0 | Y121: 0.5 | Z121: 0.5 | AA121: 1
A122: Medical7 | B122: 5 | C122: 0.5 | D122: 0.5 | E122: 0.5 | F122: 0.5 | G122: 0.5 | H122: 1 | I122: 1 | J122: 1 | K122: 0 | O122: 0.5 | P122: 0.5 | Q122: 0.5 | R122: 0.5 | S122: 0.5 | T122: 1 | U122: 1 | V122: 1 | W122: 0 | Y122: 0.5 | Z122: 0.5 | AA122: 1
A123: Medical8 | B123: 0 | C123: 0 | D123: 0 | E123: 0 | F123: 0 | G123: 0 | H123: 0 | I123: 0 | J123: 0 | K123: 0 | L123: Health Supports - General | O123: 0 | P123: 0 | Q123: 0 | R123: 0 | S123: 0 | T123: 0 | U123: 0 | V123: 0 | W123: 0 | Y123: 0 | Z123: 0 | AA123: 0
A124: Medical8 | B124: 1 | C124: 0 | D124: 0 | E124: 0 | F124: 0 | G124: 0 | H124: 0 | I124: 0 | J124: 0 | K124: 0 | O124: 0 | P124: 0 | Q124: 0 | R124: 0 | S124: 0 | T124: 0 | U124: 0 | V124: 0 | W124: 0 | Y124: 0 | Z124: 0 | AA124: 0
A125: Medical8 | B125: 2 | C125: 0 | D125: 0 | E125: 0 | F125: 0 | G125: 0 | H125: 0.005 | I125: 0.005 | J125: 0.005 | K125: 0 | O125: 0 | P125: 0 | Q125: 0 | R125: 0 | S125: 0 | T125: 0.005 | U125: 0.005 | V125: 0.005 | W125: 0 | Y125: 0 | Z125: 0 | AA125: 0.005
A126: Medical8 | B126: 3 | C126: 0 | D126: 0 | E126: 0 | F126: 0 | G126: 0 | H126: 0.005 | I126: 0.005 | J126: 0.005 | K126: 0 | O126: 0 | P126: 0 | Q126: 0 | R126: 0 | S126: 0 | T126: 0.005 | U126: 0.005 | V126: 0.005 | W126: 0 | Y126: 0 | Z126: 0 | AA126: 0.005
A127: Medical8 | B127: 4 | C127: 0 | D127: 0 | E127: 0 | F127: 0 | G127: 0 | H127: 0.02 | I127: 0.02 | J127: 0.02 | K127: 0 | O127: 0 | P127: 0 | Q127: 0 | R127: 0 | S127: 0 | T127: 0.02 | U127: 0.02 | V127: 0.02 | W127: 0 | Y127: 0 | Z127: 0 | AA127: 0.02
A128: Medical8 | B128: 5 | C128: 0 | D128: 0 | E128: 0 | F128: 0 | G128: 0 | H128: 0.04 | I128: 0.04 | J128: 0.04 | K128: 0 | O128: 0 | P128: 0 | Q128: 0 | R128: 0 | S128: 0 | T128: 0.04 | U128: 0.04 | V128: 0.04 | W128: 0 | Y128: 0 | Z128: 0 | AA128: 0.04
A129: Medical9 | B129: 0 | C129: 0 | D129: 0 | E129: 0 | F129: 0 | G129: 0 | H129: 0 | I129: 0 | J129: 0 | K129: 0 | L129: Complex Health Supports | O129: 0 | P129: 0 | Q129: 0 | R129: 0 | S129: 0 | T129: 0 | U129: 0 | V129: 0 | W129: 0 | Y129: 0 | Z129: 0 | AA129: 0
A130: Medical9 | B130: 1 | C130: 0.2 | D130: 0.2 | E130: 0.2 | F130: 0.2 | G130: 0.35 | H130: 0.5 | I130: 0.5 | J130: 0.5 | K130: 0 | O130: 0.2 | P130: 0.2 | Q130: 0.2 | R130: 0.2 | S130: 0.35 | T130: 0.5 | U130: 0.5 | V130: 0.5 | W130: 0 | Y130: 0.2 | Z130: 0.35 | AA130: 0.5
A131: Medical9 | B131: 2 | C131: =O131-(O131*$L$1) -> 0.4 | D131: =P131-(P131*$L$1) -> 0.4 | E131: =Q131-(Q131*$L$1) -> 0.4 | F131: =R131-(R131*$L$1) -> 0.4 | G131: =S131-(S131*$L$1) -> 0.45 | H131: =T131-(T131*$L$1) -> 0.5 | I131: =U131-(U131*$L$1) -> 0.5 | J131: =V131-(V131*$L$1) -> 0.5 | K131: =W131-(W131*$L$1) -> 0 | O131: 0.4 | P131: 0.4 | Q131: 0.4 | R131: 0.4 | S131: 0.45 | T131: 0.5 | U131: 0.5 | V131: 0.5 | W131: 0 | Y131: 0.4 | Z131: 0.45 | AA131: 0.5
A132: Medical9 | B132: 3 | C132: 1.125 | D132: 1.125 | E132: 1.125 | F132: 1.125 | G132: 1.2 | H132: 1.25 | I132: 1.25 | J132: 1.25 | K132: 0 | O132: 1.125 | P132: 1.125 | Q132: 1.125 | R132: 1.125 | S132: 1.2 | T132: 1.25 | U132: 1.25 | V132: 1.25 | W132: 0 | Y132: 1.125 | Z132: 1.2 | AA132: 1.25
A133: Medical9 | B133: 4 | C133: 2.5 | D133: 2.5 | E133: 2.5 | F133: 2.5 | G133: 2.675 | H133: 2.75 | I133: 2.75 | J133: 2.75 | K133: 0 | O133: 2.5 | P133: 2.5 | Q133: 2.5 | R133: 2.5 | S133: 2.675 | T133: 2.75 | U133: 2.75 | V133: 2.75 | W133: 0 | Y133: 2.5 | Z133: 2.675 | AA133: 2.75
A134: Medical9 | B134: 5 | C134: 4 | D134: 4 | E134: 4 | F134: 4 | G134: 4 | H134: 4 | I134: 4 | J134: 4 | K134: 0 | O134: 4 | P134: 4 | Q134: 4 | R134: 4 | S134: 4 | T134: 4 | U134: 4 | V134: 4 | W134: 0 | Y134: 4 | Z134: 4 | AA134: 4
A135: Medical10 | B135: 0 | C135: 0 | D135: 0 | E135: 0 | F135: 0 | G135: 0 | H135: 0 | I135: 0 | J135: 0 | K135: 0 | L135: (Unused "Nursing" section removed!) | O135: 0 | P135: 0 | Q135: 0 | R135: 0 | S135: 0 | T135: 0 | U135: 0 | V135: 0 | W135: 0 | Y135: 0 | Z135: 0 | AA135: 0
A136: Medical10 | B136: 1 | C136: 0 | D136: 0 | E136: 0 | F136: 0 | G136: 0 | H136: 0 | I136: 0 | J136: 0 | K136: 0 | O136: 0 | P136: 0 | Q136: 0 | R136: 0 | S136: 0 | T136: 0 | U136: 0 | V136: 0 | W136: 0 | Y136: 0 | Z136: 0 | AA136: 0
A137: Medical10 | B137: 2 | C137: 0 | D137: 0 | E137: 0 | F137: 0 | G137: 0 | H137: 0 | I137: 0 | J137: 0 | K137: 0 | O137: 0 | P137: 0 | Q137: 0 | R137: 0 | S137: 0 | T137: 0 | U137: 0 | V137: 0 | W137: 0 | Y137: 0 | Z137: 0 | AA137: 0
A138: Medical10 | B138: 3 | C138: 0 | D138: 0 | E138: 0 | F138: 0 | G138: 0 | H138: 0 | I138: 0 | J138: 0 | K138: 0 | O138: 0 | P138: 0 | Q138: 0 | R138: 0 | S138: 0 | T138: 0 | U138: 0 | V138: 0 | W138: 0 | Y138: 0 | Z138: 0 | AA138: 0
A139: Medical10 | B139: 4 | C139: 0 | D139: 0 | E139: 0 | F139: 0 | G139: 0 | H139: 0 | I139: 0 | J139: 0 | K139: 0 | O139: 0 | P139: 0 | Q139: 0 | R139: 0 | S139: 0 | T139: 0 | U139: 0 | V139: 0 | W139: 0 | Y139: 0 | Z139: 0 | AA139: 0
A140: Medical10 | B140: 5 | C140: 0 | D140: 0 | E140: 0 | F140: 0 | G140: 0 | H140: 0 | I140: 0 | J140: 0 | K140: 0 | O140: 0 | P140: 0 | Q140: 0 | R140: 0 | S140: 0 | T140: 0 | U140: 0 | V140: 0 | W140: 0 | Y140: 0 | Z140: 0 | AA140: 0
A141: Medical11 | B141: 0 | C141: 0 | D141: 0 | E141: 0 | F141: 0 | G141: 0 | H141: 0 | I141: 0 | J141: 0 | K141: 0 | L141: Equipment | M141: Equip.: No score… | O141: 0 | P141: 0 | Q141: 0 | R141: 0 | S141: 0 | T141: 0 | U141: 0 | V141: 0 | W141: 0 | Y141: 0 | Z141: 0 | AA141: 0
A142: Medical11 | B142: 1 | C142: 0 | D142: 0 | E142: 0 | F142: 0 | G142: 0 | H142: 0 | I142: 0 | J142: 0 | K142: 0 | O142: 0 | P142: 0 | Q142: 0 | R142: 0 | S142: 0 | T142: 0 | U142: 0 | V142: 0 | W142: 0 | Y142: 0 | Z142: 0 | AA142: 0
A143: Medical11 | B143: 2 | C143: 0 | D143: 0 | E143: 0 | F143: 0 | G143: 0 | H143: 0 | I143: 0 | J143: 0 | K143: 0 | O143: 0 | P143: 0 | Q143: 0 | R143: 0 | S143: 0 | T143: 0 | U143: 0 | V143: 0 | W143: 0 | Y143: 0 | Z143: 0 | AA143: 0
A144: Medical11 | B144: 3 | C144: 0 | D144: 0 | E144: 0 | F144: 0 | G144: 0 | H144: 0 | I144: 0 | J144: 0 | K144: 0 | O144: 0 | P144: 0 | Q144: 0 | R144: 0 | S144: 0 | T144: 0 | U144: 0 | V144: 0 | W144: 0 | Y144: 0 | Z144: 0 | AA144: 0
A145: Medical11 | B145: 4 | C145: 0 | D145: 0 | E145: 0 | F145: 0 | G145: 0 | H145: 0 | I145: 0 | J145: 0 | K145: 0 | O145: 0 | P145: 0 | Q145: 0 | R145: 0 | S145: 0 | T145: 0 | U145: 0 | V145: 0 | W145: 0 | Y145: 0 | Z145: 0 | AA145: 0
A146: Medical11 | B146: 5 | C146: 0 | D146: 0 | E146: 0 | F146: 0 | G146: 0 | H146: 0 | I146: 0 | J146: 0 | K146: 0 | O146: 0 | P146: 0 | Q146: 0 | R146: 0 | S146: 0 | T146: 0 | U146: 0 | V146: 0 | W146: 0 | Y146: 0 | Z146: 0 | AA146: 0
A147: Medical12 | B147: 0 | C147: 0 | D147: 0 | E147: 0 | F147: 0 | G147: 0 | H147: 0 | I147: 0 | J147: 0 | K147: 0 | O147: 0 | P147: 0 | Q147: 0 | R147: 0 | S147: 0 | T147: 0 | U147: 0 | V147: 0 | W147: 0 | Y147: 0 | Z147: 0 | AA147: 0
A148: Medical12 | B148: 1 | C148: 0 | D148: 0 | E148: 0 | F148: 0 | G148: 0 | H148: 0 | I148: 0 | J148: 0 | K148: 0 | O148: 0 | P148: 0 | Q148: 0 | R148: 0 | S148: 0 | T148: 0 | U148: 0 | V148: 0 | W148: 0 | Y148: 0 | Z148: 0 | AA148: 0
A149: Medical12 | B149: 2 | C149: 0 | D149: 0 | E149: 0 | F149: 0 | G149: 0 | H149: 0 | I149: 0 | J149: 0 | K149: 0 | O149: 0 | P149: 0 | Q149: 0 | R149: 0 | S149: 0 | T149: 0 | U149: 0 | V149: 0 | W149: 0 | Y149: 0 | Z149: 0 | AA149: 0
A150: Medical12 | B150: 3 | C150: 0 | D150: 0 | E150: 0 | F150: 0 | G150: 0 | H150: 0 | I150: 0 | J150: 0 | K150: 0 | O150: 0 | P150: 0 | Q150: 0 | R150: 0 | S150: 0 | T150: 0 | U150: 0 | V150: 0 | W150: 0 | Y150: 0 | Z150: 0 | AA150: 0
A151: Medical12 | B151: 4 | C151: 0 | D151: 0 | E151: 0 | F151: 0 | G151: 0 | H151: 0 | I151: 0 | J151: 0 | K151: 0 | O151: 0 | P151: 0 | Q151: 0 | R151: 0 | S151: 0 | T151: 0 | U151: 0 | V151: 0 | W151: 0 | Y151: 0 | Z151: 0 | AA151: 0
A152: Medical12 | B152: 5 | C152: 0 | D152: 0 | E152: 0 | F152: 0 | G152: 0 | H152: 0 | I152: 0 | J152: 0 | K152: 0 | O152: 0 | P152: 0 | Q152: 0 | R152: 0 | S152: 0 | T152: 0 | U152: 0 | V152: 0 | W152: 0 | Y152: 0 | Z152: 0 | AA152: 0
A153: Medical13 | B153: 0 | C153: 0 | D153: 0 | E153: 0 | F153: 0 | G153: 0 | H153: 0 | I153: 0 | J153: 0 | K153: 0 | O153: 0 | P153: 0 | Q153: 0 | R153: 0 | S153: 0 | T153: 0 | U153: 0 | V153: 0 | W153: 0 | Y153: 0 | Z153: 0 | AA153: 0
A154: Medical13 | B154: 1 | C154: 0 | D154: 0 | E154: 0 | F154: 0 | G154: 0 | H154: 0 | I154: 0 | J154: 0 | K154: 0 | O154: 0 | P154: 0 | Q154: 0 | R154: 0 | S154: 0 | T154: 0 | U154: 0 | V154: 0 | W154: 0 | Y154: 0 | Z154: 0 | AA154: 0
A155: Medical13 | B155: 2 | C155: 0 | D155: 0 | E155: 0 | F155: 0 | G155: 0 | H155: 0 | I155: 0 | J155: 0 | K155: 0 | O155: 0 | P155: 0 | Q155: 0 | R155: 0 | S155: 0 | T155: 0 | U155: 0 | V155: 0 | W155: 0 | Y155: 0 | Z155: 0 | AA155: 0
A156: Medical13 | B156: 3 | C156: 0 | D156: 0 | E156: 0 | F156: 0 | G156: 0 | H156: 0 | I156: 0 | J156: 0 | K156: 0 | O156: 0 | P156: 0 | Q156: 0 | R156: 0 | S156: 0 | T156: 0 | U156: 0 | V156: 0 | W156: 0 | Y156: 0 | Z156: 0 | AA156: 0
A157: Medical13 | B157: 4 | C157: 0 | D157: 0 | E157: 0 | F157: 0 | G157: 0 | H157: 0 | I157: 0 | J157: 0 | K157: 0 | O157: 0 | P157: 0 | Q157: 0 | R157: 0 | S157: 0 | T157: 0 | U157: 0 | V157: 0 | W157: 0 | Y157: 0 | Z157: 0 | AA157: 0
A158: Medical13 | B158: 5 | C158: 0 | D158: 0 | E158: 0 | F158: 0 | G158: 0 | H158: 0 | I158: 0 | J158: 0 | K158: 0 | O158: 0 | P158: 0 | Q158: 0 | R158: 0 | S158: 0 | T158: 0 | U158: 0 | V158: 0 | W158: 0 | Y158: 0 | Z158: 0 | AA158: 0
A159: Medical14 | B159: 0 | C159: 0 | D159: 0 | E159: 0 | F159: 0 | G159: 0 | H159: 0 | I159: 0 | J159: 0 | K159: 0 | O159: 0 | P159: 0 | Q159: 0 | R159: 0 | S159: 0 | T159: 0 | U159: 0 | V159: 0 | W159: 0 | Y159: 0 | Z159: 0 | AA159: 0
A160: Medical14 | B160: 1 | C160: 0 | D160: 0 | E160: 0 | F160: 0 | G160: 0 | H160: 0 | I160: 0 | J160: 0 | K160: 0 | O160: 0 | P160: 0 | Q160: 0 | R160: 0 | S160: 0 | T160: 0 | U160: 0 | V160: 0 | W160: 0 | Y160: 0 | Z160: 0 | AA160: 0
A161: Medical14 | B161: 2 | C161: 0 | D161: 0 | E161: 0 | F161: 0 | G161: 0 | H161: 0 | I161: 0 | J161: 0 | K161: 0 | O161: 0 | P161: 0 | Q161: 0 | R161: 0 | S161: 0 | T161: 0 | U161: 0 | V161: 0 | W161: 0 | Y161: 0 | Z161: 0 | AA161: 0
A162: Medical14 | B162: 3 | C162: 0 | D162: 0 | E162: 0 | F162: 0 | G162: 0 | H162: 0 | I162: 0 | J162: 0 | K162: 0 | O162: 0 | P162: 0 | Q162: 0 | R162: 0 | S162: 0 | T162: 0 | U162: 0 | V162: 0 | W162: 0 | Y162: 0 | Z162: 0 | AA162: 0
A163: Medical14 | B163: 4 | C163: 0 | D163: 0 | E163: 0 | F163: 0 | G163: 0 | H163: 0 | I163: 0 | J163: 0 | K163: 0 | O163: 0 | P163: 0 | Q163: 0 | R163: 0 | S163: 0 | T163: 0 | U163: 0 | V163: 0 | W163: 0 | Y163: 0 | Z163: 0 | AA163: 0
A164: Medical14 | B164: 5 | C164: 0 | D164: 0 | E164: 0 | F164: 0 | G164: 0 | H164: 0 | I164: 0 | J164: 0 | K164: 0 | O164: 0 | P164: 0 | Q164: 0 | R164: 0 | S164: 0 | T164: 0 | U164: 0 | V164: 0 | W164: 0 | Y164: 0 | Z164: 0 | AA164: 0
A165: Medical15 | B165: 0 | C165: 0 | D165: 0 | E165: 0 | F165: 0 | G165: 0 | H165: 0 | I165: 0 | J165: 0 | K165: 0 | O165: 0 | P165: 0 | Q165: 0 | R165: 0 | S165: 0 | T165: 0 | U165: 0 | V165: 0 | W165: 0 | Y165: 0 | Z165: 0 | AA165: 0
A166: Medical15 | B166: 1 | C166: 0 | D166: 0 | E166: 0 | F166: 0 | G166: 0 | H166: 0 | I166: 0 | J166: 0 | K166: 0 | O166: 0 | P166: 0 | Q166: 0 | R166: 0 | S166: 0 | T166: 0 | U166: 0 | V166: 0 | W166: 0 | Y166: 0 | Z166: 0 | AA166: 0
A167: Medical15 | B167: 2 | C167: 0 | D167: 0 | E167: 0 | F167: 0 | G167: 0 | H167: 0 | I167: 0 | J167: 0 | K167: 0 | O167: 0 | P167: 0 | Q167: 0 | R167: 0 | S167: 0 | T167: 0 | U167: 0 | V167: 0 | W167: 0 | Y167: 0 | Z167: 0 | AA167: 0
A168: Medical15 | B168: 3 | C168: 0 | D168: 0 | E168: 0 | F168: 0 | G168: 0 | H168: 0 | I168: 0 | J168: 0 | K168: 0 | O168: 0 | P168: 0 | Q168: 0 | R168: 0 | S168: 0 | T168: 0 | U168: 0 | V168: 0 | W168: 0 | Y168: 0 | Z168: 0 | AA168: 0
A169: Medical15 | B169: 4 | C169: 0 | D169: 0 | E169: 0 | F169: 0 | G169: 0 | H169: 0 | I169: 0 | J169: 0 | K169: 0 | O169: 0 | P169: 0 | Q169: 0 | R169: 0 | S169: 0 | T169: 0 | U169: 0 | V169: 0 | W169: 0 | Y169: 0 | Z169: 0 | AA169: 0
A170: Medical15 | B170: 5 | C170: 0 | D170: 0 | E170: 0 | F170: 0 | G170: 0 | H170: 0 | I170: 0 | J170: 0 | K170: 0 | O170: 0 | P170: 0 | Q170: 0 | R170: 0 | S170: 0 | T170: 0 | U170: 0 | V170: 0 | W170: 0 | Y170: 0 | Z170: 0 | AA170: 0
A171: Medical16 | B171: 0 | C171: 0 | D171: 0 | E171: 0 | F171: 0 | G171: 0 | H171: 0 | I171: 0 | J171: 0 | K171: 0 | O171: 0 | P171: 0 | Q171: 0 | R171: 0 | S171: 0 | T171: 0 | U171: 0 | V171: 0 | W171: 0 | Y171: 0 | Z171: 0 | AA171: 0
A172: Medical16 | B172: 1 | C172: 0 | D172: 0 | E172: 0 | F172: 0 | G172: 0 | H172: 0 | I172: 0 | J172: 0 | K172: 0 | O172: 0 | P172: 0 | Q172: 0 | R172: 0 | S172: 0 | T172: 0 | U172: 0 | V172: 0 | W172: 0 | Y172: 0 | Z172: 0 | AA172: 0
A173: Medical16 | B173: 2 | C173: 0 | D173: 0 | E173: 0 | F173: 0 | G173: 0 | H173: 0 | I173: 0 | J173: 0 | K173: 0 | O173: 0 | P173: 0 | Q173: 0 | R173: 0 | S173: 0 | T173: 0 | U173: 0 | V173: 0 | W173: 0 | Y173: 0 | Z173: 0 | AA173: 0
A174: Medical16 | B174: 3 | C174: 0 | D174: 0 | E174: 0 | F174: 0 | G174: 0 | H174: 0 | I174: 0 | J174: 0 | K174: 0 | O174: 0 | P174: 0 | Q174: 0 | R174: 0 | S174: 0 | T174: 0 | U174: 0 | V174: 0 | W174: 0 | Y174: 0 | Z174: 0 | AA174: 0
A175: Medical16 | B175: 4 | C175: 0 | D175: 0 | E175: 0 | F175: 0 | G175: 0 | H175: 0 | I175: 0 | J175: 0 | K175: 0 | O175: 0 | P175: 0 | Q175: 0 | R175: 0 | S175: 0 | T175: 0 | U175: 0 | V175: 0 | W175: 0 | Y175: 0 | Z175: 0 | AA175: 0
A176: Medical16 | B176: 5 | C176: 0 | D176: 0 | E176: 0 | F176: 0 | G176: 0 | H176: 0 | I176: 0 | J176: 0 | K176: 0 | O176: 0 | P176: 0 | Q176: 0 | R176: 0 | S176: 0 | T176: 0 | U176: 0 | V176: 0 | W176: 0 | Y176: 0 | Z176: 0 | AA176: 0
A177: Medical17 | B177: 0 | C177: 0 | D177: 0 | E177: 0 | F177: 0 | G177: 0 | H177: 0 | I177: 0 | J177: 0 | K177: 0 | M177: Equip.: Does score… | O177: 0 | P177: 0 | Q177: 0 | R177: 0 | S177: 0 | T177: 0 | U177: 0 | V177: 0 | W177: 0 | Y177: 0 | Z177: 0 | AA177: 0
A178: Medical17 | B178: 1 | C178: 0.035 | D178: 0.035 | E178: 0.035 | F178: 0.035 | G178: 0.035 | H178: 0.035 | I178: 0.035 | J178: 0.035 | K178: 0 | O178: 0.035 | P178: 0.035 | Q178: 0.035 | R178: 0.035 | S178: 0.035 | T178: 0.035 | U178: 0.035 | V178: 0.035 | W178: 0 | Y178: 0.035 | Z178: 0.035 | AA178: 0.035
A179: Medical17 | B179: 2 | C179: 0.09 | D179: 0.09 | E179: 0.09 | F179: 0.09 | G179: 0.09 | H179: 0.09 | I179: 0.09 | J179: 0.09 | K179: 0 | O179: 0.09 | P179: 0.09 | Q179: 0.09 | R179: 0.09 | S179: 0.09 | T179: 0.09 | U179: 0.09 | V179: 0.09 | W179: 0 | Y179: 0.09 | Z179: 0.09 | AA179: 0.09
A180: Medical17 | B180: 3 | C180: 0.4 | D180: 0.4 | E180: 0.4 | F180: 0.4 | G180: 0.4 | H180: 0.4 | I180: 0.4 | J180: 0.4 | K180: 0 | O180: 0.4 | P180: 0.4 | Q180: 0.4 | R180: 0.4 | S180: 0.4 | T180: 0.4 | U180: 0.4 | V180: 0.4 | W180: 0 | Y180: 0.4 | Z180: 0.4 | AA180: 0.4
A181: Medical17 | B181: 4 | C181: 0.75 | D181: 0.75 | E181: 0.75 | F181: 0.75 | G181: 0.75 | H181: 0.75 | I181: 0.75 | J181: 0.75 | K181: 0 | O181: 0.75 | P181: 0.75 | Q181: 0.75 | R181: 0.75 | S181: 0.75 | T181: 0.75 | U181: 0.75 | V181: 0.75 | W181: 0 | Y181: 0.75 | Z181: 0.75 | AA181: 0.75
A182: Medical17 | B182: 5 | C182: 0.75 | D182: 0.75 | E182: 0.75 | F182: 0.75 | G182: 0.75 | H182: 0.75 | I182: 0.75 | J182: 0.75 | K182: 0 | O182: 0.75 | P182: 0.75 | Q182: 0.75 | R182: 0.75 | S182: 0.75 | T182: 0.75 | U182: 0.75 | V182: 0.75 | W182: 0 | Y182: 0.75 | Z182: 0.75 | AA182: 0.75
A183: Behavior1 | B183: 0 | C183: 0 | D183: 0 | E183: 0 | F183: 0 | G183: 0 | H183: 0 | I183: 0 | J183: 0 | K183: 0 | L183: Supervison - No Formal Plan | O183: 0 | P183: 0 | Q183: 0 | R183: 0 | S183: 0 | T183: 0 | U183: 0 | V183: 0 | W183: 0 | Y183: 0 | Z183: 0 | AA183: 0
A184: Behavior1 | B184: 1 | C184: 0 | D184: 0 | E184: 0 | F184: 0 | G184: 0 | H184: 0.25 | I184: 0.25 | J184: 0.25 | K184: 0 | O184: 0 | P184: 0 | Q184: 0 | R184: 0 | S184: 0 | T184: 0.25 | U184: 0.25 | V184: 0.25 | W184: 0 | Y184: 0 | Z184: 0 | AA184: 0.25
A185: Behavior1 | B185: 2 | C185: 0 | D185: 0 | E185: 0 | F185: 0 | G185: 0.05 | H185: 1 | I185: 1 | J185: 1 | K185: 0 | O185: 0 | P185: 0 | Q185: 0 | R185: 0 | S185: 0.05 | T185: 1 | U185: 1 | V185: 1 | W185: 0 | Y185: 0 | Z185: 0.05 | AA185: 1
A186: Behavior1 | B186: 3 | C186: 0.125 | D186: 0.125 | E186: 0.125 | F186: 0.125 | G186: 0.125 | H186: 1.25 | I186: 1.25 | J186: 1.25 | K186: 0 | O186: 0.125 | P186: 0.125 | Q186: 0.125 | R186: 0.125 | S186: 0.125 | T186: 1.25 | U186: 1.25 | V186: 1.25 | W186: 0 | Y186: 0.125 | Z186: 0.125 | AA186: 1.25
A187: Behavior1 | B187: 4 | C187: 0.125 | D187: 0.125 | E187: 0.125 | F187: 0.125 | G187: 0.125 | H187: 1.25 | I187: 1.25 | J187: 1.25 | K187: 0 | O187: 0.125 | P187: 0.125 | Q187: 0.125 | R187: 0.125 | S187: 0.125 | T187: 1.25 | U187: 1.25 | V187: 1.25 | W187: 0 | Y187: 0.125 | Z187: 0.125 | AA187: 1.25
A188: Behavior1 | B188: 5 | C188: 0.125 | D188: 0.125 | E188: 0.125 | F188: 0.125 | G188: 0.25 | H188: 1.25 | I188: 1.25 | J188: 1.25 | K188: 0 | O188: 0.125 | P188: 0.125 | Q188: 0.125 | R188: 0.125 | S188: 0.25 | T188: 1.25 | U188: 1.25 | V188: 1.25 | W188: 0 | Y188: 0.125 | Z188: 0.25 | AA188: 1.25
A189: Behavior2 | B189: 0 | C189: 0 | D189: 0 | E189: 0 | F189: 0 | G189: 0 | H189: 0 | I189: 0 | J189: 0 | K189: 0 | L189: Support plans, Home & Comm. | O189: 0 | P189: 0 | Q189: 0 | R189: 0 | S189: 0 | T189: 0 | U189: 0 | V189: 0 | W189: 0 | Y189: 0 | Z189: 0 | AA189: 0
A190: Behavior2 | B190: 1 | C190: 0.06578 | D190: 0.06578 | E190: 0.06578 | F190: 0.06578 | G190: 0.06578 | H190: 0.06578 | I190: 0.06578 | J190: 0.06578 | K190: 0 | O190: 0.06578 | P190: 0.06578 | Q190: 0.06578 | R190: 0.06578 | S190: 0.06578 | T190: 0.06578 | U190: 0.06578 | V190: 0.06578 | W190: 0 | Y190: 0.06578 | Z190: 0.06578 | AA190: 0.06578
A191: Behavior2 | B191: 2 | C191: 0.09867 | D191: 0.09867 | E191: 0.09867 | F191: 0.09867 | G191: 0.09867 | H191: 0.09867 | I191: 0.09867 | J191: 0.09867 | K191: 0 | O191: 0.09867 | P191: 0.09867 | Q191: 0.09867 | R191: 0.09867 | S191: 0.09867 | T191: 0.09867 | U191: 0.09867 | V191: 0.09867 | W191: 0 | Y191: =Y190*1.5 -> 0.09867 | Z191: =Z190*1.5 -> 0.09867 | AA191: =AA190*1.5 -> 0.09867
A192: Behavior2 | B192: 3 | C192: 0.09867 | D192: 0.09867 | E192: 0.09867 | F192: 0.09867 | G192: 0.09867 | H192: 0.09867 | I192: 0.09867 | J192: 0.09867 | K192: 0 | O192: 0.09867 | P192: 0.09867 | Q192: 0.09867 | R192: 0.09867 | S192: 0.09867 | T192: 0.09867 | U192: 0.09867 | V192: 0.09867 | W192: 0 | Y192: 0.09867 | Z192: 0.09867 | AA192: 0.09867
A193: Behavior2 | B193: 4 | C193: 0.09867 | D193: 0.09867 | E193: 0.09867 | F193: 0.09867 | G193: 0.09867 | H193: 0.09867 | I193: 0.09867 | J193: 0.09867 | K193: 0 | O193: 0.09867 | P193: 0.09867 | Q193: 0.09867 | R193: 0.09867 | S193: 0.09867 | T193: 0.09867 | U193: 0.09867 | V193: 0.09867 | W193: 0 | Y193: 0.09867 | Z193: 0.09867 | AA193: 0.09867
A194: Behavior2 | B194: 5 | C194: 0.09867 | D194: 0.09867 | E194: 0.09867 | F194: 0.09867 | G194: 0.09867 | H194: 0.09867 | I194: 0.09867 | J194: 0.09867 | K194: 0 | O194: 0.09867 | P194: 0.09867 | Q194: 0.09867 | R194: 0.09867 | S194: 0.09867 | T194: 0.09867 | U194: 0.09867 | V194: 0.09867 | W194: 0 | Y194: 0.09867 | Z194: 0.09867 | AA194: 0.09867
A195: Behavior3 | B195: 0 | C195: =O195-(O195*$L$1) -> 0 | D195: =P195-(P195*$L$1) -> 0 | E195: =Q195-(Q195*$L$1) -> 0 | F195: =R195-(R195*$L$1) -> 0 | G195: =S195-(S195*$L$1) -> 0 | H195: =T195-(T195*$L$1) -> 0 | I195: =U195-(U195*$L$1) -> 0 | J195: =V195-(V195*$L$1) -> 0 | K195: =W195-(W195*$L$1) -> 0 | L195: Supervison, Home | O195: 0 | P195: 0 | Q195: 0 | R195: 0 | S195: 0 | T195: 0 | U195: 0 | V195: 0 | W195: 0 | Y195: 0 | Z195: 0 | AA195: 0
A196: Behavior3 | B196: 1 | C196: 0 | D196: 0 | E196: 0 | F196: 0 | G196: 0 | H196: 0.2 | I196: 0.2 | J196: 0.2 | K196: 0 | O196: 0 | P196: 0 | Q196: 0 | R196: 0 | S196: 0 | T196: 0.2 | U196: 0.2 | V196: 0.2 | W196: 0 | Y196: 0 | Z196: 0 | AA196: 0.2
A197: Behavior3 | B197: 2 | C197: 0 | D197: 0 | E197: 0 | F197: 0 | G197: 0.75 | H197: 0.8 | I197: 0.8 | J197: 0.8 | K197: 0 | O197: 0 | P197: 0 | Q197: 0 | R197: 0 | S197: 0.75 | T197: 0.8 | U197: 0.8 | V197: 0.8 | W197: 0 | Y197: 0 | Z197: 0.75 | AA197: 0.8
A198: Behavior3 | B198: 3 | C198: 0.125 | D198: 0.125 | E198: 0.125 | F198: 0.125 | G198: 1 | H198: 1 | I198: 1 | J198: 1 | K198: 0 | O198: 0.125 | P198: 0.125 | Q198: 0.125 | R198: 0.125 | S198: 1 | T198: 1 | U198: 1 | V198: 1 | W198: 0 | Y198: 0.125 | Z198: 1 | AA198: 1
A199: Behavior3 | B199: 4 | C199: 0.125 | D199: 0.125 | E199: 0.125 | F199: 0.125 | G199: 1 | H199: 1 | I199: 1 | J199: 1 | K199: 0 | O199: 0.125 | P199: 0.125 | Q199: 0.125 | R199: 0.125 | S199: 1 | T199: 1 | U199: 1 | V199: 1 | W199: 0 | Y199: 0.125 | Z199: 1 | AA199: 1
A200: Behavior3 | B200: 5 | C200: 0.125 | D200: 0.125 | E200: 0.125 | F200: 0.125 | G200: 1 | H200: 1 | I200: 1 | J200: 1 | K200: 0 | O200: 0.125 | P200: 0.125 | Q200: 0.125 | R200: 0.125 | S200: 1 | T200: 1 | U200: 1 | V200: 1 | W200: 0 | Y200: 0.125 | Z200: 1 | AA200: 1
... 14 more rows

Sheet Control (hidden)
B1: Before-Save Active Sheet | D1: County/Brokerage LookUp | F1: Relationships | H1: Support Need Options - ADL (CNA) | I1: Support Need Options - Medical (CNA) | J1: Support Need Options - Nighttime | K1: Support Need Options - Behavior | L1: Documentation Needed Options | M1: Documentation Needed Options - Behavior | O1: This Tool-Type | P1: Tool-Type Index | R1: ANA Service Settings | S1: ANA SE Mapping | T1: CNA Service Settings | U1: CNA SE Mapping | W1: SE No Options | X1: ANA SE Non-Group Home | Y1: CNA SE Non-Group Home | Z1: CNA SE C-W Foster Care | AA1: SE Foster Care | AB1: ANA SE Group Home | AC1: CNA SE Group Home | AD1: SE Other
B2: Client Demographics | D2: (Select) | F2: (Select) | H2: Independent or Age Appropriate Supports Provided | I2: Independent | J2: Independent | K2: Not Applicable or Age-Appropriate Supervision | L2: None | M2: None | O2: =LEFT(TRIM(VersionDisplay), FIND(" ",TRIM(VersionDisplay)) - 1) -> CNA | P2: =IF(O2="ANA",0,IF(O2="CNA",1,"#VALUE!")) -> 1 | R2: (Select) | S2: SE_NoOptions | T2: (Select) | U2: SE_NoOptions | W2: (Select) | X2: (Select) | Y2: (Select) | Z2: (Select) | AA2: Foster Care (SE 58) | AB2: 24hr Residential (SE 50) | AC2: 24hr Residential (SE 50) | AD2: (Explain in comment field of "Summary of In-Home Hours" sheet)
D3: Community Pathways | F3: Self | H3: Partial Assist | I3: Independent or Age Appropriate Supports Provided | J3: Nighttime Assist - monthly | K3: Independent or Age Appropriate Supports Provided | L3: Caregivers' schedule and duties | M3: OIS Training | R3: Family Home | S3: SE_NonGroupHome_ANA | T3: Family Home | U3: SE_NonGroupHome_CNA | X3: Comp In-Home (SE 49) | Y3: Child Long-term Support (SE 151) | Z3: Child Long-term Support (SE 151) | AB3: SACU (SE 141) | AC3: Child Residential (SE 142)
B4: Keep Current File Name | D4: CSI | F4: Legal Guardian | H4: Partial Assist - assistance | I4: Individual-Directed Care | J4: Nighttime Assist - weekly | K4: Within Hearing or Visual Distance | L4: Not Applicable | M4: Functional Assessment and Formal Behavior Support Plan | R4: Own Home | S4: SE_NonGroupHome_ANA | T4: Child-welfare Foster | U4: SE_CW_FosterCare | X4: Brokerage In-Home (SE 149) | Y4: CIIS (SE 145) | Z4: CIIS (SE 145) | AC4: SACU (SE 141)
B5: TRUE | D5: EOSSB | F5: Parent | H5: Partial Assist - cueing | I5: Partial Assist | J5: Nighttime Assist - intermittent nightly | K5: Within Hearing and Visual Distance | M5: Functional Assessment and Formal Behavior Support Plan, OIS Training | R5: Foster Care | S5: SE_FosterCare | T5: DD Foster | U5: SE_FosterCare | X5: Supported Living (SE 51) | Z5: Foster Care (SE 58) | AA5: ^ NOTE: Shaded cell's named-range SE_FosterCare is also referenced by CNA's "Summary of In-Home Hours" sheet formula
D6: Full Access | F6: Provider/Staff | H6: Partial Assist - food cut up | I6: Partial Assist - 1 to 3 per day | J6: Nighttime Assist - ongoing nightly | K6: Redirecting | M6: Functional Assessment and Formal Behavior Support Plan if indicated by the FA | R6: 24-hr. Group Home | S6: SE_GroupHome_ANA | T6: 24-hr. Group Home | U6: SE_GroupHome_CNA | X6: * BEWARE: Shaded cell is referenced by the "New Scoring" sheet | Z6: * Shaded cell is same CNA value as SE_FosterCare so SE_FosterCare is referenced, for both cases, by CNA's "Summary of In-Home Hours" formula
B7: Assessment Grace- Period Days | D7: Full Access High Desert | F7: Behavior Specialist | H7: Partial Assist - intermittent | I7: Partial Assist - weekly | J7: Nighttime 1:1 Assist | K7: Behavior Plan - No Physical Interventions | M7: Functional Assessment and Formal Behavior Support Plan if indicated by the FA, Caregivers' schedule and duties | R7: Other | S7: SE_Other | T7: Other | U7: SE_Other
B8: 60 | D8: Inclusion | F8: Nursing Professional | H8: Full Assist | I8: Partial Assist and Monitoring | J8: Nighttime 2:1 Assist | K8: Behavior Plan - Physical Interventions | R8: * NOTE: Shaded cells are named-ranges referenced by "Summary of In-Home Hours" sheet formula
D9: Ind NW | F9: Services Coordinator | H9: Full Assist - constant | I9: Full Assist | J9: Not Applicable | K9: Mental Health Plan
D10: ISN | F10: Regional MCL/Crisis Staff | H10: Full Assist - constant/aspiration risk | I10: Full Assist - 1 to 4 | K10: Exclusive Focus
D11: Mentor Metro | F11: Child Welfare Staff | H11: Two-Person Assist | I11: Full Assist - 5 or 6 | K11: Exclusive Focus - 2
D12: Mid Valley | F12: SPD Kids’ Residential Coordinator | H12: Not Applicable | I12: Full Assist - 7 or more | K12: Exclusive Focus - 4
D13: RCO | F13: Other | I13: Full Assist - more than 3 per day | K13: Exclusive Focus - 6
D14: SDRI | I14: Full Assist and Monitoring - exclusive focus | K14: Exclusive Focus - 8
D15: SORB | I15: Delegated Nursing Tasks, < 50 | K15: Exclusive Focus - 10
D16: UCP | I16: Delegated Nursing Tasks, >= 50 | K16: Exclusive Focus - 12
D17: ----------------------------- | I17: Direct Nursing by a Licensed Nurse | K17: Two-Person Assist
D18: BAKER | I18: Two-Person Assist | K18: Not Applicable
D19: BENTON | I19: Not Applicable
D20: CLACKAMAS
D21: CLATSOP
D22: COLUMBIA
D23: COOS
D24: CROOK
D25: CURRY
D26: DESCHUTES
D27: DOUGLAS
D28: GILLIAM
D29: GRANT
D30: HARNEY
D31: HOOD RIVER
D32: JACKSON
D33: JEFFERSON
D34: JOSEPHINE
D35: KLAMATH
D36: LAKE
D37: LANE
D38: LINCOLN
D39: LINN
D40: MALHEUR
D41: MARION
D42: MORROW
D43: MULTNOMAH
D44: POLK
D45: SHERMAN
D46: TILLAMOOK
D47: UMATILLA
D48: UNION
D49: WALLOWA
D50: WASCO
D51: WASHINGTON
D52: WHEELER
D53: YAMHILL
D54: -----------------------------
D55: CIIS
D56: (Type in other…)
